Workbook

Sheet Cover
B3: ="WaterNSW - Rural water pricing annual update "&Outputs!$C$23 -> WaterNSW - Rural water pricing annual update 2023-24
B6: MODELLER: | D6: Bee Thompson
B7: email | D7: Bee_Thompson@ipart.nsw.gov.au
B11: WHAT IS THE PURPOSE OF MODEL?
B12: ="This model calculates "&Outputs!$C$23&" water entitlement and usage charges for the Murray Darling Basin (MDB) and the Fish River Water Supply Scheme (FRWS) based on updated demand forecasts." -> This model calculates 2023-24 water entitlement and usage charges for the Murray Darling Basin (MDB) and the Fish River Water Supply Scheme (FRWS) based on updated demand forecasts.
B14: ="For the "&'2021 Determination Revenue'!$C$13&" Determination, the forecast usage for each year of the determination period was calculated as the 20 year historical average to "&'2021 Determination Revenue'!$C$15&"." -> For the 2021 Determination, the forecast usage for each year of the determination period was calculated as the 20 year historical average to 2019-20.
B15: ="This model updates the 20-year historical average for "&Outputs!$C$23&" by using the 20 year average to "&Outputs!$C$24&". It then uses these updated forecasts to calculate new "&Outputs!$C$23&" charges." -> This model updates the 20-year historical average for 2023-24 by using the 20 year average to 2021-22. It then uses these updated forecasts to calculate new 2023-24 charges.
B17: HOW DOES THE MODEL WORK?
B18: In essence, the model calculates the entitlement and usage charges that would recover the allowed revenue for each of these charges, using the updated demand forecasts.
B19: The re-calculated charges include
C20: - | D20: WaterNSW entitlement and usage charges
C21: - | D21: MDBA/BRC entitlement and usage charges, and
C22: - | D22: FRWS access and usage charges
B24: ="All other inputs, assumptions and calculation methodologies are consistent with the "&'2021 Determination Revenue'!$C$13&" Determination." -> All other inputs, assumptions and calculation methodologies are consistent with the 2021 Determination.
B26: MODEL STRUCTURE
B27: The model comprises three sections
B28: (i) | C28: Inputs
C29: - | D29: Volumetric data, including actual volumes provided by WaterNSW ('Updated Volumes (2)') as part of Annual Review process
C30: - | D30: ="Maximum allowed revenue and other inputs assumptions consistent with the "&'2021 Determination Revenue'!$C$13&" Determination ('2021 Determination - revenue')" -> Maximum allowed revenue and other inputs assumptions consistent with the 2021 Determination ('2021 Determination - revenue')
C31: - | D31: ='2021 Determination Revenue'!$C$13&" Determination charges" -> 2021 Determination charges
B32: (ii) | C32: Outputs
C33: - | D33: showing calculated charges, indicative customer bills and revenue comparisons*.
B34: (iii) | C34: Detailed calculations
C35: - | D35: Usage and entitlement volumes, required revenue and entitlement premiums for the MDB valleys (MDB calcs)
C36: - | D36: Usage volumes, MAQ levels and required revenue for FRWS customers (FRWS calcs)
C37: ="* Comparisons of revenue using the "&'2021 Determination Revenue'!$C$13&" Determination charges versus the re-calculated charges and the updated "&Outputs!$C$23&" demand forecasts." -> * Comparisons of revenue using the 2021 Determination charges versus the re-calculated charges and the updated 2023-24 demand forecasts.
B39: ="Inflation to "&Outputs!$M$31 -> Inflation to $2023-24
B41: ="This model uses a two-step process to inflate prices in "&Outputs!$G$31&" to nominal prices" -> This model uses a two-step process to inflate prices in $2020-21 to nominal prices
C42: Step 1 | D42: ="Charges entered or calculated for "&Outputs!H29&" in "&Outputs!$H$31&" are inflated to $"&Outputs!$G$29&" then rounded to two decimal places." -> Charges entered or calculated for 2022-23 in $2020-21 are inflated to $2021-22 then rounded to two decimal places.
C43: Step 2 | D43: ="The $"&Outputs!$G$29&" charges calculated in step 1 are then inflated to "&Outputs!$M$31&" and rounded to 2 decimal places" -> The $2021-22 charges calculated in step 1 are then inflated to $2023-24 and rounded to 2 decimal places
B45: ="The model uses this method of indexation to maintain consistency with the "&'2021 Determination Revenue'!$C$13&" Determination, which published prices in $"&Outputs!$G$29&"" -> The model uses this method of indexation to maintain consistency with the 2021 Determination, which published prices in $2021-22
B47: COLOUR CODE
B48: This model uses standard IPART colour coding:
B50: Blue cells indicate inputs
B51: Blue font indicates IPART hard-coded values used that should not be changed
B52: Key outputs
B53: Pink font indicates calculation checks
B54: Red indicates assumptions made in calculations
B55: red double line means formula changes across row

Sheet Inputs>>
C5: Page intentionally left blank

Sheet 2021 Determination Revenue
B2: 2 ALLOWED REVENUE, SECURITY FACTORS AND VOLUMES FOR INDICATIVE CUSTOMER BILLS
B3: ="This worksheet records the required revenue that was calculated as part of our "&$C$13&" review of prices, as well as other inputs consistent with that review." -> This worksheet records the required revenue that was calculated as part of our 2021 review of prices, as well as other inputs consistent with that review.
B5: List of tables | G5: Row number
B6: =B18 -> TABLE 2.1 - INFLATION AS PER 2021 DETERMINATION | G6: =ROW(B18) -> 18
B7: =B35 -> TABLE 2.2 - REVENUE REQUIREMENT EXCLUDING MDBA/BRC REVENUE | G7: =ROW(B35) -> 35
B8: =B71 -> TABLE 2.3 - MDBA/BRC REVENUE REQUIREMENT | G8: =ROW(B71) -> 71
B9: =B101 -> TABLE 2.4 - SECURITY FACTORS | G9: =ROW(B101) -> 101
B10: =B120 -> TABLE 2.5 - CUSTOMER USAGE VOLUMES FOR CALCULATION OF BILLS | G10: =ROW(B120) -> 120
B13: Determination year | C13: 2021
B14: For prices from (FY) | C14: =F20 -> 2020-21
B15: Prices set using 20 year average volumes to | C15: =C13-2&"-"&RIGHT(C13-1,2) -> 2019-20
B18: TABLE 2.1 - INFLATION AS PER 2021 DETERMINATION
B19: Financial year ending 30 June | C19: =C$36 -> Units | E19: =F19-1 -> 2020 | F19: =C13 -> 2021 | G19: =F19+1 -> 2022 | H19: =G19+1 -> 2023 | I19: 2024 | J19: 2025
B20: Financial year | E20: =E19-1&"-"&RIGHT(E19,2) -> 2019-20 | F20: =F19-1&"-"&RIGHT(F19,2) -> 2020-21 | G20: =G19-1&"-"&RIGHT(G19,2) -> 2021-22 | H20: =H19-1&"-"&RIGHT(H19,2) -> 2022-23 | I20: =I19-1&"-"&RIGHT(I19,2) -> 2023-24 | J20: =J19-1&"-"&RIGHT(J19,2) -> 2024-25
B22: ="Inflation rate used to convert $"&F20&" prices to $"&G20&" prices" -> Inflation rate used to convert $2020-21 prices to $2021-22 prices | C22: % | G22: 0.011 | H22: (March-on-March, lagged by 1 year)
B23: check = 0 | G23: =ROUND(F26/E26,3)-G22-1 -> 0
B24: ="CPI calculations to convert $"&$F$20&" prices to nominal prices" -> CPI calculations to convert $2020-21 prices to nominal prices
B25: Forecast inflation rate when actual not available (not lagged) | E25: na | F25: na | H25: 0.067 | J25: na
B26: CPI (actual to March, not lagged) | E26: 116.6 | F26: 117.9 | G26: 123.9 | J26: na
B27: CPI used in calculations | E27: =E26 -> 116.6 | F27: =F26 -> 117.9 | G27: =IF(ISBLANK(G26),F27*(1+G25),G26) -> 123.9 | H27: =IF(ISBLANK(H26),G27*(1+H25),H26) -> 132.2013 | I27: 132.2013 | J27: na
B29: ="Index for determination prices in $"&$G$20 -> Index for determination prices in $2021-22 | G29: 1 | H29: =ROUND(G27/$F27,3) -> 1.051 | I29: =ROUND(H27/$F27,3) -> 1.121 | J29: 1.121
B30: ="Index (CPI) from $"&$F$20&" (lagged to show inflator for prices in that year" -> Index (CPI) from $2020-21 (lagged to show inflator for prices in that year | C30: % | G30: =G29*(1+G22) -> 1.011 | H30: =ROUND(G27/$E27,3) -> 1.063 | I30: =ROUND(H27/$E27,3) -> 1.134 | J30: =ROUND(I27/$E27,3) -> 1.134
B31: Lagged year-on-year change (for information) | C31: % | G31: =ROUND(F27/E27-1,3) -> 0.011 | H31: =ROUND(G27/F27-1,3) -> 0.051 | I31: 0.067 | J31: 0
B32: check = TRUE | G32: =G31=G22 -> TRUE
B33: Source: | C33: CPI database, all capitals CPI | J33: D19/21951
B35: TABLE 2.2 - REVENUE REQUIREMENT EXCLUDING MDBA/BRC REVENUE
B36: =B20 -> Financial year | C36: Units | G36: =G$20 -> 2021-22 | H36: =H$20 -> 2022-23 | I36: =I$20 -> 2023-24 | J36: =J$20 -> 2024-25
G37: ="$" &$F$20 -> $2020-21 | H37: ='2021 Determination Revenue'!$G$37 -> $2020-21 | I37: ='2021 Determination Revenue'!$G$37 -> $2020-21 | J37: ='2021 Determination Revenue'!$G$37 -> $2020-21
B39: Revenue from WaterNSW charges (excluding MDBA/BRC charges and miscellaneous income)
B40: Source: 2021 review model, Price & Revenue worksheet, Table C2.4, U445:X453. Revenue from charges ignoring delayed implementation
B41: Border | C41: $'000 | G41: =H41 -> 1617.101619 | H41: 1617.101619 | I41: 1617.101619 | J41: 1617.101619
B42: Gwydir | C42: =C$41 -> $'000 | G42: 6248.131838 | H42: 6248.131838 | I42: 6248.131838 | J42: 6248.131838
B43: Namoi | C43: $'000 | G43: 7038.029797 | H43: 7038.029797 | I43: 7038.029797 | J43: 7038.029797
B44: Peel | C44: $'000 | G44: 1530.645685 | H44: 1530.645685 | I44: 1530.645685 | J44: 1530.645685
B45: Lachlan | C45: $'000 | G45: 9359.27687 | H45: 9359.27687 | I45: 9359.27687 | J45: 9359.27687
B46: Macquarie | C46: $'000 | G46: 8297.091737 | H46: 8297.091737 | I46: 8297.091737 | J46: 8297.091737
B47: Murray | C47: $'000 | G47: 6631.250988 | H47: 6631.250988 | I47: 6631.250988 | J47: 6631.250988
B48: Murrumbidgee | C48: $'000 | G48: 12538.11663 | H48: 12538.11663 | I48: 12538.11663 | J48: 12538.11663
B49: Lowbidgee | C49: $'000 | G49: 1272.981852 | H49: 1272.981852 | I49: 1272.981852 | J49: 1272.981852
B51: Revenue recovered from entitlement charges
B52: Source: 2021 review model, Price Scenario worksheet, Table 11.3, row 292-300.
B53: =B$41 -> Border | C53: =C$30 -> % | G53: 0.40360619 | H53: 0.4004870878 | I53: 0.4004870878 | J53: 0.4004870878
B54: =B$42 -> Gwydir | C54: % | G54: 0.4088703565 | H54: 0.400079048 | I54: 0.400079048 | J54: 0.400079048
B55: =B$43 -> Namoi | C55: % | G55: 0.4086520996 | H55: 0.4001110856 | I55: 0.4001110856 | J55: 0.4001110856
B56: =B$44 -> Peel | C56: % | G56: 0.7968204853 | H56: 0.800037565 | I56: 0.800037565 | J56: 0.800037565
B57: =B$45 -> Lachlan | C57: % | G57: 0.4056025782 | H57: 0.4001372101 | I57: 0.4001372101 | J57: 0.4001372101
B58: =B$46 -> Macquarie | C58: % | G58: 0.4051356299 | H58: 0.4001117928 | I58: 0.4001117928 | J58: 0.4001117928
B59: =B$47 -> Murray | C59: % | G59: 0.4033690931 | H59: 0.3973157917 | I59: 0.3973157917 | J59: 0.3973157917
B60: =B$48 -> Murrumbidgee | C60: % | G60: 0.4054172306 | H60: 0.399812477 | I60: 0.399812477 | J60: 0.399812477
B61: =B$49 -> Lowbidgee | C61: % | G61: 1 | H61: 1 | I61: 1 | J61: 1
B63: Fish River revenue requirement
B64: Source: 2021 review model, Prices & Revenue worksheet, Table C2.4, N498-O506 | G64: ignoring delayed implementation
B65: ='Updated Volumes'!B$31 -> Energy Australia | C65: =C$41 -> $'000 | G65: =H65 -> 4529.679801 | H65: 4529.679801 | I65: 4529.679801 | J65: 4529.679801
B66: ='Updated Volumes'!B$33 -> Minor customers (raw) | C66: =C$41 -> $'000 | G66: =H66 -> 41.17118573 | H66: 41.17118573 | I66: 41.17118573 | J66: 41.17118573
B67: ='Updated Volumes'!B$34 -> Minor customers (filtered) | C67: =C$41 -> $'000 | G67: 140.9038493 | H67: 140.9038493 | I67: 140.9038493 | J67: 140.9038493
B71: TABLE 2.3 - MDBA/BRC REVENUE REQUIREMENT
B72: =B$20 -> Financial year | C72: =C$36 -> Units | G72: =G$20 -> 2021-22 | H72: =H$20 -> 2022-23 | I72: =I$20 -> 2023-24 | J72: =J$20 -> 2024-25
G73: =G$37 -> $2020-21 | H73: =H$37 -> $2020-21 | I73: $2020-21 | J73: $2020-21
B74: MDBA/BRC Revenue requirement
B75: Source: 2021 review model, Prices & Revenue worksheet, Table C2.4, Column N-Q, row 543-551 | F75: ='2021 Determination Charges'!$J$49 -> D21/15629 | G75: ignoring delayed implementation
B76: =B$41 -> Border | C76: =C$41 -> $'000 | G76: =H76 -> 594.838886 | H76: 594.838886 | I76: 594.838886 | J76: 594.838886
B77: =B$42 -> Gwydir | C77: =C$41 -> $'000 | G77: 0 | H77: 0 | I77: 0 | J77: 0
B78: =B$43 -> Namoi | C78: $'000 | G78: 0 | H78: 0 | I78: 0 | J78: 0
B79: =B$44 -> Peel | C79: $'000 | G79: 0 | H79: 0 | I79: 0 | J79: 0
B80: =B$45 -> Lachlan | C80: $'000 | G80: 0 | H80: 0 | I80: 0 | J80: 0
B81: =B$46 -> Macquarie | C81: $'000 | G81: 0 | H81: 0 | I81: 0 | J81: 0
B82: =B$47 -> Murray | C82: $'000 | G82: 12613.79796 | H82: 12613.79796 | I82: 12613.79796 | J82: 12613.79796
B83: =B$48 -> Murrumbidgee | C83: $'000 | G83: 2797.557655 | H83: 2797.557655 | I83: 2797.557655 | J83: 2797.557655
B84: =B$49 -> Lowbidgee | C84: $'000 | G84: 0 | H84: 0 | I84: 0 | J84: 0
B86: MDBA/BRC Revenue recovered from entitlement charges
B87: Source: 2021 review model, Price Scenario worksheet, Table 11.6, Column N-Q, rows 412-414.
B88: =B$41 -> Border | C88: =C$30 -> % | G88: 0.8 | H88: 0.8 | I88: 0.8 | J88: 0.8
B89: =B$42 -> Gwydir | C89: % | G89: 0 | H89: 0 | I89: 0 | J89: 0
B90: =B$43 -> Namoi | C90: % | G90: 0 | H90: 0 | I90: 0 | J90: 0
B91: =B$44 -> Peel | C91: % | G91: 0 | H91: 0 | I91: 0 | J91: 0
B92: =B$45 -> Lachlan | C92: % | G92: 0 | H92: 0 | I92: 0 | J92: 0
B93: =B$46 -> Macquarie | C93: % | G93: 0 | H93: 0 | I93: 0 | J93: 0
B94: =B$47 -> Murray | C94: % | G94: 0.8 | H94: 0.8 | I94: 0.8 | J94: 0.8
B95: =B$48 -> Murrumbidgee | C95: % | G95: 0.8 | H95: 0.8 | I95: 0.8 | J95: 0.8
B96: =B$49 -> Lowbidgee | C96: % | G96: 0 | H96: 0 | I96: 0 | J96: 0
B101: TABLE 2.4 - SECURITY FACTORS
B102: =B$20 -> Financial year | C102: =C$36 -> Units | G102: =G$20 -> 2021-22 | H102: =H$20 -> 2022-23 | I102: =I$20 -> 2023-24 | J102: =J$20 -> 2024-25
B104: Note: This ratio reflects the relative security of supply between HS and GS entitlements and is used to calculate the high security premium.
B105: MDB Valleys
B106: Source: 2021 review model, Pricing inputs worksheet, Table 7.1, Column I, row 24-32. (The Security Factor is held constant over the Determination period)
B107: =B$41 -> Border | C107: # | G107: 1.25 | H107: 1.25 | I107: 1.25 | J107: 1.25
B108: =B$42 -> Gwydir | C108: =$C$107 -> # | G108: 1.397322188 | H108: 1.397322188 | I108: 1.397322188 | J108: 1.397322188
B109: =B$43 -> Namoi | C109: # | G109: 1.25 | H109: 1.25 | I109: 1.25 | J109: 1.25
B110: =B$44 -> Peel | C110: # | G110: 6.541945223 | H110: 6.541945223 | I110: 6.541945223 | J110: 6.541945223
B111: =B$45 -> Lachlan | C111: # | G111: 2.495217761 | H111: 2.495217761 | I111: 2.495217761 | J111: 2.495217761
B112: =B$46 -> Macquarie | C112: # | G112: 1.884834667 | H112: 1.884834667 | I112: 1.884834667 | J112: 1.884834667
B113: =B$47 -> Murray | C113: # | G113: 1.308492142 | H113: 1.308492142 | I113: 1.308492142 | J113: 1.308492142
B114: =B$48 -> Murrumbidgee | C114: # | G114: 1.692969071 | H114: 1.692969071 | I114: 1.692969071 | J114: 1.692969071
B115: =B$49 -> Lowbidgee | C115: # | G115: 0 | H115: 0 | I115: 0 | J115: 0
B120: TABLE 2.5 - CUSTOMER USAGE VOLUMES FOR CALCULATION OF BILLS
B121: =B$20 -> Financial year | C121: =C$36 -> Units | G121: =G$20 -> 2021-22 | H121: =H$20 -> 2022-23 | I121: =I$20 -> 2023-24 | J121: =J$20 -> 2024-25
B123: Note: Inputs in this table are assumptions that we use to calculate indicative customer bills.
B125: High Security entitlement level
B126: Small consumption customers | C126: ='Updated Volumes'!$C$31 -> kL | G126: 100 | H126: =G126 -> 100 | I126: =H126 -> 100 | J126: 100
B127: Medium consumption customers | C127: ='Updated Volumes'!$C$31 -> kL | G127: 500 | H127: =G127 -> 500 | I127: 500 | J127: 500
B128: Large consumption customers | C128: ='Updated Volumes'!$C$31 -> kL | G128: 1000 | H128: 1000 | I128: 1000 | J128: 1000
B130: High security usage rate
B131: =B$126 -> Small consumption customers | C131: =C$30 -> % | G131: 1 | H131: =G131 -> 1 | I131: =H131 -> 1 | J131: 1
B132: =B$127 -> Medium consumption customers | C132: =C$30 -> % | G132: 1 | H132: =G132 -> 1 | I132: 1 | J132: 1
B133: =B$128 -> Large consumption customers | C133: =C$30 -> % | G133: 1 | H133: =G133 -> 1 | I133: 1 | J133: 1
B135: General Security entitlement level
B136: =B$126 -> Small consumption customers | C136: ='Updated Volumes'!$C$31 -> kL | G136: 100 | H136: =G136 -> 100 | I136: =H136 -> 100 | J136: 100
B137: =B$127 -> Medium consumption customers | C137: ='Updated Volumes'!$C$31 -> kL | G137: 500 | H137: =G137 -> 500 | I137: 500 | J137: 500
B138: =B$128 -> Large consumption customers | C138: ='Updated Volumes'!$C$31 -> kL | G138: 1000 | H138: =G138 -> 1000 | I138: 1000 | J138: 1000
B140: General Security usage rate
B141: =B$126 -> Small consumption customers | C141: =C$30 -> % | G141: 0.6 | H141: =G141 -> 0.6 | I141: =H141 -> 0.6 | J141: 0.6
B142: =B$127 -> Medium consumption customers | C142: =C$30 -> % | G142: 0.6 | H142: =G142 -> 0.6 | I142: 0.6 | J142: 0.6
B143: =B$128 -> Large consumption customers | C143: =C$30 -> % | G143: 0.6 | H143: =G143 -> 0.6 | I143: 0.6 | J143: 0.6

Sheet 2021 Determination Charges
B2: ="3. "&'2021 Determination Revenue'!$F$19&" DETERMINATION CHARGES, "&$G$14 -> 3. 2021 DETERMINATION CHARGES, $2020-21
B3: ="This worksheet records the charges under the "&'2021 Determination Revenue'!$C$13&" Determination." -> This worksheet records the charges under the 2021 Determination.
B5: List of tables | F5: Row number
B6: =B12 -> TABLE 3.1 - WaterNSW CHARGES | F6: =ROW(B12) -> 12
B7: =B52 -> TABLE 3.2 - MDBA AND BRC USAGE AND ENTITLEMENT CHARGES | F7: =ROW(B52) -> 52
B8: =B75 -> TABLE 3.3 - FISH RIVER WATER SUPPLY SCHEME CHARGES | F8: =ROW(B75) -> 75
B12: TABLE 3.1 - WaterNSW CHARGES
B13: ='2021 Determination Revenue'!B$20 -> Financial year | C13: ='2021 Determination Revenue'!C$36 -> Units | G13: ='2021 Determination Revenue'!G$20 -> 2021-22 | H13: ='2021 Determination Revenue'!H$20 -> 2022-23 | I13: ='2021 Determination Revenue'!I$20 -> 2023-24 | J13: ='2021 Determination Revenue'!J$20 -> 2024-25 | L13: =G13 -> 2021-22 | M13: =H13 -> 2022-23 | N13: 2023-24 | O13: 2024-25
G14: ='2021 Determination Revenue'!$G$37 -> $2020-21 | H14: =G14 -> $2020-21 | I14: =H14 -> $2020-21 | J14: $2020-21 | L14: ="$"&L13 -> $2021-22 | M14: $2022-23 | N14: $2023-24 | O14: $2024-25
B16: Usage Charge
B17: ='2021 Determination Revenue'!$B$41 -> Border | C17: =Outputs!$C$33 -> $/ML | G17: 6.951963013 | H17: 6.951963013 | I17: 6.951963013 | J17: 6.951963013 | L17: =ROUND(G17*'2021 Determination Revenue'!$G$30,2) -> 7.03 | M17: =ROUND(ROUND(H17*'2021 Determination Revenue'!$G$30,2)*'2021 Determination Revenue'!H$29,2) -> 7.39 | N17: =ROUND(ROUND(I17*'2021 Determination Revenue'!$G$30,2)*'2021 Determination Revenue'!I$29,2) -> 7.88 | O17: =ROUND(ROUND(J17*'2021 Determination Revenue'!$G$30,2)*'2021 Determination Revenue'!J$29,2) -> 7.88
B18: ='2021 Determination Revenue'!$B$42 -> Gwydir | C18: =Outputs!$C$33 -> $/ML | G18: 17.00032167 | H18: 17.00032167 | I18: 17.00032167 | J18: 17.00032167 | L18: =ROUND(G18*'2021 Determination Revenue'!$G$30,2) -> 17.19 | M18: =ROUND(ROUND(H18*'2021 Determination Revenue'!$G$30,2)*'2021 Determination Revenue'!H$29,2) -> 18.07 | N18: =ROUND(ROUND(I18*'2021 Determination Revenue'!$G$30,2)*'2021 Determination Revenue'!I$29,2) -> 19.27 | O18: =ROUND(ROUND(J18*'2021 Determination Revenue'!$G$30,2)*'2021 Determination Revenue'!J$29,2) -> 19.27
B19: ='2021 Determination Revenue'!$B$43 -> Namoi | C19: =Outputs!$C$33 -> $/ML | G19: 30.541139 | H19: 30.541139 | I19: 30.541139 | J19: 30.541139 | L19: =ROUND(G19*'2021 Determination Revenue'!$G$30,2) -> 30.88 | M19: =ROUND(ROUND(H19*'2021 Determination Revenue'!$G$30,2)*'2021 Determination Revenue'!H$29,2) -> 32.45 | N19: =ROUND(ROUND(I19*'2021 Determination Revenue'!$G$30,2)*'2021 Determination Revenue'!I$29,2) -> 34.62 | O19: =ROUND(ROUND(J19*'2021 Determination Revenue'!$G$30,2)*'2021 Determination Revenue'!J$29,2) -> 34.62
B20: ='2021 Determination Revenue'!$B$44 -> Peel | C20: =Outputs!$C$33 -> $/ML | G20: 24.24338547 | H20: 24.24338547 | I20: 24.24338547 | J20: 24.24338547 | L20: =ROUND(G20*'2021 Determination Revenue'!$G$30,2) -> 24.51 | M20: =ROUND(ROUND(H20*'2021 Determination Revenue'!$G$30,2)*'2021 Determination Revenue'!H$29,2) -> 25.76 | N20: =ROUND(ROUND(I20*'2021 Determination Revenue'!$G$30,2)*'2021 Determination Revenue'!I$29,2) -> 27.48 | O20: =ROUND(ROUND(J20*'2021 Determination Revenue'!$G$30,2)*'2021 Determination Revenue'!J$29,2) -> 27.48
B21: ='2021 Determination Revenue'!$B$45 -> Lachlan | C21: =Outputs!$C$33 -> $/ML | G21: 30.83070827 | H21: 30.83070827 | I21: 30.83070827 | J21: 30.83070827 | L21: =ROUND(G21*'2021 Determination Revenue'!$G$30,2) -> 31.17 | M21: =ROUND(ROUND(H21*'2021 Determination Revenue'!$G$30,2)*'2021 Determination Revenue'!H$29,2) -> 32.76 | N21: =ROUND(ROUND(I21*'2021 Determination Revenue'!$G$30,2)*'2021 Determination Revenue'!I$29,2) -> 34.94 | O21: =ROUND(ROUND(J21*'2021 Determination Revenue'!$G$30,2)*'2021 Determination Revenue'!J$29,2) -> 34.94
B22: ='2021 Determination Revenue'!$B$46 -> Macquarie | C22: =Outputs!$C$33 -> $/ML | G22: 21.40375101 | H22: 21.40375101 | I22: 21.40375101 | J22: 21.40375101 | L22: =ROUND(G22*'2021 Determination Revenue'!$G$30,2) -> 21.64 | M22: =ROUND(ROUND(H22*'2021 Determination Revenue'!$G$30,2)*'2021 Determination Revenue'!H$29,2) -> 22.74 | N22: =ROUND(ROUND(I22*'2021 Determination Revenue'!$G$30,2)*'2021 Determination Revenue'!I$29,2) -> 24.26 | O22: =ROUND(ROUND(J22*'2021 Determination Revenue'!$G$30,2)*'2021 Determination Revenue'!J$29,2) -> 24.26
B23: ='2021 Determination Revenue'!$B$47 -> Murray | C23: =Outputs!$C$33 -> $/ML | G23: 2.897196979 | H23: 2.897196979 | I23: 2.897196979 | J23: 2.897196979 | L23: =ROUND(G23*'2021 Determination Revenue'!$G$30,2) -> 2.93 | M23: =ROUND(ROUND(H23*'2021 Determination Revenue'!$G$30,2)*'2021 Determination Revenue'!H$29,2) -> 3.08 | N23: =ROUND(ROUND(I23*'2021 Determination Revenue'!$G$30,2)*'2021 Determination Revenue'!I$29,2) -> 3.28 | O23: =ROUND(ROUND(J23*'2021 Determination Revenue'!$G$30,2)*'2021 Determination Revenue'!J$29,2) -> 3.28
B24: ='2021 Determination Revenue'!$B$48 -> Murrumbidgee | C24: =Outputs!$C$33 -> $/ML | G24: 4.914336975 | H24: 4.914336975 | I24: 4.914336975 | J24: 4.914336975 | L24: =ROUND(G24*'2021 Determination Revenue'!$G$30,2) -> 4.97 | M24: =ROUND(ROUND(H24*'2021 Determination Revenue'!$G$30,2)*'2021 Determination Revenue'!H$29,2) -> 5.22 | N24: =ROUND(ROUND(I24*'2021 Determination Revenue'!$G$30,2)*'2021 Determination Revenue'!I$29,2) -> 5.57 | O24: =ROUND(ROUND(J24*'2021 Determination Revenue'!$G$30,2)*'2021 Determination Revenue'!J$29,2) -> 5.57
B25: ='2021 Determination Revenue'!$B$49 -> Lowbidgee | C25: =Outputs!$C$33 -> $/ML | G25: 0 | H25: 0 | I25: 0 | J25: 0 | L25: =ROUND(G25*'2021 Determination Revenue'!$G$30,2) -> 0 | M25: =ROUND(ROUND(H25*'2021 Determination Revenue'!$G$30,2)*'2021 Determination Revenue'!H$29,2) -> 0 | N25: =ROUND(ROUND(I25*'2021 Determination Revenue'!$G$30,2)*'2021 Determination Revenue'!I$29,2) -> 0 | O25: =ROUND(ROUND(J25*'2021 Determination Revenue'!$G$30,2)*'2021 Determination Revenue'!J$29,2) -> 0
B27: General Security & Supplementary Entitlement Charge (fixed)
B28: ='2021 Determination Revenue'!$B$41 -> Border | C28: =Outputs!$C$33 -> $/ML | G28: 2.382754219 | H28: 2.382754219 | I28: 2.382754219 | J28: 2.382754219 | L28: =ROUND(G28*'2021 Determination Revenue'!$G$30,2) -> 2.41 | M28: =ROUND(ROUND(H28*'2021 Determination Revenue'!$G$30,2)*'2021 Determination Revenue'!H$29,2) -> 2.53 | N28: =ROUND(ROUND(I28*'2021 Determination Revenue'!$G$30,2)*'2021 Determination Revenue'!I$29,2) -> 2.7 | O28: =ROUND(ROUND(J28*'2021 Determination Revenue'!$G$30,2)*'2021 Determination Revenue'!J$29,2) -> 2.7
B29: ='2021 Determination Revenue'!$B$42 -> Gwydir | C29: =Outputs!$C$33 -> $/ML | G29: 3.995423207 | H29: 3.995423207 | I29: 3.995423207 | J29: 3.995423207 | L29: =ROUND(G29*'2021 Determination Revenue'!$G$30,2) -> 4.04 | M29: =ROUND(ROUND(H29*'2021 Determination Revenue'!$G$30,2)*'2021 Determination Revenue'!H$29,2) -> 4.25 | N29: =ROUND(ROUND(I29*'2021 Determination Revenue'!$G$30,2)*'2021 Determination Revenue'!I$29,2) -> 4.53 | O29: =ROUND(ROUND(J29*'2021 Determination Revenue'!$G$30,2)*'2021 Determination Revenue'!J$29,2) -> 4.53
B30: ='2021 Determination Revenue'!$B$43 -> Namoi | C30: =Outputs!$C$33 -> $/ML | G30: 9.98824506 | H30: 9.98824506 | I30: 9.98824506 | J30: 9.98824506 | L30: =ROUND(G30*'2021 Determination Revenue'!$G$30,2) -> 10.1 | M30: =ROUND(ROUND(H30*'2021 Determination Revenue'!$G$30,2)*'2021 Determination Revenue'!H$29,2) -> 10.62 | N30: =ROUND(ROUND(I30*'2021 Determination Revenue'!$G$30,2)*'2021 Determination Revenue'!I$29,2) -> 11.32 | O30: =ROUND(ROUND(J30*'2021 Determination Revenue'!$G$30,2)*'2021 Determination Revenue'!J$29,2) -> 11.32
B31: ='2021 Determination Revenue'!$B$44 -> Peel | C31: =Outputs!$C$33 -> $/ML | G31: 5.752000874 | H31: 5.752000874 | I31: 5.752000874 | J31: 5.752000874 | L31: =ROUND(G31*'2021 Determination Revenue'!$G$30,2) -> 5.82 | M31: =ROUND(ROUND(H31*'2021 Determination Revenue'!$G$30,2)*'2021 Determination Revenue'!H$29,2) -> 6.12 | N31: =ROUND(ROUND(I31*'2021 Determination Revenue'!$G$30,2)*'2021 Determination Revenue'!I$29,2) -> 6.52 | O31: =ROUND(ROUND(J31*'2021 Determination Revenue'!$G$30,2)*'2021 Determination Revenue'!J$29,2) -> 6.52
B32: ='2021 Determination Revenue'!$B$45 -> Lachlan | C32: =Outputs!$C$33 -> $/ML | G32: 3.670163327 | H32: 3.670163327 | I32: 3.670163327 | J32: 3.670163327 | L32: =ROUND(G32*'2021 Determination Revenue'!$G$30,2) -> 3.71 | M32: =ROUND(ROUND(H32*'2021 Determination Revenue'!$G$30,2)*'2021 Determination Revenue'!H$29,2) -> 3.9 | N32: =ROUND(ROUND(I32*'2021 Determination Revenue'!$G$30,2)*'2021 Determination Revenue'!I$29,2) -> 4.16 | O32: =ROUND(ROUND(J32*'2021 Determination Revenue'!$G$30,2)*'2021 Determination Revenue'!J$29,2) -> 4.16
B33: ='2021 Determination Revenue'!$B$46 -> Macquarie | C33: =Outputs!$C$33 -> $/ML | G33: 3.90190304 | H33: 3.90190304 | I33: 3.90190304 | J33: 3.90190304 | L33: =ROUND(G33*'2021 Determination Revenue'!$G$30,2) -> 3.94 | M33: =ROUND(ROUND(H33*'2021 Determination Revenue'!$G$30,2)*'2021 Determination Revenue'!H$29,2) -> 4.14 | N33: =ROUND(ROUND(I33*'2021 Determination Revenue'!$G$30,2)*'2021 Determination Revenue'!I$29,2) -> 4.42 | O33: =ROUND(ROUND(J33*'2021 Determination Revenue'!$G$30,2)*'2021 Determination Revenue'!J$29,2) -> 4.42
B34: ='2021 Determination Revenue'!$B$47 -> Murray | C34: =Outputs!$C$33 -> $/ML | G34: 0.9823326053 | H34: 0.9823326053 | I34: 0.9823326053 | J34: 0.9823326053 | L34: =ROUND(G34*'2021 Determination Revenue'!$G$30,2) -> 0.99 | M34: =ROUND(ROUND(H34*'2021 Determination Revenue'!$G$30,2)*'2021 Determination Revenue'!H$29,2) -> 1.04 | N34: =ROUND(ROUND(I34*'2021 Determination Revenue'!$G$30,2)*'2021 Determination Revenue'!I$29,2) -> 1.11 | O34: =ROUND(ROUND(J34*'2021 Determination Revenue'!$G$30,2)*'2021 Determination Revenue'!J$29,2) -> 1.11
B35: ='2021 Determination Revenue'!$B$48 -> Murrumbidgee | C35: =Outputs!$C$33 -> $/ML | G35: 1.417164848 | H35: 1.417164848 | I35: 1.417164848 | J35: 1.417164848 | L35: =ROUND(G35*'2021 Determination Revenue'!$G$30,2) -> 1.43 | M35: =ROUND(ROUND(H35*'2021 Determination Revenue'!$G$30,2)*'2021 Determination Revenue'!H$29,2) -> 1.5 | N35: =ROUND(ROUND(I35*'2021 Determination Revenue'!$G$30,2)*'2021 Determination Revenue'!I$29,2) -> 1.6 | O35: =ROUND(ROUND(J35*'2021 Determination Revenue'!$G$30,2)*'2021 Determination Revenue'!J$29,2) -> 1.6
B36: ='2021 Determination Revenue'!$B$49 -> Lowbidgee | C36: =Outputs!$C$33 -> $/ML | G36: 1.704125639 | H36: 1.704125639 | I36: 1.704125639 | J36: 1.704125639 | L36: =ROUND(G36*'2021 Determination Revenue'!$G$30,2) -> 1.72 | M36: =ROUND(ROUND(H36*'2021 Determination Revenue'!$G$30,2)*'2021 Determination Revenue'!H$29,2) -> 1.81 | N36: =ROUND(ROUND(I36*'2021 Determination Revenue'!$G$30,2)*'2021 Determination Revenue'!I$29,2) -> 1.93 | O36: =ROUND(ROUND(J36*'2021 Determination Revenue'!$G$30,2)*'2021 Determination Revenue'!J$29,2) -> 1.93
B38: High Security Entitlement Charge (fixed)
B39: ='2021 Determination Revenue'!$B$41 -> Border | C39: =Outputs!$C$33 -> $/ML | G39: 6.508920069 | H39: 6.508920069 | I39: 6.508920069 | J39: 6.508920069 | L39: =ROUND(G39*'2021 Determination Revenue'!$G$30,2) -> 6.58 | M39: =ROUND(ROUND(H39*'2021 Determination Revenue'!$G$30,2)*'2021 Determination Revenue'!H$29,2) -> 6.92 | N39: =ROUND(ROUND(I39*'2021 Determination Revenue'!$G$30,2)*'2021 Determination Revenue'!I$29,2) -> 7.38 | O39: =ROUND(ROUND(J39*'2021 Determination Revenue'!$G$30,2)*'2021 Determination Revenue'!J$29,2) -> 7.38
B40: ='2021 Determination Revenue'!$B$42 -> Gwydir | C40: =Outputs!$C$33 -> $/ML | G40: 17.21468309 | H40: 17.21468309 | I40: 17.21468309 | J40: 17.21468309 | L40: =ROUND(G40*'2021 Determination Revenue'!$G$30,2) -> 17.4 | M40: =ROUND(ROUND(H40*'2021 Determination Revenue'!$G$30,2)*'2021 Determination Revenue'!H$29,2) -> 18.29 | N40: =ROUND(ROUND(I40*'2021 Determination Revenue'!$G$30,2)*'2021 Determination Revenue'!I$29,2) -> 19.51 | O40: =ROUND(ROUND(J40*'2021 Determination Revenue'!$G$30,2)*'2021 Determination Revenue'!J$29,2) -> 19.51
B41: ='2021 Determination Revenue'!$B$43 -> Namoi | C41: =Outputs!$C$33 -> $/ML | G41: 28.61710191 | H41: 28.61710191 | I41: 28.61710191 | J41: 28.61710191 | L41: =ROUND(G41*'2021 Determination Revenue'!$G$30,2) -> 28.93 | M41: =ROUND(ROUND(H41*'2021 Determination Revenue'!$G$30,2)*'2021 Determination Revenue'!H$29,2) -> 30.41 | N41: =ROUND(ROUND(I41*'2021 Determination Revenue'!$G$30,2)*'2021 Determination Revenue'!I$29,2) -> 32.43 | O41: =ROUND(ROUND(J41*'2021 Determination Revenue'!$G$30,2)*'2021 Determination Revenue'!J$29,2) -> 32.43
B42: ='2021 Determination Revenue'!$B$44 -> Peel | C42: =Outputs!$C$33 -> $/ML | G42: 60.69634946 | H42: 60.69634946 | I42: 60.69634946 | J42: 60.69634946 | L42: =ROUND(G42*'2021 Determination Revenue'!$G$30,2) -> 61.36 | M42: =ROUND(ROUND(H42*'2021 Determination Revenue'!$G$30,2)*'2021 Determination Revenue'!H$29,2) -> 64.49 | N42: =ROUND(ROUND(I42*'2021 Determination Revenue'!$G$30,2)*'2021 Determination Revenue'!I$29,2) -> 68.78 | O42: =ROUND(ROUND(J42*'2021 Determination Revenue'!$G$30,2)*'2021 Determination Revenue'!J$29,2) -> 68.78
B43: ='2021 Determination Revenue'!$B$45 -> Lachlan | C43: =Outputs!$C$33 -> $/ML | G43: 24.82310317 | H43: 24.82310317 | I43: 24.82310317 | J43: 24.82310317 | L43: =ROUND(G43*'2021 Determination Revenue'!$G$30,2) -> 25.1 | M43: =ROUND(ROUND(H43*'2021 Determination Revenue'!$G$30,2)*'2021 Determination Revenue'!H$29,2) -> 26.38 | N43: =ROUND(ROUND(I43*'2021 Determination Revenue'!$G$30,2)*'2021 Determination Revenue'!I$29,2) -> 28.14 | O43: =ROUND(ROUND(J43*'2021 Determination Revenue'!$G$30,2)*'2021 Determination Revenue'!J$29,2) -> 28.14
B44: ='2021 Determination Revenue'!$B$46 -> Macquarie | C44: =Outputs!$C$33 -> $/ML | G44: 19.95603855 | H44: 19.95603855 | I44: 19.95603855 | J44: 19.95603855 | L44: =ROUND(G44*'2021 Determination Revenue'!$G$30,2) -> 20.18 | M44: =ROUND(ROUND(H44*'2021 Determination Revenue'!$G$30,2)*'2021 Determination Revenue'!H$29,2) -> 21.21 | N44: =ROUND(ROUND(I44*'2021 Determination Revenue'!$G$30,2)*'2021 Determination Revenue'!I$29,2) -> 22.62 | O44: =ROUND(ROUND(J44*'2021 Determination Revenue'!$G$30,2)*'2021 Determination Revenue'!J$29,2) -> 22.62
B45: ='2021 Determination Revenue'!$B$47 -> Murray | C45: =Outputs!$C$33 -> $/ML | G45: 2.230521001 | H45: 2.230521001 | I45: 2.230521001 | J45: 2.230521001 | L45: =ROUND(G45*'2021 Determination Revenue'!$G$30,2) -> 2.26 | M45: =ROUND(ROUND(H45*'2021 Determination Revenue'!$G$30,2)*'2021 Determination Revenue'!H$29,2) -> 2.38 | N45: =ROUND(ROUND(I45*'2021 Determination Revenue'!$G$30,2)*'2021 Determination Revenue'!I$29,2) -> 2.53 | O45: =ROUND(ROUND(J45*'2021 Determination Revenue'!$G$30,2)*'2021 Determination Revenue'!J$29,2) -> 2.53
B46: ='2021 Determination Revenue'!$B$48 -> Murrumbidgee | C46: =Outputs!$C$33 -> $/ML | G46: 4.124045744 | H46: 4.124045744 | I46: 4.124045744 | J46: 4.124045744 | L46: =ROUND(G46*'2021 Determination Revenue'!$G$30,2) -> 4.17 | M46: =ROUND(ROUND(H46*'2021 Determination Revenue'!$G$30,2)*'2021 Determination Revenue'!H$29,2) -> 4.38 | N46: =ROUND(ROUND(I46*'2021 Determination Revenue'!$G$30,2)*'2021 Determination Revenue'!I$29,2) -> 4.67 | O46: =ROUND(ROUND(J46*'2021 Determination Revenue'!$G$30,2)*'2021 Determination Revenue'!J$29,2) -> 4.67
B47: ='2021 Determination Revenue'!$B$49 -> Lowbidgee | C47: =Outputs!$C$33 -> $/ML | G47: 0 | H47: 0 | I47: 0 | J47: 0 | L47: =ROUND(G47*'2021 Determination Revenue'!$G$30,2) -> 0 | M47: =ROUND(ROUND(H47*'2021 Determination Revenue'!$G$30,2)*'2021 Determination Revenue'!H$29,2) -> 0 | N47: =ROUND(ROUND(I47*'2021 Determination Revenue'!$G$30,2)*'2021 Determination Revenue'!I$29,2) -> 0 | O47: =ROUND(ROUND(J47*'2021 Determination Revenue'!$G$30,2)*'2021 Determination Revenue'!J$29,2) -> 0
B49: Source: | C49: 2021 Review pricing model, Price Scenario worksheet | H49: Table 11.3 (from row 162) | J49: D21/15629
B52: TABLE 3.2 - MDBA AND BRC USAGE AND ENTITLEMENT CHARGES
B53: ='2021 Determination Revenue'!B$20 -> Financial year | C53: ='2021 Determination Revenue'!C$36 -> Units | G53: =G$13 -> 2021-22 | H53: =H$13 -> 2022-23 | I53: 2023-24 | J53: 2024-25 | L53: =L$13 -> 2021-22 | M53: =M$13 -> 2022-23 | N53: =N$13 -> 2023-24 | O53: =O$13 -> 2024-25
G54: =G$14 -> $2020-21 | H54: =H$14 -> $2020-21 | I54: $2020-21 | J54: $2020-21 | L54: =L$14 -> $2021-22 | M54: =M$14 -> $2022-23 | N54: =N$14 -> $2023-24 | O54: =O$14 -> $2024-25
B56: Usage charges
B57: ='2021 Determination Revenue'!$B$41 -> Border | C57: =Outputs!$C$33 -> $/ML | G57: 0.8531212502 | H57: 0.8531212502 | I57: 0.8531212502 | J57: 0.8531212502 | L57: =ROUND(G57*'2021 Determination Revenue'!$G$30,2) -> 0.86 | M57: =ROUND(ROUND(H57*'2021 Determination Revenue'!$G$30,2)*'2021 Determination Revenue'!H$29,2) -> 0.9 | N57: =ROUND(ROUND(I57*'2021 Determination Revenue'!$G$30,2)*'2021 Determination Revenue'!I$29,2) -> 0.96 | O57: =ROUND(ROUND(J57*'2021 Determination Revenue'!$G$30,2)*'2021 Determination Revenue'!J$29,2) -> 0.96
B58: ='2021 Determination Revenue'!$B$47 -> Murray | C58: =Outputs!$C$33 -> $/ML | G58: 1.828758239 | H58: 1.828758239 | I58: 1.828758239 | J58: 1.828758239 | L58: =ROUND(G58*'2021 Determination Revenue'!$G$30,2) -> 1.85 | M58: =ROUND(ROUND(H58*'2021 Determination Revenue'!$G$30,2)*'2021 Determination Revenue'!H$29,2) -> 1.94 | N58: =ROUND(ROUND(I58*'2021 Determination Revenue'!$G$30,2)*'2021 Determination Revenue'!I$29,2) -> 2.07 | O58: =ROUND(ROUND(J58*'2021 Determination Revenue'!$G$30,2)*'2021 Determination Revenue'!J$29,2) -> 2.07
B59: ='2021 Determination Revenue'!$B$48 -> Murrumbidgee | C59: =Outputs!$C$33 -> $/ML | G59: 0.3653793286 | H59: 0.3653793286 | I59: 0.3653793286 | J59: 0.3653793286 | L59: =ROUND(G59*'2021 Determination Revenue'!$G$30,2) -> 0.37 | M59: =ROUND(ROUND(H59*'2021 Determination Revenue'!$G$30,2)*'2021 Determination Revenue'!H$29,2) -> 0.39 | N59: =ROUND(ROUND(I59*'2021 Determination Revenue'!$G$30,2)*'2021 Determination Revenue'!I$29,2) -> 0.41 | O59: =ROUND(ROUND(J59*'2021 Determination Revenue'!$G$30,2)*'2021 Determination Revenue'!J$29,2) -> 0.41
B61: General security entitlement
B62: ='2021 Determination Revenue'!$B$41 -> Border | C62: =Outputs!$C$33 -> $/ML | G62: 1.750815175 | H62: 1.750815175 | I62: 1.750815175 | J62: 1.750815175 | L62: =ROUND(G62*'2021 Determination Revenue'!$G$30,2) -> 1.77 | M62: =ROUND(ROUND(H62*'2021 Determination Revenue'!$G$30,2)*'2021 Determination Revenue'!H$29,2) -> 1.86 | N62: =ROUND(ROUND(I62*'2021 Determination Revenue'!$G$30,2)*'2021 Determination Revenue'!I$29,2) -> 1.98 | O62: =ROUND(ROUND(J62*'2021 Determination Revenue'!$G$30,2)*'2021 Determination Revenue'!J$29,2) -> 1.98
B63: ='2021 Determination Revenue'!$B$47 -> Murray | C63: =Outputs!$C$33 -> $/ML | G63: 3.762410717 | H63: 3.762410717 | I63: 3.762410717 | J63: 3.762410717 | L63: =ROUND(G63*'2021 Determination Revenue'!$G$30,2) -> 3.8 | M63: =ROUND(ROUND(H63*'2021 Determination Revenue'!$G$30,2)*'2021 Determination Revenue'!H$29,2) -> 3.99 | N63: =ROUND(ROUND(I63*'2021 Determination Revenue'!$G$30,2)*'2021 Determination Revenue'!I$29,2) -> 4.26 | O63: =ROUND(ROUND(J63*'2021 Determination Revenue'!$G$30,2)*'2021 Determination Revenue'!J$29,2) -> 4.26
B64: ='2021 Determination Revenue'!$B$48 -> Murrumbidgee | C64: =Outputs!$C$33 -> $/ML | G64: 0.6327081647 | H64: 0.6327081647 | I64: 0.6327081647 | J64: 0.6327081647 | L64: =ROUND(G64*'2021 Determination Revenue'!$G$30,2) -> 0.64 | M64: =ROUND(ROUND(H64*'2021 Determination Revenue'!$G$30,2)*'2021 Determination Revenue'!H$29,2) -> 0.67 | N64: =ROUND(ROUND(I64*'2021 Determination Revenue'!$G$30,2)*'2021 Determination Revenue'!I$29,2) -> 0.72 | O64: =ROUND(ROUND(J64*'2021 Determination Revenue'!$G$30,2)*'2021 Determination Revenue'!J$29,2) -> 0.72
B66: High security entitlement
B67: ='2021 Determination Revenue'!$B$41 -> Border | C67: =Outputs!$C$33 -> $/ML | G67: 4.782665345 | H67: 4.782665345 | I67: 4.782665345 | J67: 4.782665345 | L67: =ROUND(G67*'2021 Determination Revenue'!$G$30,2) -> 4.84 | M67: =ROUND(ROUND(H67*'2021 Determination Revenue'!$G$30,2)*'2021 Determination Revenue'!H$29,2) -> 5.09 | N67: =ROUND(ROUND(I67*'2021 Determination Revenue'!$G$30,2)*'2021 Determination Revenue'!I$29,2) -> 5.43 | O67: =ROUND(ROUND(J67*'2021 Determination Revenue'!$G$30,2)*'2021 Determination Revenue'!J$29,2) -> 5.43
B68: ='2021 Determination Revenue'!$B$47 -> Murray | C68: =Outputs!$C$33 -> $/ML | G68: 8.543069904 | H68: 8.543069904 | I68: 8.543069904 | J68: 8.543069904 | L68: =ROUND(G68*'2021 Determination Revenue'!$G$30,2) -> 8.64 | M68: =ROUND(ROUND(H68*'2021 Determination Revenue'!$G$30,2)*'2021 Determination Revenue'!H$29,2) -> 9.08 | N68: =ROUND(ROUND(I68*'2021 Determination Revenue'!$G$30,2)*'2021 Determination Revenue'!I$29,2) -> 9.69 | O68: =ROUND(ROUND(J68*'2021 Determination Revenue'!$G$30,2)*'2021 Determination Revenue'!J$29,2) -> 9.69
B69: ='2021 Determination Revenue'!$B$48 -> Murrumbidgee | C69: =Outputs!$C$33 -> $/ML | G69: 1.841223636 | H69: 1.841223636 | I69: 1.841223636 | J69: 1.841223636 | L69: =ROUND(G69*'2021 Determination Revenue'!$G$30,2) -> 1.86 | M69: =ROUND(ROUND(H69*'2021 Determination Revenue'!$G$30,2)*'2021 Determination Revenue'!H$29,2) -> 1.95 | N69: =ROUND(ROUND(I69*'2021 Determination Revenue'!$G$30,2)*'2021 Determination Revenue'!I$29,2) -> 2.09 | O69: =ROUND(ROUND(J69*'2021 Determination Revenue'!$G$30,2)*'2021 Determination Revenue'!J$29,2) -> 2.09
B72: Source: | C72: 2021 Review pricing model, Price Scenario worksheet | H72: Table 11.3 (from row 206) | I72: =$J$49 -> D21/15629
B75: TABLE 3.3 - FISH RIVER WATER SUPPLY SCHEME CHARGES
B76: ='2021 Determination Revenue'!B$20 -> Financial year | C76: ='2021 Determination Revenue'!C$36 -> Units | G76: =G$13 -> 2021-22 | H76: =H$13 -> 2022-23 | I76: 2023-24 | J76: 2024-25 | L76: =L13 -> 2021-22 | M76: =M13 -> 2022-23 | N76: 2023-24 | O76: 2024-25
G77: =G$14 -> $2020-21 | H77: =H$14 -> $2020-21 | I77: $2020-21 | J77: $2020-21 | L77: =$L$14 -> $2021-22 | M77: =$M$14 -> $2022-23 | N77: =N$14 -> $2023-24 | O77: =O$14 -> $2024-25
B79: Minimum Annual Quantity (MAQ)
B80: ='Updated Volumes'!B$31 -> Energy Australia | C80: =Outputs!$C$154 -> $/kL | G80: 0.4801026975 | H80: 0.4801026975 | I80: 0.4801026975 | J80: 0.4801026975 | L80: =ROUND(G80*'2021 Determination Revenue'!$G$30,2) -> 0.49 | M80: =ROUND(ROUND(H80*'2021 Determination Revenue'!$G$30,2)*'2021 Determination Revenue'!H$29,2) -> 0.51 | N80: =ROUND(ROUND(I80*'2021 Determination Revenue'!$G$30,2)*'2021 Determination Revenue'!I$29,2) -> 0.55 | O80: =ROUND(ROUND(J80*'2021 Determination Revenue'!$G$30,2)*'2021 Determination Revenue'!J$29,2) -> 0.55
B81: ='Updated Volumes'!B$33 -> Minor customers (raw) | C81: =Outputs!$C$154 -> $/kL | G81: 0.4801026975 | H81: 0.4801026975 | I81: 0.4801026975 | J81: 0.4801026975 | L81: =ROUND(G81*'2021 Determination Revenue'!$G$30,2) -> 0.49 | M81: =ROUND(ROUND(H81*'2021 Determination Revenue'!$G$30,2)*'2021 Determination Revenue'!H$29,2) -> 0.51 | N81: =ROUND(ROUND(I81*'2021 Determination Revenue'!$G$30,2)*'2021 Determination Revenue'!I$29,2) -> 0.55 | O81: =ROUND(ROUND(J81*'2021 Determination Revenue'!$G$30,2)*'2021 Determination Revenue'!J$29,2) -> 0.55
B82: ='Updated Volumes'!B$34 -> Minor customers (filtered) | C82: =Outputs!$C$154 -> $/kL | G82: 0.846921779 | H82: 0.846921779 | I82: 0.846921779 | J82: 0.846921779 | L82: =ROUND(G82*'2021 Determination Revenue'!$G$30,2) -> 0.86 | M82: =ROUND(ROUND(H82*'2021 Determination Revenue'!$G$30,2)*'2021 Determination Revenue'!H$29,2) -> 0.9 | N82: =ROUND(ROUND(I82*'2021 Determination Revenue'!$G$30,2)*'2021 Determination Revenue'!I$29,2) -> 0.96 | O82: =ROUND(ROUND(J82*'2021 Determination Revenue'!$G$30,2)*'2021 Determination Revenue'!J$29,2) -> 0.96
B84: Usage up to MAQ
B85: ='Updated Volumes'!B$31 -> Energy Australia | C85: =Outputs!$C$154 -> $/kL | G85: 0.3246381535 | H85: 0.3246381535 | I85: 0.3246381535 | J85: 0.3246381535 | L85: =ROUND(G85*'2021 Determination Revenue'!$G$30,2) -> 0.33 | M85: =ROUND(ROUND(H85*'2021 Determination Revenue'!$G$30,2)*'2021 Determination Revenue'!H$29,2) -> 0.35 | N85: =ROUND(ROUND(I85*'2021 Determination Revenue'!$G$30,2)*'2021 Determination Revenue'!I$29,2) -> 0.37 | O85: =ROUND(ROUND(J85*'2021 Determination Revenue'!$G$30,2)*'2021 Determination Revenue'!J$29,2) -> 0.37
B86: ='Updated Volumes'!B$33 -> Minor customers (raw) | C86: =Outputs!$C$154 -> $/kL | G86: 0.3246381535 | H86: 0.3246381535 | I86: 0.3246381535 | J86: 0.3246381535 | L86: =ROUND(G86*'2021 Determination Revenue'!$G$30,2) -> 0.33 | M86: =ROUND(ROUND(H86*'2021 Determination Revenue'!$G$30,2)*'2021 Determination Revenue'!H$29,2) -> 0.35 | N86: =ROUND(ROUND(I86*'2021 Determination Revenue'!$G$30,2)*'2021 Determination Revenue'!I$29,2) -> 0.37 | O86: =ROUND(ROUND(J86*'2021 Determination Revenue'!$G$30,2)*'2021 Determination Revenue'!J$29,2) -> 0.37
B87: ='Updated Volumes'!B$34 -> Minor customers (filtered) | C87: =Outputs!$C$154 -> $/kL | G87: 0.5246381535 | H87: 0.5246381535 | I87: 0.5246381535 | J87: 0.5246381535 | L87: =ROUND(G87*'2021 Determination Revenue'!$G$30,2) -> 0.53 | M87: =ROUND(ROUND(H87*'2021 Determination Revenue'!$G$30,2)*'2021 Determination Revenue'!H$29,2) -> 0.56 | N87: =ROUND(ROUND(I87*'2021 Determination Revenue'!$G$30,2)*'2021 Determination Revenue'!I$29,2) -> 0.59 | O87: =ROUND(ROUND(J87*'2021 Determination Revenue'!$G$30,2)*'2021 Determination Revenue'!J$29,2) -> 0.59
B89: Usage in excess of MAQ
B90: ='Updated Volumes'!B$31 -> Energy Australia | C90: =Outputs!$C$154 -> $/kL | G90: =G80+G85 -> 0.804740851 | H90: =H80+H85 -> 0.804740851 | I90: =I80+I85 -> 0.804740851 | J90: =J80+J85 -> 0.804740851 | L90: =L80+L85 -> 0.82 | M90: =M80+M85 -> 0.86 | N90: =N80+N85 -> 0.92 | O90: 0.92
B91: ='Updated Volumes'!B$33 -> Minor customers (raw) | C91: =Outputs!$C$154 -> $/kL | G91: =G81+G86 -> 0.804740851 | H91: =H81+H86 -> 0.804740851 | I91: 0.804740851 | J91: =J81+J86 -> 0.804740851 | L91: =L81+L86 -> 0.82 | M91: 0.86 | N91: =N81+N86 -> 0.92 | O91: 0.92
B92: ='Updated Volumes'!B$34 -> Minor customers (filtered) | C92: =Outputs!$C$154 -> $/kL | G92: 1.371559933 | H92: 1.371559933 | I92: 1.371559933 | J92: =J82+J87 -> 1.371559933 | L92: =L82+L87 -> 1.39 | M92: 1.46 | N92: =N82+N87 -> 1.55 | O92: 1.55
B94: Source: | C94: 2021 Review pricing model, Price Scenario worksheet | H94: Table 11.4

Sheet Updated Volumes
B2: 1 UPDATED VOLUMES PROVIDED BY WaterNSW
B3: This worksheet records the updated usage and entitlement volumes that are used to calculate updated prices for the Annual Review. WaterNSW provides the updated volumes.
B4: =" - Variable usage charges are calculated using rolling 20-year historical average volumes with a two year lag, eg, "&AC$16&" usage charges are calculated using "&$H$16&" to "&$AA$16&" volumes." -> - Variable usage charges are calculated using rolling 20-year historical average volumes with a two year lag, eg, 2023-24 usage charges are calculated using 2002-03 to 2021-22 volumes.
B5: =" - Entitlement charges are calculated using single year volumes with the same two year lag, eg. "&$AC$16&" entitlement charges are calculated using "&$AA$16&" entitlement volumes." -> - Entitlement charges are calculated using single year volumes with the same two year lag, eg. 2023-24 entitlement charges are calculated using 2021-22 entitlement volumes.
B7: List of tables | AE7: Row number
B8: =B14 -> TABLE 1.1 - USAGE VOLUMES | AE8: =ROW(B14) -> 14
B9: =B38 -> TABLE 1.2 - ENTITLEMENT VOLUMES | AE9: =ROW(B38) -> 38
B10: =B76 -> TABLE 1.3 - ACTUAL WATER ALLOCATIONS | AE10: =ROW(B76) -> 76
B11: =B116 -> TABLE 1.4 - FISH RIVER WATER SUPPLY SCHEME (FRWS) MINOR CUSTOMER NUMBERS AND MAQ ENTITLEMENT VOLUMES | AE11: =ROW(B116) -> 116
B14: TABLE 1.1 - USAGE VOLUMES
B15: Financial year ending 30 June | C15: Units | F15: =G15-1 -> 2001 | G15: 2002 | H15: 2003 | I15: 2004 | J15: 2005 | K15: 2006 | L15: 2007 | M15: 2008 | N15: 2009 | O15: 2010 | P15: 2011 | Q15: 2012 | R15: 2013 | S15: 2014 | T15: 2015 | U15: 2016 | V15: 2017 | W15: 2018 | X15: 2019 | Y15: 2020 | Z15: =AA15-1 -> 2021 | AA15: 2022 | AB15: 2023 | AC15: 2024 | AD15: 2025
B16: Financial year | F16: =F15-1&"-"&RIGHT(F15,2) -> 2000-01 | G16: 2001-02 | H16: 2002-03 | I16: 2003-04 | J16: 2004-05 | K16: 2005-06 | L16: 2006-07 | M16: 2007-08 | N16: 2008-09 | O16: 2009-10 | P16: 2010-11 | Q16: 2011-12 | R16: 2012-13 | S16: 2013-14 | T16: 2014-15 | U16: 2015-16 | V16: 2016-17 | W16: 2017-18 | X16: 2018-19 | Y16: 2019-20 | Z16: 2020-21 | AA16: =AA15-1&"-"&RIGHT(AA15,2) -> 2021-22 | AB16: =AB15-1&"-"&RIGHT(AB15,2) -> 2022-23 | AC16: 2023-24 | AD16: 2024-25
F17: Actual | G17: =$F$17 -> Actual | H17: =$F$17 -> Actual | I17: Actual | J17: Actual | K17: Actual | L17: Actual | M17: Actual | N17: Actual | O17: Actual | P17: Actual | Q17: Actual | R17: Actual | S17: Actual | T17: Actual | U17: Actual | V17: Actual | W17: Actual | X17: Actual | Y17: Actual | Z17: Actual | AA17: Actual | AB17: Estimate | AC17: Forecast | AD17: Forecast
B19: Usage Volume
B20: Border | C20: ML | F20: 231793 | G20: 182622 | H20: 123803 | I20: 100542.36 | J20: 107564 | K20: 134417 | L20: 131934 | M20: 112269 | N20: 117688 | O20: 110391.2 | P20: 187024.6 | Q20: 160312 | R20: 220696 | S20: 197467.6 | T20: 41672.9 | U20: 100403.8 | V20: 232303.3 | W20: 139604.9 | X20: 145591.3 | Y20: 10963.5 | Z20: 109569.2 | AA20: 102210.1 | AB20: 80000 | AC20: 129321.388 | AG20: 2023-24 is equal to the 20-year rolling average of actual water sales (with a two year lag) from 2002-03 to 2021-22.
B21: Gwydir | C21: =C$20 -> ML | F21: 425315 | G21: 443145 | H21: 278986 | I21: 159250 | J21: 154840 | K21: 218496 | L21: 129467 | M21: 79132 | N21: 143199 | O21: 46959 | P21: 245148 | Q21: 200724.1 | R21: 428699.4 | S21: 408995.4 | T21: 153199.6 | U21: 85020.5 | V21: 332713 | W21: 315045.7 | X21: 121129.9 | Y21: 40316.9 | Z21: 202432.3 | AA21: 305373.6 | AB21: 180000 | AC21: 202456.37 | AG21: The recent severe rainfall and flood events in NSW has created significant uncertainty in 2022-23 demand. WaterNSW’s forecast of expected demand for the 2022-23 financial year is based on it’s estimated demand under the ‘minimum scenario’, which considers: • the amount of water remaining in our customers’ accounts; • the BoM’s forecast to the end of the financial year, including the extent to which rainfall may suppress demand; • water usage trends observed in similar seasons’ in the past; and • Verbal information on expected usage from key/large customers. Usage from 2000-01 to 2003-04 for Murray and Murrumbidgee have been updated for an updated estimate of interstate trade usage.
B22: Namoi | C22: =C$20 -> ML | F22: 248842.49 | G22: 280339.88 | H22: 236853.11 | I22: 80652.71 | J22: 96650 | K22: 141325.3 | L22: 66558.5 | M22: 51211.6 | N22: 97482 | O22: 75152 | P22: 149958 | Q22: 128271.7 | R22: 281246.7 | S22: 271541.5 | T22: 66353.9 | U22: 38334.8 | V22: 213598 | W22: 180155.6 | X22: 47490.3 | Y22: 12800.9 | Z22: 118795.6 | AA22: 151626.6 | AB22: 102000 | AC22: 125302.941
B23: Peel | C23: ML | F23: 10241 | G23: 14671 | H23: 21805 | I23: 13325 | J23: 15165 | K23: 14753 | L23: 9718 | M23: 9080 | N23: 10183 | O23: 17517 | P23: 6915 | Q23: 4218.7 | R23: 13317.1 | S23: 17412.7 | T23: 6052.9 | U23: 11011.5 | V23: 10365.9 | W23: 22083.99 | X23: 18581.8 | Y23: 6081.5 | Z23: 6339.3 | AA23: 7136 | AB23: 6000 | AC23: 12053.1195
B24: Lachlan | C24: ML | F24: 407000 | G24: 439572.22 | H24: 237252.44 | I24: 43509.97 | J24: 21164.7 | K24: 112435.93 | L24: 57260.2 | M24: 30776.5 | N24: 27797.6 | O24: 11786.7 | P24: 85698.8 | Q24: 212768.7 | R24: 394082.4 | S24: 248401.7 | T24: 178283.2 | U24: 199222.9 | V24: 206757.9 | W24: 347405.7 | X24: 278111.3 | Y24: 102717.6 | Z24: 151636.8 | AA24: 166042.1 | AB24: 53000 | AC24: 155655.657
B25: Macquarie | C25: ML | F25: 464188 | G25: 545663.54 | H25: 375914.33 | I25: 174168.35 | J25: 63783.6 | K25: 180723 | L25: 204745 | M25: 30867 | N25: 65439 | O25: 73820 | P25: 203146 | Q25: 296617.9 | R25: 558856.4 | S25: 268934.1 | T25: 90827.3 | U25: 109532.9 | V25: 232194 | W25: 399824.6 | X25: 255839.3 | Y25: 55808.4 | Z25: 147647 | AA25: 193972.9 | AB25: 50000 | AC25: 199133.054
B26: Murray | C26: ML | F26: 2416736.117 | G26: 2267882.117 | H26: 1161043.117 | I26: 1498555.117 | J26: 1284123.7 | K26: 1692042.2 | L26: 602536.1 | M26: 289197.3 | N26: 501322.4 | O26: 679952.1 | P26: 960984.6 | Q26: 1848920.7 | R26: 2514563.7 | S26: 2056232.1 | T26: 1764682.1 | U26: 1103217.1 | V26: 1877178.8 | W26: 1701381.1 | X26: 768313.3 | Y26: 634902.8 | Z26: 1482786.1 | AA26: 1700268.5 | AB26: 1225000 | AC26: 1306110.147
B27: Murrumbidgee | C27: ML | F27: 2255163.344 | G27: 2311163.344 | H27: 1787163.344 | I27: 1712163.344 | J27: 1534368.1 | K27: 1938642.7 | L27: 952257.7 | M27: 566132.6 | N27: 929755.5 | O27: 893689.5 | P27: 1364777.6 | Q27: 1739421.3 | R27: 2353487.6 | S27: 1777486.6 | T27: 1883941.8 | U27: 1419128.5 | V27: 1902516.4 | W27: 1715237.9 | X27: 1012155.8 | Y27: 558857.8 | Z27: 1971831.5 | AA27: 1830648.3 | AB27: 1400000 | AC27: 1492183.194
B28: Lowbidgee | C28: ML | R28: 92544 | S28: 8392 | T28: 82587 | U28: 12840 | V28: 59350 | W28: 0 | AG28: Lowbidgee volumes are not used to set variable charges
F29: 0 | G29: 0 | H29: 0 | I29: 0 | J29: 0 | K29: 0 | L29: 0 | M29: 0 | N29: 0 | O29: 0 | P29: 0 | Q29: 0 | R29: 0 | S29: 0 | T29: 0 | U29: 0 | V29: 0 | W29: 0 | X29: 0 | Y29: 0 | Z29: 0
B30: Fish River Water Supply Scheme
B31: Energy Australia | C31: kL | F31: 2466600 | G31: 3215700 | H31: 2318514 | I31: 571786 | J31: 1496500 | K31: 962500 | L31: 2726200 | M31: 1291700 | N31: 630600 | O31: 394900 | P31: 2046800 | Q31: 612100 | R31: 1336800 | S31: 1643600 | T31: 755130 | U31: 2179600 | V31: 1539580 | W31: 5512622 | X31: 4090029 | Y31: 1204987 | Z31: 1092208 | AA31: 548298 | AB31: 330000 | AC31: 1647722.7 | AG31: Note: this excludes estimated usage from Wallarawang Power Station, as per the 2017 Rural Valley Determination. 2023-24 is equal to the 20-year rolling average of actual water sales (with a two year lag) from 2002-03 to 2021-22.
B32: Lithgow City Council (raw) | C32: =C$20 -> ML | AB32: 5.055 | AC32: 5.055 | AG32: Note: Meter billing switched from Energy Australia to LCC for raw water from 06/12/2022, 2022-23 is pra-rata of YTD actuals; 2023-24 assumes the same as 2022-23, equal to the most recent available information.
B33: Minor customers (raw) | C33: ML | F33: 50 | G33: 50 | H33: 66 | I33: 60 | J33: 45 | K33: 64 | L33: 47 | M33: 40 | N33: 42 | O33: 40 | P33: 30 | Q33: 36 | R33: 41 | S33: 54 | T33: 65 | U33: 51.097 | V33: 70.8 | W33: 56.5 | X33: 61.56 | Y33: 53.261 | Z33: 52.74 | AA33: 42.739 | AB33: 42.739 | AC33: 50.93485 | AG33: 2023-24 is equal to the 20-year rolling average of actual water sales (with a two year lag) from 2002-03 to 2021-22.
B34: Minor customers (filtered) | C34: ML | F34: 129 | G34: 129 | H34: 170 | I34: 155 | J34: 116 | K34: 164 | L34: 112 | M34: 110 | N34: 104 | O34: 88 | P34: 97 | Q34: 92 | R34: 65 | S34: 66 | T34: 80 | U34: 73.824 | V34: 65.659 | W34: 75.3 | X34: 82.214 | Y34: 80.654 | Z34: 77.14 | AA34: 68.827 | AB34: 68.827 | AC34: 97.1309 | AG34: 2023-24 is equal to the 20-year rolling average of actual water sales (with a two year lag) from 2002-03 to 2021-22.
B38: TABLE 1.2 - ENTITLEMENT VOLUMES
B39: Financial year | C39: Units | F39: =F$16 -> 2000-01 | G39: 2001-02 | H39: 2002-03 | I39: 2003-04 | J39: 2004-05 | K39: 2005-06 | L39: 2006-07 | M39: 2007-08 | N39: 2008-09 | O39: 2009-10 | P39: 2010-11 | Q39: 2011-12 | R39: 2012-13 | S39: 2013-14 | T39: 2014-15 | U39: 2015-16 | V39: 2016-17 | W39: 2017-18 | X39: 2018-19 | Y39: 2019-20 | Z39: 2020-21 | AA39: =AA$16 -> 2021-22 | AB39: =AB$16 -> 2022-23 | AC39: =AC$16 -> 2023-24 | AD39: =AD$16 -> 2024-25
F40: =F$17 -> Actual | G40: Actual | H40: Actual | I40: Actual | J40: Actual | K40: Actual | L40: Actual | M40: Actual | N40: Actual | O40: Actual | P40: Actual | Q40: Actual | R40: Actual | S40: Actual | T40: Actual | U40: Actual | V40: Actual | W40: Actual | X40: Actual | Y40: Actual | Z40: Actual | AA40: Actual | AB40: Estimate | AC40: Forecast | AD40: Forecast
B41: General security entitlements | AG41: 2022-23 estimates are YTD December values
B42: Border | C42: =C$20 -> ML | T42: 263238 | U42: 263238 | V42: 263218 | W42: 263281 | X42: 263218 | Y42: 263218 | Z42: 263218 | AA42: 263218 | AB42: 263218 | AC42: 263218 | AG42: 2023-24 Forecast is latest full year set of actuals (2021-22), as per IPART's methodology.
B43: Gwydir | C43: ML | T43: 509665 | U43: 509665 | V43: 509665 | W43: 509665 | X43: 509665 | Y43: 509665 | Z43: 509665 | AA43: 509665 | AB43: 509665 | AC43: 509665
B44: Namoi | C44: ML | T44: 256211.5 | U44: 256211.5 | V44: 256211.5 | W44: 256528.7 | X44: 256529 | Y44: 256529 | Z44: 256690.7 | AA44: 256691 | AB44: 256754 | AC44: 256691
B45: Peel | C45: ML | T45: 30428 | U45: 30428 | V45: 30428 | W45: 29635 | X45: 29635 | Y45: 29635 | Z45: 29311 | AA45: 29311 | AB45: 29198 | AC45: 29311
B46: Lachlan | C46: ML | T46: 633346.4 | U46: 633166.4 | V46: 633166.4 | W46: 633166.4 | X46: 633166 | Y46: 633166 | Z46: 633166 | AA46: 633166.4 | AB46: 633166.4 | AC46: 633166.4
B47: Macquarie | C47: ML | T47: 632466 | U47: 632466.1 | V47: 632466.1 | W47: 632466.1 | X47: 632466 | Y47: 632466 | Z47: 632466 | AA47: 632466 | AB47: 632466 | AC47: 632466
B48: Murray | C48: ML | T48: 2081289.1 | U48: 2083271.1 | V48: 2083271.1 | W48: 2083271.1 | X48: 2083603 | Y48: 2083603 | Z48: 2083603 | AA48: 2083553 | AB48: 2083617 | AC48: 2083553
B49: Murrumbidgee | C49: ML | T49: 2267962.6 | U49: 2267962.6 | V49: 2267962.6 | W49: 2267962.6 | X49: 2267963 | Y49: 2264995 | Z49: 2264995 | AA49: 2267963 | AB49: 2267963 | AC49: 2267963
B50: Lowbidgee | C50: ML
B52: High security entitlements
B53: Border | C53: =C$20 -> ML | T53: 3122 | U53: 3121 | V53: 3141 | W53: 3141 | X53: 3141 | Y53: 3141 | Z53: 3141 | AA53: 3141 | AB53: 3141 | AC53: 3141
B54: Gwydir | C54: ML | T54: 26839.9 | U54: 26919.9 | V54: 26919.9 | W54: 26919.9 | X54: 26920 | Y54: 26920 | Z54: 27219.9 | AA54: 27220 | AB54: 27220 | AC54: 27220
B55: Namoi | C55: ML | T55: 8882 | U55: 8866 | V55: 8866 | W55: 8866 | X55: 8866 | Y55: 8859 | Z55: 8841 | AA55: 8841 | AB55: 8841 | AC55: 8841
B56: Peel | C56: ML | T56: 17367 | U56: 17367 | V56: 17367 | W56: 17367 | X56: 17367 | Y56: 17367 | Z56: 17367 | AA56: 17367 | AB56: 17367 | AC56: 17367
B57: Lachlan | C57: ML | T57: 57512 | U57: 57304 | V57: 57301 | W57: 57302 | X57: 57252 | Y57: 57269 | Z57: 57269 | AA57: 57270 | AB57: 57270 | AC57: 57270
B58: Macquarie | C58: ML | T58: 42720.5 | U58: 42712 | V58: 42688 | W58: 42688 | X58: 42691 | Y58: 42672 | Z58: 42669 | AA58: 42663 | AB58: 42663 | AC58: 42663
B59: Murray | C59: ML | T59: 261515 | U59: 263603.1 | V59: 263590.1 | W59: 263555.1 | X59: 263575 | Y59: 276920 | Z59: 276894.3 | AA59: 261733 | AB59: 261733 | AC59: 261733
B60: Murrumbidgee | C60: ML | T60: 438310.6 | U60: 438327.6 | V60: 438327.6 | W60: 438327.6 | X60: 438328 | Y60: 440472 | Z60: 440475 | AA60: 438322 | AB60: 438322 | AC60: 438322
B61: Lowbidgee | C61: ML
B63: Supplementary entitlements | AG63: WNSW: WaterNSW is not required to report number of supplementary entitlements for the Annual Review. Besides the Lowbidgee fixed charge, it is noted that this information does not form an input into regulated charges.
B64: Border | C64: =C$20 -> ML | T64: 0 | U64: 0 | V64: 0 | W64: 0 | X64: 0 | Y64: 0 | Z64: 0 | AA64: 0 | AB64: 0 | AC64: 0
B65: Gwydir | C65: ML | T65: 0 | U65: 0 | V65: 0 | W65: 0 | X65: 0 | Y65: 0 | Z65: 0 | AA65: 0 | AB65: 0 | AC65: 0
B66: Namoi | C66: ML | T66: 0 | U66: 0 | V66: 0 | W66: 0 | X66: 0 | Y66: 0 | Z66: 0 | AA66: 0 | AB66: 0 | AC66: 0
B67: Peel | C67: ML | T67: 0 | U67: 0 | V67: 0 | W67: 0 | X67: 0 | Y67: 0 | Z67: 0 | AA67: 0 | AB67: 0 | AC67: 0
B68: Lachlan | C68: ML | T68: 0 | U68: 0 | V68: 0 | W68: 0 | X68: 0 | Y68: 0 | Z68: 0 | AA68: 0 | AB68: 0 | AC68: 0
B69: Macquarie | C69: ML | T69: 0 | U69: 0 | V69: 0 | W69: 0 | X69: 0 | Y69: 0 | Z69: 0 | AA69: 0 | AB69: 0 | AC69: 0
B70: Murray | C70: ML | T70: 0 | U70: 0 | V70: 0 | W70: 0 | X70: 0 | Y70: 0 | Z70: 0 | AA70: 0 | AB70: 0 | AC70: 0
B71: Murrumbidgee | C71: ML | T71: 0 | U71: 0 | V71: 0 | W71: 0 | X71: 0 | Y71: 0 | Z71: 0 | AA71: 0 | AB71: 0 | AC71: 0
B72: Lowbidgee | C72: ML | T72: 747000 | U72: 747000 | V72: 747000 | W72: 747000 | X72: 747000 | Y72: 747000 | Z72: 747000 | AA72: 747000 | AB72: 747000 | AC72: 747000
B76: TABLE 1.3 - ACTUAL WATER ALLOCATIONS
B77: Financial year | C77: Units | F77: =F$16 -> 2000-01 | G77: 2001-02 | H77: 2002-03 | I77: 2003-04 | J77: 2004-05 | K77: 2005-06 | L77: 2006-07 | M77: 2007-08 | N77: 2008-09 | O77: 2009-10 | P77: 2010-11 | Q77: 2011-12 | R77: 2012-13 | S77: 2013-14 | T77: 2014-15 | U77: 2015-16 | V77: 2016-17 | W77: 2017-18 | X77: 2018-19 | Y77: 2019-20 | Z77: 2020-21 | AA77: =AA$16 -> 2021-22 | AB77: =AB$16 -> 2022-23 | AC77: =AC$16 -> 2023-24 | AD77: =AD$16 -> 2024-25
F78: =F40 -> Actual | G78: =G40 -> Actual | H78: Actual | I78: Actual | J78: Actual | K78: Actual | L78: Actual | M78: Actual | N78: Actual | O78: Actual | P78: Actual | Q78: Actual | R78: Actual | S78: Actual | T78: Actual | U78: Actual | V78: Actual | W78: Actual | X78: Actual | Y78: Actual | Z78: Actual | AA78: Actual | AB78: =AB$17 -> Estimate | AC78: =AC40 -> Forecast | AD78: =AD40 -> Forecast
B79: Note: 'Water allocations' refer to the proportion of their entitlement volumes that licence holders are permitted to extract each year
B80: General security entitlements | AG80: 2022-23 estimates are YTD December values
B81: Border | C81: % | F81: 0.4 | G81: 0.9616007471 | H81: 0.1383938411 | I81: 0.5394395847 | J81: 0.1667033994 | K81: 0.3804940351 | L81: 0.2518418989 | M81: 0.2534980989 | N81: 0.2374144487 | O81: 0.02688212928 | P81: 1 | Q81: 1 | R81: 1 | S81: 0.3519 | T81: 0.1 | U81: 0.3270538448 | V81: 1.123804603 | W81: 0.263 | X81: 0.03 | Y81: 0 | Z81: 0.51 | AA81: 1 | AB81: 1 | AC81: 0.4350212942 | AG81: 2023-24 Forecast is equal to the 20 year rolling average, as per IPART's methodology.
B82: Gwydir | C82: % | F82: 0.4469803922 | G82: 0.2662352941 | H82: 0 | I82: 0.3071568627 | J82: 0.04598039216 | K82: 0.2188263003 | L82: 0 | M82: 0.2424509804 | N82: 0 | O82: 0 | P82: 0.829 | Q82: 1 | R82: 1.62 | S82: 0 | T82: 0 | U82: 0.05281508442 | V82: 0.7863017865 | W82: 0.176 | X82: 0 | Y82: 0.02 | Z82: 0.58 | AA82: 1.01 | AB82: 1.37 | AC82: 0.3444265703
B83: Namoi | C83: % | F83: 1.226720648 | G83: 0.2980161943 | H83: 0 | I83: 0.4646963563 | J83: 0.1413360324 | K83: 0.299757195 | L83: 0 | M83: 0.1362753036 | N83: 0.2373279352 | O83: 0.005748987854 | P83: 1.093 | Q83: 1.165 | R83: 1 | S83: 0.5318 | T83: 0.04 | U83: 0.02296149861 | V83: 1.236868369 | W83: 0.11 | X83: 0.05 | Y83: 0.02 | Z83: 0.91 | AA83: 1 | AB83: 1 | AC83: 0.4232385839
B84: Peel | C84: % | F84: 1 | G84: 1 | H84: 0.6 | I84: 0.35 | J84: 0.65 | K84: 0.45 | L84: 0 | M84: 0.5 | N84: 0.8 | O84: 0 | P84: 1 | Q84: 1 | R84: 0.83 | S84: 0.45 | T84: 0 | U84: 0.170004601 | V84: 0.9999967136 | W84: 1.027 | X84: 0.38 | Y84: 0 | Z84: 0.85 | AA84: 1 | AB84: 1 | AC84: 0.5528500657
B85: Lachlan | C85: % | F85: 0.84 | G85: 0.58 | H85: 0.03 | I85: 0 | J85: 0 | K85: 0.19 | L85: 0 | M85: 0 | N85: 0 | O85: 0 | P85: 1 | Q85: 1 | R85: 0 | S85: 0 | T85: 0.02 | U85: 0.2586422779 | V85: 1.38 | W85: 0.05 | X85: 0 | Y85: 0.01 | Z85: 0.68 | AA85: 1.21 | AB85: 1.15 | AC85: 0.2914321139
B86: Macquarie | C86: % | F86: 1 | G86: 0.9 | H86: 0 | I86: 0.19 | J86: 0.09 | K86: 0.44 | L86: 0 | M86: 0.05 | N86: 0.1 | O86: 0 | P86: 1 | Q86: 0.49 | R86: 0.64 | S86: 0.0006 | T86: 0.02 | U86: 0.07000375198 | V86: 1 | W86: 0.38 | X86: 0 | Y86: 0 | Z86: 0.68 | AA86: 1.000569247 | AB86: 1.000569247 | AC86: 0.3075586499
B87: Murray | C87: % | F87: 0.95 | G87: 1.05 | H87: 0.1 | I87: 0.55 | J87: 0.49 | K87: 0.63 | L87: 0 | M87: 0 | N87: 0.09 | O87: 0.27 | P87: 1 | Q87: 1 | R87: 1 | S87: 1 | T87: 0.65 | U87: 0.278087859 | V87: 1 | W87: 0.51 | X87: 0 | Y87: 0.12 | Z87: 0.55 | AA87: 1.1 | AB87: 1.1 | AC87: 0.516904393
B88: Murrumbidgee | C88: % | F88: 0.9 | G88: 0.72 | H88: 0.38 | I88: 0.41 | J88: 0.4 | K88: 0.54 | L88: 0.1 | M88: 0.13 | N88: 0.21 | O88: 0.27 | P88: 1 | Q88: 1 | R88: 1 | S88: 0.7998 | T88: 0.59 | U88: 0.4424602064 | V88: 1.000000441 | W88: 0.517 | X88: 0.07 | Y88: 0.21 | Z88: 1 | AA88: 1.000066292 | AB88: 0.88 | AC88: 0.5534663469
B89: Lowbidgee | C89: %
B91: High security entitlements
B92: Border | C92: % | F92: 1 | G92: 1 | H92: 1 | I92: 1 | J92: 1 | K92: 1 | L92: 1 | M92: 1 | N92: 1 | O92: 1 | P92: 1 | Q92: 1 | R92: 1 | S92: 1 | T92: 1 | U92: 1.00032041 | V92: 1 | W92: 1 | X92: 1 | Y92: 1 | Z92: 1 | AA92: 1 | AB92: 1 | AC92: 1.000016021
B93: Gwydir | C93: % | F93: 1 | G93: 1 | H93: 1 | I93: 1 | J93: 1 | K93: 1 | L93: 1 | M93: 1 | N93: 1 | O93: 1 | P93: 1 | Q93: 1 | R93: 1 | S93: 1 | T93: 1 | U93: 0.9975482821 | V93: 1 | W93: 1 | X93: 1 | Y93: 1 | Z93: 1 | AA93: 1 | AB93: 1 | AC93: 0.9998774141
B94: Namoi | C94: % | F94: 1 | G94: 1 | H94: 1 | I94: 1 | J94: 1 | K94: 1 | L94: 1 | M94: 1 | N94: 1 | O94: 1 | P94: 1 | Q94: 1 | R94: 1 | S94: 1 | T94: 1 | U94: 1.001804647 | V94: 1 | W94: 1 | X94: 1 | Y94: 1 | Z94: 1 | AA94: 1 | AB94: 1 | AC94: 1.000090232
B95: Peel | C95: % | F95: 1 | G95: 1 | H95: 1 | I95: 1 | J95: 1 | K95: 1 | L95: 1 | M95: 1 | N95: 1 | O95: 1 | P95: 1 | Q95: 1 | R95: 1 | S95: 1 | T95: 0.69 | U95: 1 | V95: 1 | W95: 1 | X95: 1 | Y95: 0.69 | Z95: 1 | AA95: 1 | AB95: 1 | AC95: 0.969
B96: Lachlan | C96: % | F96: 1 | G96: 1 | H96: 1 | I96: 0.7 | J96: 0.3 | K96: 1 | L96: 0.8 | M96: 0.3 | N96: 0.3 | O96: 0.1 | P96: 1 | Q96: 1 | R96: 1 | S96: 1 | T96: 1 | U96: 1.00365943 | V96: 1.000092494 | W96: 1 | X96: 1 | Y96: 0.94 | Z96: 1 | AA96: 1.000092494 | AB96: 1.000092494 | AC96: 0.8221922209
B97: Macquarie | C97: % | F97: 1 | G97: 1 | H97: 1 | I97: 1 | J97: 1 | K97: 1 | L97: 1 | M97: 1 | N97: 1 | O97: 1 | P97: 1 | Q97: 1 | R97: 1 | S97: 1 | T97: 1 | U97: 0.9993233752 | V97: 1.000569247 | W97: 1 | X97: 1 | Y97: 1 | Z97: 1 | AA97: 1.000569247 | AB97: 1.000569247 | AC97: 1.000023093
B98: Murray | C98: % | F98: 1 | G98: 1 | H98: 1 | I98: 1 | J98: 0.97 | K98: 0.97 | L98: 0.69 | M98: 0.5 | N98: 0.95 | O98: 0.97 | P98: 1 | Q98: 1 | R98: 1 | S98: 1 | T98: 0.98 | U98: 0.9562482384 | V98: 1 | W98: 0.99 | X98: 0.97 | Y98: 0.97 | Z98: 0.98 | AA98: 1 | AB98: 1 | AC98: 0.9448124119
B99: Murrumbidgee | C99: % | F99: 1 | G99: 1 | H99: 1 | I99: 0.95 | J99: 0.95 | K99: 0.95 | L99: 0.9 | M99: 0.9 | N99: 0.95 | O99: 0.95 | P99: 0.9996 | Q99: 1 | R99: 1 | S99: 0.975 | T99: 0.96 | U99: 0.9590313273 | V99: 1.000066292 | W99: 0.96 | X99: 0.95 | Y99: 0.97 | Z99: 1 | AA99: 1.000066292 | AB99: 1.000066292 | AC99: 0.9661881955
B100: Lowbidgee | C100: % | F100: 0 | G100: 0 | H100: 0 | I100: 0 | J100: 0 | K100: 0 | L100: 0 | M100: 0 | N100: 0 | O100: 0 | P100: 0 | Q100: 0 | R100: 0 | S100: 0 | T100: 0 | U100: 0
B102: Supplementary entitlements | AG102: WNSW: WaterNSW is not required to report % of allocation of supplementary entitlements. This does not form an input into prices.
B103: Border | C103: % | F103: 0 | G103: 0 | H103: 0 | I103: 0 | J103: 0 | K103: 0 | L103: 0 | M103: 0 | N103: 0 | O103: 0 | P103: 0 | Q103: 0 | R103: 0 | S103: 0 | T103: 0 | U103: 0 | V103: 0 | W103: 0 | X103: 0 | AA103: 0 | AB103: 0 | AC103: 0 | AD103: 0
B104: Gwydir | C104: % | F104: 0 | G104: 0 | H104: 0 | I104: 0 | J104: 0 | K104: 0 | L104: 0 | M104: 0 | N104: 0 | O104: 0 | P104: 0 | Q104: 0 | R104: 0 | S104: 0 | T104: 0 | U104: 0 | V104: 0 | W104: 0 | X104: 0 | AA104: 0 | AB104: 0 | AC104: 0 | AD104: 0
B105: Namoi | C105: % | F105: 0 | G105: 0 | H105: 0 | I105: 0 | J105: 0 | K105: 0 | L105: 0 | M105: 0 | N105: 0 | O105: 0 | P105: 0 | Q105: 0 | R105: 0 | S105: 0 | T105: 0 | U105: 0 | V105: 0 | W105: 0 | X105: 0 | AA105: 0 | AB105: 0 | AC105: 0 | AD105: 0
B106: Peel | C106: % | F106: 0 | G106: 0 | H106: 0 | I106: 0 | J106: 0 | K106: 0 | L106: 0 | M106: 0 | N106: 0 | O106: 0 | P106: 0 | Q106: 0 | R106: 0 | S106: 0 | T106: 0 | U106: 0 | V106: 0 | W106: 0 | X106: 0 | AA106: 0 | AB106: 0 | AC106: 0 | AD106: 0
B107: Lachlan | C107: % | F107: 0 | G107: 0 | H107: 0 | I107: 0 | J107: 0 | K107: 0 | L107: 0 | M107: 0 | N107: 0 | O107: 0 | P107: 0 | Q107: 0 | R107: 0 | S107: 0 | T107: 0 | U107: 0 | V107: 0 | W107: 0 | X107: 0 | AA107: 0 | AB107: 0 | AC107: 0 | AD107: 0
B108: Macquarie | C108: % | F108: 0 | G108: 0 | H108: 0 | I108: 0 | J108: 0 | K108: 0 | L108: 0 | M108: 0 | N108: 0 | O108: 0 | P108: 0 | Q108: 0 | R108: 0 | S108: 0 | T108: 0 | U108: 0 | V108: 0 | W108: 0 | X108: 0 | AA108: 0 | AB108: 0 | AC108: 0 | AD108: 0
B109: Murray | C109: % | F109: 0 | G109: 0 | H109: 0 | I109: 0 | J109: 0 | K109: 0 | L109: 0 | M109: 0 | N109: 0 | O109: 0 | P109: 0 | Q109: 0 | R109: 0 | S109: 0 | T109: 0 | U109: 0 | V109: 0 | W109: 0 | X109: 0 | AA109: 0 | AB109: 0 | AC109: 0 | AD109: 0
B110: Murrumbidgee | C110: % | F110: 0 | G110: 0 | H110: 0 | I110: 0 | J110: 0 | K110: 0 | L110: 0 | M110: 0 | N110: 0 | O110: 0 | P110: 0 | Q110: 0 | R110: 0 | S110: 0 | T110: 0 | U110: 0 | V110: 0 | W110: 0 | X110: 0 | AA110: 0 | AB110: 0 | AC110: 0 | AD110: 0
B111: Lowbidgee | C111: % | F111: 1 | G111: 1 | H111: 1 | I111: 1 | J111: 1 | K111: 1 | L111: 1 | M111: 1 | N111: 1 | O111: 1 | P111: 1 | Q111: 1 | R111: 1 | S111: 1 | T111: 1 | U111: 1 | V111: 1 | W111: 1 | X111: =V111 -> 1 | AA111: 1 | AB111: 1 | AC111: 1 | AD111: 1
B116: TABLE 1.4 - FISH RIVER WATER SUPPLY SCHEME (FRWS) MINOR CUSTOMER NUMBERS AND MAQ ENTITLEMENT VOLUMES
B117: Financial year | C117: Units | F117: =F$16 -> 2000-01 | G117: 2001-02 | H117: 2002-03 | I117: 2003-04 | J117: 2004-05 | K117: 2005-06 | L117: 2006-07 | M117: 2007-08 | N117: 2008-09 | O117: 2009-10 | P117: 2010-11 | Q117: 2011-12 | R117: 2012-13 | S117: 2013-14 | T117: 2014-15 | U117: 2015-16 | V117: 2016-17 | W117: 2017-18 | X117: 2018-19 | Y117: 2019-20 | Z117: 2020-21 | AA117: =AA$16 -> 2021-22 | AB117: 2022-23 | AC117: 2023-24 | AD117: 2024-25
Z118: na | AA118: =AA17 -> Actual | AB118: =AB$17 -> Estimate | AC118: Forecast | AD118: Forecast
B120: Minor customer numbers | AG120: 2022-23 estimates are YTD December values
B121: ='Updated Volumes'!B$33 -> Minor customers (raw) | C121: # | F121: na | G121: na | H121: na | I121: na | J121: na | K121: na | L121: na | M121: na | N121: na | O121: na | P121: na | Q121: na | R121: na | S121: na | T121: na | U121: na | V121: na | W121: na | X121: na | Y121: na | Z121: na | AA121: 90 | AB121: 90 | AC121: 90 | AG121: 2023-24 Forecast is equal to the most recent available information (2022-23 YTD December values)
B122: ='Updated Volumes'!B$34 -> Minor customers (filtered) | C122: # | F122: na | G122: na | H122: na | I122: na | J122: na | K122: na | L122: na | M122: na | N122: na | O122: na | P122: na | Q122: na | R122: na | S122: na | T122: na | U122: na | V122: na | W122: na | X122: na | Y122: na | Z122: na | AA122: 239 | AB122: 239 | AC122: 239
B124: FRWS MAQ
B125: =B$31 -> Energy Australia | C125: =C$20 -> ML | AA125: 8184 | AB125: 8184 | AC125: 8184 | AG125: Minimum Annual Quantity (MAQ) levels as defined in WaterNSW’s licence to operate the FRWS issued under the Water Act 1912 NSW.
B126: =B$33 -> Minor customers (raw) | C126: =C$20 -> ML | AA126: =0.2*AA121 -> 18 | AB126: =0.2*AB121 -> 18 | AC126: 18 | AG126: MAQ (Minimum Annual Quantity) for minor customers is 200KLs for each minor customer multiplied by the number of minor customers. For instance, 18.0 MAQ MLs is derived by multiplying 90 raw water customers by 200Kls per customer. 47.80 MAQ is derived by multiplying 239 filtered water customers by 200KLs per customer
B127: =B$34 -> Minor customers (filtered) | C127: =C$20 -> ML | AA127: =0.2*AA122 -> 47.8 | AB127: 47.8 | AC127: 47.8 | AG127: MAQ (Minimum Annual Quantity) for minor customers is 200KLs for each minor customer multiplied by the number of minor customers. For instance, 18.0 MAQ MLs is derived by multiplying 90 raw water customers by 200Kls per customer. 47.80 MAQ is derived by multiplying 239 filtered water customers by 200KLs per customer

Sheet Outputs
B2: 4 OUTPUTS
B3: This worksheet produces the model outputs ie. Water tariffs for usage and entitlements.
B5: List of tables | K5: Row number
B6: =B20 -> CHARGES
B7: =B28 -> TABLE 4.1 - TOTAL CHARGES FOR MDB CUSTOMERS | K7: =ROW(B28) -> 28
B8: =B69 -> TABLE 4.2 - WaterNSW CHARGES | K8: =ROW(B69) -> 69
B9: =B109 -> TABLE 4.3 - MDBA/BRC CHARGES | K9: =ROW(B109) -> 109
B10: =B149 -> TABLE 4.4 - FISH RIVER WATER SUPPLY SCHEME CHARGES | K10: =ROW(B149) -> 149
B11: =B173 -> CUSTOMER BILLS
B12: =B175 -> TABLE 4.5 - INDICATIVE BILLS FOR HIGH SECURITY CUSTOMERS - WaterNSW CHARGES | K12: =ROW(B175) -> 175
B13: =B214 -> TABLE 4.6 - INDICATIVE BILLS FOR GENERAL SECURITY CUSTOMERS - WaterNSW CHARGES | K13: =ROW(B214) -> 214
B14: =B253 -> TABLE 4.7 - INDICATIVE BILLS FOR HIGH SECURITY AND GENERAL SECURITY CUSTOMERS - MDBA/BRC CHARGES | K14: =ROW(B253) -> 253
B15: =B290 -> TABLE 4.8 - INDICATIVE BILLS FOR CUSTOMERS IN THE FRWS | K15: =ROW(B290) -> 290
B16: =B301 -> REVENUE FORECASTS
B17: =B304 -> TABLE 4.9 - Comparison of WaterNSW'S Forecast Revenue in 2023-24 under different scenarios ($'000, $2020-21) | K17: =ROW(B304) -> 304
B20: CHARGES
B23: Analyse charges for determination year | C23: 2023-24
B24: Prices calculated using 20 year average volumes to | C24: =LEFT(C23,4)-2&"-"&RIGHT(C23,2)-2 -> 2021-22
B25: ="Inflator from "&$G$31&" to $"&G29&" prices" -> Inflator from $2020-21 to $2021-22 prices | C25: ='2021 Determination Revenue'!$G$30 -> 1.011
B26: ="Inflator from $"&$G$29&" to $"&$C$23&" prices" -> Inflator from $2021-22 to $2023-24 prices | C26: =LOOKUP($C$23,'2021 Determination Revenue'!$H$20:$J$20,'2021 Determination Revenue'!$H$29:$J$29) -> 1.121
B28: TABLE 4.1 - TOTAL CHARGES FOR MDB CUSTOMERS
B29: ='2021 Determination Revenue'!B$20 -> Financial year | C29: ='2021 Determination Revenue'!C$36 -> Units | G29: ='2021 Determination Revenue'!G$20 -> 2021-22 | H29: ='2021 Determination Revenue'!H$20 -> 2022-23 | I29: ='2021 Determination Revenue'!I$20 -> 2023-24 | J29: ='2021 Determination Revenue'!J$20 -> 2024-25 | M29: ="Analysis of "&$C$23&" Charges based on ∆ in demand and CPI (expressed in $"&$C$23&")" -> Analysis of 2023-24 Charges based on ∆ in demand and CPI (expressed in $2023-24) | Q29: ="Analysis of "&$C$23&" Charges based on ∆ in demand and CPI (expressed in "&G31&")" -> Analysis of 2023-24 Charges based on ∆ in demand and CPI (expressed in $2020-21)
G30: ="As per "&'2021 Determination Revenue'!$F$19&" Price Review" -> As per 2021 Price Review | H30: Re-calculated using updated demand | I30: Re-calculated using updated demand | J30: Re-calculated using updated demand | K30: ="Prices for selected year (ie "&$C$23&")" -> Prices for selected year (ie 2023-24) | M30: =G30 -> As per 2021 Price Review | N30: =H30 -> Re-calculated using updated demand | O30: Difference | Q30: =M30 -> As per 2021 Price Review | R30: =N30 -> Re-calculated using updated demand | S30: Difference
G31: ='2021 Determination Revenue'!$G$37 -> $2020-21 | H31: ='2021 Determination Revenue'!$G$37 -> $2020-21 | I31: ='2021 Determination Revenue'!$G$37 -> $2020-21 | J31: ='2021 Determination Revenue'!$G$37 -> $2020-21 | K31: =J31 -> $2020-21 | M31: ="$"&$C$23 -> $2023-24 | N31: =M31 -> $2023-24 | O31: % | Q31: =G31 -> $2020-21 | R31: =Q31 -> $2020-21 | S31: %
B32: Usage charges
B33: ='2021 Determination Revenue'!B$41 -> Border | C33: $/ML | G33: =(G74+G114) -> 7.805084264 | H33: =(H74+H114) -> 8.162778545 | I33: =(I74+I114) -> 8.416558891 | J33: =(J74+J114) -> 8.561554934 | K33: =LOOKUP($C$23,$H$70:$J$70,$H33:$J33) -> 8.416558891 | M33: =(M74+M114) -> 8.84 | N33: =(N74+N114) -> 9.54 | O33: =IF(M33=0,"na",N33/M33-1) -> 0.07918552036 | Q33: =(Q74+Q114) -> 7.805084264 | R33: 8.416558891 | S33: =IF(Q33=0,"na",R33/Q33-1) -> 0.07834311673
B34: ='2021 Determination Revenue'!B$42 -> Gwydir | C34: =$C$33 -> $/ML | G34: =(G75+G115) -> 17.00032167 | H34: 17.90530595 | I34: 18.51453328 | J34: =(J75+J115) -> 18.97848619 | K34: 18.51453328 | M34: =(M75+M115) -> 19.27 | N34: 20.99 | O34: 0.08925791386 | Q34: 17.00032167 | R34: 18.51453328 | S34: =IF(Q34=0,"na",R34/Q34-1) -> 0.08906958571
B35: ='2021 Determination Revenue'!B$43 -> Namoi | C35: =$C$33 -> $/ML | G35: 30.541139 | H35: 32.04858632 | I35: 33.69462856 | J35: =(J76+J116) -> 35.61087962 | K35: 33.69462856 | M35: 34.62 | N35: 38.19 | O35: 0.1031195841 | Q35: 30.541139 | R35: 33.69462856 | S35: 0.1032538295
B36: ='2021 Determination Revenue'!B$44 -> Peel | C36: $/ML | G36: 24.24338547 | H36: 24.62388189 | I36: 25.39356209 | J36: =(J77+J117) -> 27.17528055 | K36: 25.39356209 | M36: 27.48 | N36: 28.78 | O36: 0.04730713246 | Q36: 24.24338547 | R36: 25.39356209 | S36: 0.04744290472
B37: ='2021 Determination Revenue'!B$45 -> Lachlan | C37: $/ML | G37: 30.83070827 | H37: 33.15543743 | I37: 36.06860196 | J37: =(J78+J118) -> 38.33765078 | K37: 36.06860196 | M37: 34.94 | N37: 40.88 | O37: 0.1700057241 | Q37: 30.83070827 | R37: 36.06860196 | S37: =IF(Q37=0,"na",R37/Q37-1) -> 0.1698920971
B38: ='2021 Determination Revenue'!B$46 -> Macquarie | C38: $/ML | G38: 21.40375101 | H38: 22.96688321 | I38: 24.99498394 | J38: =(J79+J119) -> 27.2227082 | K38: 24.99498394 | M38: 24.26 | N38: 28.33 | O38: 0.1677658697 | Q38: 21.40375101 | R38: 24.99498394 | S38: 0.1677852136
B39: ='2021 Determination Revenue'!B$47 -> Murray | C39: $/ML | G39: 4.725955218 | H39: 4.885241403 | I39: 4.991393612 | J39: =(J80+J120) -> 4.979202669 | K39: 4.991393612 | M39: 5.35 | N39: 5.65 | O39: 0.05607476636 | Q39: 4.725955218 | R39: 4.991393612 | S39: 0.05616608326
B40: ='2021 Determination Revenue'!B$48 -> Murrumbidgee | C40: $/ML | G40: 5.279716303 | H40: 5.332202208 | I40: 5.418056391 | J40: =(J81+J121) -> 5.489268952 | K40: 5.418056391 | M40: 5.98 | N40: 6.15 | O40: 0.02842809365 | Q40: 5.279716303 | R40: 5.418056391 | S40: 0.02620218199
B41: ='2021 Determination Revenue'!B$49 -> Lowbidgee | C41: $/ML | G41: 0 | H41: 0 | I41: 0 | J41: =(J82+J122) -> 0 | K41: 0 | M41: 0 | N41: 0 | O41: na | Q41: 0 | R41: 0 | S41: na
B42: Check=0 | G42: =SUM(G33:G41)-SUM(G74:G82)-SUM(G114:G121) -> -1.376676551e-14 | H42: =SUM(H33:H41)-SUM(H74:H82)-SUM(H114:H121) -> -4.884981308e-15 | I42: =SUM(I33:I41)-SUM(I74:I82)-SUM(I114:I121) -> 2.486899575e-14 | J42: =SUM(J33:J41)-SUM(J74:J82)-SUM(J114:J121) -> 0 | M42: =SUM(M33:M41)-SUM(M74:M82)-SUM(M114:M121) -> 0 | N42: =SUM(N33:N41)-SUM(N74:N82)-SUM(N114:N121) -> -3.197442311e-14 | Q42: =SUM(Q33:Q41)-SUM(Q74:Q82)-SUM(Q114:Q121) -> -1.376676551e-14 | R42: =SUM(R33:R41)-SUM(R74:R82)-SUM(R114:R121) -> 2.486899575e-14
B43: General security entitlement charges
B44: ='2021 Determination Revenue'!B$41 -> Border | C44: =$C$33 -> $/ML | G44: =(G85+G125) -> 4.133569395 | H44: 4.126210786 | I44: 4.126817203 | J44: =(J85+J125) -> 4.139182083 | K44: =LOOKUP($C$23,$H$70:$J$70,$H44:$J44) -> 4.126817203 | M44: =(M85+M125) -> 4.68 | N44: 4.68 | O44: =IF(M44=0,"na",N44/M44-1) -> 0 | Q44: =(Q85+Q125) -> 4.133569395 | R44: 4.126817203 | S44: =IF(Q44=0,"na",R44/Q44-1) -> -0.001633501464
B45: ='2021 Determination Revenue'!B$42 -> Gwydir | C45: =$C$33 -> $/ML | G45: 3.995423207 | H45: 3.946262725 | I45: 4.031318152 | J45: =(J86+J126) -> 4.15402614 | K45: 4.031318152 | M45: 4.53 | N45: 4.57 | O45: 0.008830022075 | Q45: 3.995423207 | R45: 4.031318152 | S45: 0.008984015755
B46: ='2021 Determination Revenue'!B$43 -> Namoi | C46: $/ML | G46: 9.98824506 | H46: 9.874930053 | I46: 9.957386079 | J46: =(J87+J127) -> 10.05322514 | K46: 9.957386079 | M46: 11.32 | N46: 11.29 | O46: -0.002650176678 | Q46: 9.98824506 | R46: 9.957386079 | S46: -0.003089529786
B47: ='2021 Determination Revenue'!B$44 -> Peel | C47: $/ML | G47: 5.752000874 | H47: 5.360447401 | I47: 5.360447401 | J47: =(J88+J128) -> 5.531527778 | K47: 5.360447401 | M47: 6.52 | N47: 6.08 | O47: -0.06748466258 | Q47: 5.752000874 | R47: 5.360447401 | S47: -0.06807256833
B48: ='2021 Determination Revenue'!B$45 -> Lachlan | C48: $/ML | G48: 3.670163327 | H48: 3.45107825 | I48: 3.613741755 | J48: =(J89+J129) -> 3.855489453 | K48: 3.613741755 | M48: 4.16 | N48: 4.09 | O48: -0.01682692308 | Q48: 3.670163327 | R48: 3.613741755 | S48: -0.01537304107
B49: ='2021 Determination Revenue'!B$46 -> Macquarie | C49: $/ML | G49: 3.90190304 | H49: 3.695597083 | I49: 3.713686529 | J49: =(J90+J130) -> 3.872107032 | K49: 3.713686529 | M49: 4.42 | N49: 4.2 | O49: -0.04977375566 | Q49: 3.90190304 | R49: 3.713686529 | S49: -0.04823710615
B50: ='2021 Determination Revenue'!B$47 -> Murray | C50: $/ML | G50: 4.744743322 | H50: 4.629109394 | I50: 4.696642766 | J50: =(J91+J131) -> 4.794218944 | K50: 4.696642766 | M50: 5.37 | N50: 5.33 | O50: -0.007448789572 | Q50: 4.744743322 | R50: 4.696642766 | S50: -0.01013765188
B51: ='2021 Determination Revenue'!B$48 -> Murrumbidgee | C51: $/ML | G51: 2.049873013 | H51: 2.01383063 | I51: 2.034843915 | J51: =(J92+J132) -> 2.067321707 | K51: 2.034843915 | M51: 2.32 | N51: 2.3 | O51: -0.008620689655 | Q51: 2.049873013 | R51: 2.034843915 | S51: -0.007331721259
B52: ='2021 Determination Revenue'!B$49 -> Lowbidgee | C52: =$C$33 -> $/ML | G52: 1.704125639 | H52: 1.704125639 | I52: 1.704125639 | J52: =(J93+J133) -> 1.704125639 | K52: 1.704125639 | M52: 1.93 | N52: 1.93 | O52: 0 | Q52: 1.704125639 | R52: 1.704125639 | S52: 0
B53: Check=0 | G53: =SUM(G44:G52)-SUM(G85:G93)-SUM(G125:G132) -> 0 | H53: =SUM(H44:H52)-SUM(H85:H93)-SUM(H125:H132) -> 0 | I53: =SUM(I44:I52)-SUM(I85:I93)-SUM(I125:I132) -> 7.993605777e-15 | J53: =SUM(J44:J52)-SUM(J85:J93)-SUM(J125:J132) -> -1.154631946e-14 | M53: =SUM(M44:M52)-SUM(M85:M93)-SUM(M125:M132) -> 0 | N53: =SUM(N44:N52)-SUM(N85:N93)-SUM(N125:N132) -> -1.33226763e-14 | Q53: =SUM(Q44:Q52)-SUM(Q85:Q93)-SUM(Q125:Q132) -> 0 | R53: =SUM(R44:R52)-SUM(R85:R93)-SUM(R125:R132) -> 7.993605777e-15
B54: High security entitlement charges
B55: ='2021 Determination Revenue'!B$41 -> Border | C55: =$C$33 -> $/ML | G55: =G96+G136 -> 11.29158541 | H55: 11.90909779 | I55: 11.85827962 | J55: =J96+J136 -> 10.82209403 | K55: =LOOKUP($C$23,$H$70:$J$70,$H55:$J55) -> 11.85827962 | M55: =M96+M136 -> 12.81 | N55: 13.44 | O55: =IF(M55=0,"na",N55/M55-1) -> 0.04918032787 | Q55: =Q96+Q136 -> 11.29158541 | R55: 11.85827962 | S55: =IF(Q55=0,"na",R55/Q55-1) -> 0.05018730164
B56: ='2021 Determination Revenue'!B$42 -> Gwydir | C56: =$C$33 -> $/ML | G56: 17.21468309 | H56: 17.94543152 | I56: 16.35286082 | J56: =J97+J137 -> 14.05528673 | K56: 16.35286082 | M56: 19.51 | N56: 18.53 | O56: -0.05023065095 | Q56: 17.21468309 | R56: 16.35286082 | S56: -0.05006320837
B57: ='2021 Determination Revenue'!B$43 -> Namoi | C57: $/ML | G57: 28.61710191 | H57: 31.8050076 | I57: 29.41096623 | J57: =J98+J138 -> 26.55672161 | K57: 29.41096623 | M57: 32.43 | N57: 33.33 | O57: 0.02775208141 | Q57: 28.61710191 | R57: 29.41096623 | S57: 0.02774090547
B58: ='2021 Determination Revenue'!B$44 -> Peel | C58: $/ML | G58: 60.69634946 | H58: 61.4645001 | I58: 61.4645001 | J58: =J99+J139 -> 61.21175211 | K58: 61.4645001 | M58: 68.78 | N58: 69.66 | O58: 0.01279441698 | Q58: 60.69634946 | R58: 61.4645001 | S58: 0.01265563158
B59: ='2021 Determination Revenue'!B$45 -> Lachlan | C59: $/ML | G59: 24.82310317 | H59: 27.23793892 | I59: 25.43908719 | J59: =J100+J140 -> 22.76637158 | K59: 25.43908719 | M59: 28.14 | N59: 28.83 | O59: 0.02452025586 | Q59: 24.82310317 | R59: 25.43908719 | S59: 0.02481494828
B60: ='2021 Determination Revenue'!B$46 -> Macquarie | C60: $/ML | G60: 19.95603855 | H60: 23.02432083 | I60: 22.75938837 | J60: =J101+J141 -> 20.41085259 | K60: 22.75938837 | M60: 22.62 | N60: 25.79 | O60: 0.1401414677 | Q60: 19.95603855 | R60: 22.75938837 | S60: 0.1404762676
B61: ='2021 Determination Revenue'!B$47 -> Murray | C61: $/ML | G61: 10.7735909 | H61: 11.12524244 | I61: 11.23295487 | J61: =J102+J142 -> 10.45501716 | K61: 11.23295487 | M61: 12.22 | N61: 12.73 | O61: 0.04173486088 | Q61: 10.7735909 | R61: 11.23295487 | S61: 0.04263796239
B62: ='2021 Determination Revenue'!B$48 -> Murrumbidgee | C62: $/ML | G62: 5.96526938 | H62: 6.106192819 | I62: 6.013822893 | J62: =J103+J143 -> 5.845776505 | K62: 6.013822893 | M62: 6.76 | N62: 6.82 | O62: 0.008875739645 | Q62: 5.96526938 | R62: 6.013822893 | S62: 0.008139366391
B63: ='2021 Determination Revenue'!B$49 -> Lowbidgee | C63: =$C$33 -> $/ML | G63: 0 | H63: 0 | I63: 0 | J63: =J104+J144 -> 0 | K63: 0 | M63: 0 | N63: 0 | O63: na | Q63: 0 | R63: 0 | S63: na
B64: Check=0 | G64: =SUM(G55:G63)-SUM(G96:G104)-SUM(G136:G143) -> 0 | H64: =SUM(H55:H63)-SUM(H96:H104)-SUM(H136:H143) -> 2.309263891e-14 | I64: =SUM(I55:I63)-SUM(I96:I104)-SUM(I136:I143) -> 1.421085472e-14 | J64: =SUM(J55:J63)-SUM(J96:J104)-SUM(J136:J143) -> 0 | M64: =SUM(M55:M63)-SUM(M96:M104)-SUM(M136:M143) -> 0 | N64: =SUM(N55:N63)-SUM(N96:N104)-SUM(N136:N143) -> 0 | Q64: =SUM(Q55:Q63)-SUM(Q96:Q104)-SUM(Q136:Q143) -> 0 | R64: =SUM(R55:R63)-SUM(R96:R104)-SUM(R136:R143) -> 1.421085472e-14
B69: TABLE 4.2 - WaterNSW CHARGES
B70: ='2021 Determination Revenue'!B$20 -> Financial year | C70: ='2021 Determination Revenue'!C$36 -> Units | G70: =G$29 -> 2021-22 | H70: =H$29 -> 2022-23 | I70: 2023-24 | J70: 2024-25 | M70: =M$29 -> Analysis of 2023-24 Charges based on ∆ in demand and CPI (expressed in $2023-24) | Q70: =Q29 -> Analysis of 2023-24 Charges based on ∆ in demand and CPI (expressed in $2020-21)
G71: =G$30 -> As per 2021 Price Review | H71: =H$30 -> Re-calculated using updated demand | I71: =I$30 -> Re-calculated using updated demand | J71: =J$30 -> Re-calculated using updated demand | K71: =K$30 -> Prices for selected year (ie 2023-24) | M71: =M$30 -> As per 2021 Price Review | N71: Re-calculated using updated demand | O71: Difference | Q71: As per 2021 Price Review | R71: Re-calculated using updated demand | S71: Difference
G72: =G$31 -> $2020-21 | H72: =H$31 -> $2020-21 | I72: $2020-21 | J72: $2020-21 | K72: $2020-21 | M72: =M$31 -> $2023-24 | N72: =N$31 -> $2023-24 | O72: =$O$31 -> % | Q72: =Q$31 -> $2020-21 | R72: =R$31 -> $2020-21 | S72: =S$31 -> %
B73: =B$32 -> Usage charges
B74: ='2021 Determination Revenue'!B$41 -> Border | C74: =$C$33 -> $/ML | G74: ='2021 Determination Charges'!G17 -> 6.951963013 | H74: =(('MDB calcs'!H170/'MDB calcs'!H21)*1000) -> 7.270578095 | I74: =(('MDB calcs'!I170/'MDB calcs'!I21)*1000) -> 7.496619977 | J74: =(('MDB calcs'!J170/'MDB calcs'!J21)*1000) -> 7.625767797 | K74: =LOOKUP($C$23,$H$70:$J$70,$H74:$J74) -> 7.496619977 | M74: =LOOKUP($C$23,'2021 Determination Charges'!$M$13:$O$13,'2021 Determination Charges'!$M17:$O17) -> 7.88 | N74: =ROUND(ROUND(K74*$C$25,2)*$C$26,2) -> 8.5 | O74: =IF(M74=0,"na",N74/M74-1) -> 0.07868020305 | Q74: =LOOKUP($C$23,'2021 Determination Charges'!$H$13:$J$13,'2021 Determination Charges'!$H17:$J17) -> 6.951963013 | R74: =K74 -> 7.496619977 | S74: =IF(Q74=0,"na",R74/Q74-1) -> 0.0783457799
B75: ='2021 Determination Revenue'!B$42 -> Gwydir | C75: =$C$33 -> $/ML | G75: ='2021 Determination Charges'!G18 -> 17.00032167 | H75: =(('MDB calcs'!H171/'MDB calcs'!H22)*1000) -> 17.90530595 | I75: =(('MDB calcs'!I171/'MDB calcs'!I22)*1000) -> 18.51453328 | J75: =(('MDB calcs'!J171/'MDB calcs'!J22)*1000) -> 18.97848619 | K75: 18.51453328 | M75: =LOOKUP($C$23,'2021 Determination Charges'!$M$13:$O$13,'2021 Determination Charges'!$M18:$O18) -> 19.27 | N75: 20.99 | O75: 0.08925791386 | Q75: =LOOKUP($C$23,'2021 Determination Charges'!$H$13:$J$13,'2021 Determination Charges'!$H18:$J18) -> 17.00032167 | R75: =K75 -> 18.51453328 | S75: 0.08906958571
B76: ='2021 Determination Revenue'!B$43 -> Namoi | C76: $/ML | G76: ='2021 Determination Charges'!G19 -> 30.541139 | H76: =(('MDB calcs'!H172/'MDB calcs'!H23)*1000) -> 32.04858632 | I76: =(('MDB calcs'!I172/'MDB calcs'!I23)*1000) -> 33.69462856 | J76: =(('MDB calcs'!J172/'MDB calcs'!J23)*1000) -> 35.61087962 | K76: 33.69462856 | M76: =LOOKUP($C$23,'2021 Determination Charges'!$M$13:$O$13,'2021 Determination Charges'!$M19:$O19) -> 34.62 | N76: 38.19 | O76: 0.1031195841 | Q76: =LOOKUP($C$23,'2021 Determination Charges'!$H$13:$J$13,'2021 Determination Charges'!$H19:$J19) -> 30.541139 | R76: 33.69462856 | S76: 0.1032538295
B77: ='2021 Determination Revenue'!B$44 -> Peel | C77: $/ML | G77: ='2021 Determination Charges'!G20 -> 24.24338547 | H77: =(('MDB calcs'!H173/'MDB calcs'!H24)*1000) -> 24.62388189 | I77: =(('MDB calcs'!I173/'MDB calcs'!I24)*1000) -> 25.39356209 | J77: =(('MDB calcs'!J173/'MDB calcs'!J24)*1000) -> 27.17528055 | K77: 25.39356209 | M77: =LOOKUP($C$23,'2021 Determination Charges'!$M$13:$O$13,'2021 Determination Charges'!$M20:$O20) -> 27.48 | N77: 28.78 | O77: 0.04730713246 | Q77: =LOOKUP($C$23,'2021 Determination Charges'!$H$13:$J$13,'2021 Determination Charges'!$H20:$J20) -> 24.24338547 | R77: 25.39356209 | S77: 0.04744290472
B78: ='2021 Determination Revenue'!B$45 -> Lachlan | C78: $/ML | G78: ='2021 Determination Charges'!G21 -> 30.83070827 | H78: =(('MDB calcs'!H174/'MDB calcs'!H25)*1000) -> 33.15543743 | I78: =(('MDB calcs'!I174/'MDB calcs'!I25)*1000) -> 36.06860196 | J78: =(('MDB calcs'!J174/'MDB calcs'!J25)*1000) -> 38.33765078 | K78: 36.06860196 | M78: =LOOKUP($C$23,'2021 Determination Charges'!$M$13:$O$13,'2021 Determination Charges'!$M21:$O21) -> 34.94 | N78: 40.88 | O78: 0.1700057241 | Q78: =LOOKUP($C$23,'2021 Determination Charges'!$H$13:$J$13,'2021 Determination Charges'!$H21:$J21) -> 30.83070827 | R78: 36.06860196 | S78: 0.1698920971
B79: ='2021 Determination Revenue'!B$46 -> Macquarie | C79: $/ML | G79: ='2021 Determination Charges'!G22 -> 21.40375101 | H79: =(('MDB calcs'!H175/'MDB calcs'!H26)*1000) -> 22.96688321 | I79: =(('MDB calcs'!I175/'MDB calcs'!I26)*1000) -> 24.99498394 | J79: =(('MDB calcs'!J175/'MDB calcs'!J26)*1000) -> 27.2227082 | K79: 24.99498394 | M79: =LOOKUP($C$23,'2021 Determination Charges'!$M$13:$O$13,'2021 Determination Charges'!$M22:$O22) -> 24.26 | N79: 28.33 | O79: 0.1677658697 | Q79: =LOOKUP($C$23,'2021 Determination Charges'!$H$13:$J$13,'2021 Determination Charges'!$H22:$J22) -> 21.40375101 | R79: 24.99498394 | S79: 0.1677852136
B80: ='2021 Determination Revenue'!B$47 -> Murray | C80: $/ML | G80: ='2021 Determination Charges'!G23 -> 2.897196979 | H80: =(('MDB calcs'!H176/'MDB calcs'!H27)*1000) -> 2.99481283 | I80: =(('MDB calcs'!I176/'MDB calcs'!I27)*1000) -> 3.059887607 | J80: =(('MDB calcs'!J176/'MDB calcs'!J27)*1000) -> 3.05241416 | K80: 3.059887607 | M80: =LOOKUP($C$23,'2021 Determination Charges'!$M$13:$O$13,'2021 Determination Charges'!$M23:$O23) -> 3.28 | N80: =ROUND(ROUND(K80*$C$25,2)*$C$26,2) -> 3.46 | O80: 0.05487804878 | Q80: =LOOKUP($C$23,'2021 Determination Charges'!$H$13:$J$13,'2021 Determination Charges'!$H23:$J23) -> 2.897196979 | R80: 3.059887607 | S80: 0.05615449319
B81: ='2021 Determination Revenue'!B$48 -> Murrumbidgee | C81: $/ML | G81: ='2021 Determination Charges'!G24 -> 4.914336975 | H81: =(('MDB calcs'!H177/'MDB calcs'!H28)*1000) -> 4.963182138 | I81: =(('MDB calcs'!I177/'MDB calcs'!I28)*1000) -> 5.043094702 | J81: =(('MDB calcs'!J177/'MDB calcs'!J28)*1000) -> 5.10937893 | K81: 5.043094702 | M81: =LOOKUP($C$23,'2021 Determination Charges'!$M$13:$O$13,'2021 Determination Charges'!$M24:$O24) -> 5.57 | N81: 5.72 | O81: 0.02692998205 | Q81: =LOOKUP($C$23,'2021 Determination Charges'!$H$13:$J$13,'2021 Determination Charges'!$H24:$J24) -> 4.914336975 | R81: 5.043094702 | S81: 0.02620042697
B82: ='2021 Determination Revenue'!B$49 -> Lowbidgee | C82: =$C$33 -> $/ML | G82: 0 | H82: =(('MDB calcs'!H178/'MDB calcs'!H29)*1000) -> 0 | I82: =(('MDB calcs'!I178/'MDB calcs'!I29)*1000) -> 0 | J82: =(('MDB calcs'!J178/'MDB calcs'!J29)*1000) -> 0 | K82: 0 | M82: =LOOKUP($C$23,'2021 Determination Charges'!$M$13:$O$13,'2021 Determination Charges'!$M25:$O25) -> 0 | N82: 0 | O82: na | Q82: =LOOKUP($C$23,'2021 Determination Charges'!$H$13:$J$13,'2021 Determination Charges'!$H25:$J25) -> 0 | R82: 0 | S82: na
B83: Check=0 | H83: =SUM(H74:H81)-((SUMPRODUCT('MDB calcs'!H170:H177/'MDB calcs'!H21:H28))*1000) -> 0 | I83: =SUM(I74:I81)-((SUMPRODUCT('MDB calcs'!I170:I177/'MDB calcs'!I21:I28))*1000) -> 0 | J83: =SUM(J74:J81)-((SUMPRODUCT('MDB calcs'!J170:J177/'MDB calcs'!J21:J28))*1000) -> 0
B84: =B$43 -> General security entitlement charges
B85: ='2021 Determination Revenue'!B$41 -> Border | C85: =$C$33 -> $/ML | G85: ='2021 Determination Charges'!G28 -> 2.382754219 | H85: =IF('MDB calcs'!H129=0,0,(('MDB calcs'!H158/'MDB calcs'!H129)*1000)) -> 2.378506733 | I85: =IF('MDB calcs'!I129=0,0,(('MDB calcs'!I158/'MDB calcs'!I129)*1000)) -> 2.378856295 | J85: =IF('MDB calcs'!J129=0,0,(('MDB calcs'!J158/'MDB calcs'!J129)*1000)) -> 2.385983888 | K85: =LOOKUP($C$23,$H$70:$J$70,$H85:$J85) -> 2.378856295 | M85: =LOOKUP($C$23,'2021 Determination Charges'!$M$13:$O$13,'2021 Determination Charges'!$M28:$O28) -> 2.7 | N85: =ROUND(ROUND(K85*$C$25,2)*$C$26,2) -> 2.7 | O85: =IF(M85=0,"na",N85/M85-1) -> 0 | Q85: =LOOKUP($C$23,'2021 Determination Charges'!$H$13:$J$13,'2021 Determination Charges'!$H28:$J28) -> 2.382754219 | R85: =K85 -> 2.378856295 | S85: =IF(Q85=0,"na",R85/Q85-1) -> -0.001635890177
B86: ='2021 Determination Revenue'!B$42 -> Gwydir | C86: =$C$33 -> $/ML | G86: ='2021 Determination Charges'!G29 -> 3.995423207 | H86: =IF('MDB calcs'!H130=0,0,(('MDB calcs'!H159/'MDB calcs'!H130)*1000)) -> 3.946262725 | I86: =IF('MDB calcs'!I130=0,0,(('MDB calcs'!I159/'MDB calcs'!I130)*1000)) -> 4.031318152 | J86: =IF('MDB calcs'!J130=0,0,(('MDB calcs'!J159/'MDB calcs'!J130)*1000)) -> 4.15402614 | K86: 4.031318152 | M86: =LOOKUP($C$23,'2021 Determination Charges'!$M$13:$O$13,'2021 Determination Charges'!$M29:$O29) -> 4.53 | N86: =ROUND(ROUND(K86*$C$25,2)*$C$26,2) -> 4.57 | O86: 0.008830022075 | Q86: =LOOKUP($C$23,'2021 Determination Charges'!$H$13:$J$13,'2021 Determination Charges'!$H29:$J29) -> 3.995423207 | R86: 4.031318152 | S86: 0.008984015755
B87: ='2021 Determination Revenue'!B$43 -> Namoi | C87: $/ML | G87: ='2021 Determination Charges'!G30 -> 9.98824506 | H87: =IF('MDB calcs'!H131=0,0,(('MDB calcs'!H160/'MDB calcs'!H131)*1000)) -> 9.874930053 | I87: =IF('MDB calcs'!I131=0,0,(('MDB calcs'!I160/'MDB calcs'!I131)*1000)) -> 9.957386079 | J87: =IF('MDB calcs'!J131=0,0,(('MDB calcs'!J160/'MDB calcs'!J131)*1000)) -> 10.05322514 | K87: 9.957386079 | M87: =LOOKUP($C$23,'2021 Determination Charges'!$M$13:$O$13,'2021 Determination Charges'!$M30:$O30) -> 11.32 | N87: 11.29 | O87: -0.002650176678 | Q87: =LOOKUP($C$23,'2021 Determination Charges'!$H$13:$J$13,'2021 Determination Charges'!$H30:$J30) -> 9.98824506 | R87: 9.957386079 | S87: -0.003089529786
B88: ='2021 Determination Revenue'!B$44 -> Peel | C88: $/ML | G88: ='2021 Determination Charges'!G31 -> 5.752000874 | H88: =IF('MDB calcs'!H132=0,0,(('MDB calcs'!H161/'MDB calcs'!H132)*1000)) -> 5.360447401 | I88: =IF('MDB calcs'!I132=0,0,(('MDB calcs'!I161/'MDB calcs'!I132)*1000)) -> 5.360447401 | J88: =IF('MDB calcs'!J132=0,0,(('MDB calcs'!J161/'MDB calcs'!J132)*1000)) -> 5.531527778 | K88: 5.360447401 | M88: =LOOKUP($C$23,'2021 Determination Charges'!$M$13:$O$13,'2021 Determination Charges'!$M31:$O31) -> 6.52 | N88: =ROUND(ROUND(K88*$C$25,2)*$C$26,2) -> 6.08 | O88: -0.06748466258 | Q88: =LOOKUP($C$23,'2021 Determination Charges'!$H$13:$J$13,'2021 Determination Charges'!$H31:$J31) -> 5.752000874 | R88: 5.360447401 | S88: -0.06807256833
B89: ='2021 Determination Revenue'!B$45 -> Lachlan | C89: $/ML | G89: ='2021 Determination Charges'!G32 -> 3.670163327 | H89: =IF('MDB calcs'!H133=0,0,(('MDB calcs'!H162/'MDB calcs'!H133)*1000)) -> 3.45107825 | I89: =IF('MDB calcs'!I133=0,0,(('MDB calcs'!I162/'MDB calcs'!I133)*1000)) -> 3.613741755 | J89: =IF('MDB calcs'!J133=0,0,(('MDB calcs'!J162/'MDB calcs'!J133)*1000)) -> 3.855489453 | K89: 3.613741755 | M89: =LOOKUP($C$23,'2021 Determination Charges'!$M$13:$O$13,'2021 Determination Charges'!$M32:$O32) -> 4.16 | N89: 4.09 | O89: -0.01682692308 | Q89: =LOOKUP($C$23,'2021 Determination Charges'!$H$13:$J$13,'2021 Determination Charges'!$H32:$J32) -> 3.670163327 | R89: 3.613741755 | S89: -0.01537304107
B90: ='2021 Determination Revenue'!B$46 -> Macquarie | C90: $/ML | G90: ='2021 Determination Charges'!G33 -> 3.90190304 | H90: =IF('MDB calcs'!H134=0,0,(('MDB calcs'!H163/'MDB calcs'!H134)*1000)) -> 3.695597083 | I90: =IF('MDB calcs'!I134=0,0,(('MDB calcs'!I163/'MDB calcs'!I134)*1000)) -> 3.713686529 | J90: =IF('MDB calcs'!J134=0,0,(('MDB calcs'!J163/'MDB calcs'!J134)*1000)) -> 3.872107032 | K90: 3.713686529 | M90: =LOOKUP($C$23,'2021 Determination Charges'!$M$13:$O$13,'2021 Determination Charges'!$M33:$O33) -> 4.42 | N90: 4.2 | O90: -0.04977375566 | Q90: =LOOKUP($C$23,'2021 Determination Charges'!$H$13:$J$13,'2021 Determination Charges'!$H33:$J33) -> 3.90190304 | R90: 3.713686529 | S90: -0.04823710615
B91: ='2021 Determination Revenue'!B$47 -> Murray | C91: $/ML | G91: ='2021 Determination Charges'!G34 -> 0.9823326053 | H91: =IF('MDB calcs'!H135=0,0,(('MDB calcs'!H164/'MDB calcs'!H135)*1000)) -> 0.958397609 | I91: =IF('MDB calcs'!I135=0,0,(('MDB calcs'!I164/'MDB calcs'!I135)*1000)) -> 0.9723795258 | J91: =IF('MDB calcs'!J135=0,0,(('MDB calcs'!J164/'MDB calcs'!J135)*1000)) -> 0.9925814195 | K91: 0.9723795258 | M91: =LOOKUP($C$23,'2021 Determination Charges'!$M$13:$O$13,'2021 Determination Charges'!$M34:$O34) -> 1.11 | N91: 1.1 | O91: -0.009009009009 | Q91: =LOOKUP($C$23,'2021 Determination Charges'!$H$13:$J$13,'2021 Determination Charges'!$H34:$J34) -> 0.9823326053 | R91: 0.9723795258 | S91: -0.0101320871
B92: ='2021 Determination Revenue'!B$48 -> Murrumbidgee | C92: $/ML | G92: ='2021 Determination Charges'!G35 -> 1.417164848 | H92: =IF('MDB calcs'!H136=0,0,(('MDB calcs'!H165/'MDB calcs'!H136)*1000)) -> 1.392249863 | I92: =IF('MDB calcs'!I136=0,0,(('MDB calcs'!I165/'MDB calcs'!I136)*1000)) -> 1.406777273 | J92: =IF('MDB calcs'!J136=0,0,(('MDB calcs'!J165/'MDB calcs'!J136)*1000)) -> 1.429230602 | K92: 1.406777273 | M92: =LOOKUP($C$23,'2021 Determination Charges'!$M$13:$O$13,'2021 Determination Charges'!$M35:$O35) -> 1.6 | N92: 1.59 | O92: -0.00625 | Q92: =LOOKUP($C$23,'2021 Determination Charges'!$H$13:$J$13,'2021 Determination Charges'!$H35:$J35) -> 1.417164848 | R92: 1.406777273 | S92: -0.007329828365
B93: ='2021 Determination Revenue'!B$49 -> Lowbidgee | C93: =$C$33 -> $/ML | G93: ='2021 Determination Charges'!G36 -> 1.704125639 | H93: =IF('MDB calcs'!H137=0,0,(('MDB calcs'!H154/'MDB calcs'!H137)*1000)) -> 1.704125639 | I93: =IF('MDB calcs'!I137=0,0,(('MDB calcs'!I154/'MDB calcs'!I137)*1000)) -> 1.704125639 | J93: =IF('MDB calcs'!J137=0,0,(('MDB calcs'!J154/'MDB calcs'!J137)*1000)) -> 1.704125639 | K93: 1.704125639 | M93: =LOOKUP($C$23,'2021 Determination Charges'!$M$13:$O$13,'2021 Determination Charges'!$M36:$O36) -> 1.93 | N93: 1.93 | O93: 0 | Q93: =LOOKUP($C$23,'2021 Determination Charges'!$H$13:$J$13,'2021 Determination Charges'!$H36:$J36) -> 1.704125639 | R93: 1.704125639 | S93: 0
B95: =B$54 -> High security entitlement charges
B96: ='2021 Determination Revenue'!B$41 -> Border | C96: =$C$33 -> $/ML | G96: ='2021 Determination Charges'!G39 -> 6.508920069 | H96: =(H85*'MDB calcs'!H112) -> 6.864862403 | I96: =(I85*'MDB calcs'!I112) -> 6.835568849 | J96: =(J85*'MDB calcs'!J112) -> 6.238271588 | K96: =LOOKUP($C$23,$H$70:$J$70,$H96:$J96) -> 6.835568849 | M96: =LOOKUP($C$23,'2021 Determination Charges'!$M$13:$O$13,'2021 Determination Charges'!$M39:$O39) -> 7.38 | N96: =ROUND(ROUND(K96*$C$25,2)*$C$26,2) -> 7.75 | O96: =IF(M96=0,"na",N96/M96-1) -> 0.05013550136 | Q96: =LOOKUP($C$23,'2021 Determination Charges'!$H$13:$J$13,'2021 Determination Charges'!$H39:$J39) -> 6.508920069 | R96: =K96 -> 6.835568849 | S96: =IF(Q96=0,"na",R96/Q96-1) -> 0.05018478894
B97: ='2021 Determination Revenue'!B$42 -> Gwydir | C97: =$C$33 -> $/ML | G97: ='2021 Determination Charges'!G40 -> 17.21468309 | H97: =(H86*'MDB calcs'!H113) -> 17.94543152 | I97: =(I86*'MDB calcs'!I113) -> 16.35286082 | J97: =(J86*'MDB calcs'!J113) -> 14.05528673 | K97: 16.35286082 | M97: =LOOKUP($C$23,'2021 Determination Charges'!$M$13:$O$13,'2021 Determination Charges'!$M40:$O40) -> 19.51 | N97: 18.53 | O97: -0.05023065095 | Q97: =LOOKUP($C$23,'2021 Determination Charges'!$H$13:$J$13,'2021 Determination Charges'!$H40:$J40) -> 17.21468309 | R97: 16.35286082 | S97: -0.05006320837
B98: ='2021 Determination Revenue'!B$43 -> Namoi | C98: $/ML | G98: ='2021 Determination Charges'!G41 -> 28.61710191 | H98: =(H87*'MDB calcs'!H114) -> 31.8050076 | I98: =(I87*'MDB calcs'!I114) -> 29.41096623 | J98: =(J87*'MDB calcs'!J114) -> 26.55672161 | K98: 29.41096623 | M98: =LOOKUP($C$23,'2021 Determination Charges'!$M$13:$O$13,'2021 Determination Charges'!$M41:$O41) -> 32.43 | N98: =ROUND(ROUND(K98*$C$25,2)*$C$26,2) -> 33.33 | O98: 0.02775208141 | Q98: =LOOKUP($C$23,'2021 Determination Charges'!$H$13:$J$13,'2021 Determination Charges'!$H41:$J41) -> 28.61710191 | R98: 29.41096623 | S98: 0.02774090547
B99: ='2021 Determination Revenue'!B$44 -> Peel | C99: $/ML | G99: ='2021 Determination Charges'!G42 -> 60.69634946 | H99: =(H88*'MDB calcs'!H115) -> 61.4645001 | I99: =(I88*'MDB calcs'!I115) -> 61.4645001 | J99: =(J88*'MDB calcs'!J115) -> 61.21175211 | K99: 61.4645001 | M99: =LOOKUP($C$23,'2021 Determination Charges'!$M$13:$O$13,'2021 Determination Charges'!$M42:$O42) -> 68.78 | N99: 69.66 | O99: 0.01279441698 | Q99: =LOOKUP($C$23,'2021 Determination Charges'!$H$13:$J$13,'2021 Determination Charges'!$H42:$J42) -> 60.69634946 | R99: 61.4645001 | S99: 0.01265563158
B100: ='2021 Determination Revenue'!B$45 -> Lachlan | C100: $/ML | G100: ='2021 Determination Charges'!G43 -> 24.82310317 | H100: =(H89*'MDB calcs'!H116) -> 27.23793892 | I100: =(I89*'MDB calcs'!I116) -> 25.43908719 | J100: =(J89*'MDB calcs'!J116) -> 22.76637158 | K100: 25.43908719 | M100: =LOOKUP($C$23,'2021 Determination Charges'!$M$13:$O$13,'2021 Determination Charges'!$M43:$O43) -> 28.14 | N100: 28.83 | O100: 0.02452025586 | Q100: =LOOKUP($C$23,'2021 Determination Charges'!$H$13:$J$13,'2021 Determination Charges'!$H43:$J43) -> 24.82310317 | R100: 25.43908719 | S100: 0.02481494828
B101: ='2021 Determination Revenue'!B$46 -> Macquarie | C101: $/ML | G101: ='2021 Determination Charges'!G44 -> 19.95603855 | H101: =(H90*'MDB calcs'!H117) -> 23.02432083 | I101: =(I90*'MDB calcs'!I117) -> 22.75938837 | J101: =(J90*'MDB calcs'!J117) -> 20.41085259 | K101: 22.75938837 | M101: =LOOKUP($C$23,'2021 Determination Charges'!$M$13:$O$13,'2021 Determination Charges'!$M44:$O44) -> 22.62 | N101: 25.79 | O101: 0.1401414677 | Q101: =LOOKUP($C$23,'2021 Determination Charges'!$H$13:$J$13,'2021 Determination Charges'!$H44:$J44) -> 19.95603855 | R101: 22.75938837 | S101: 0.1404762676
B102: ='2021 Determination Revenue'!B$47 -> Murray | C102: $/ML | G102: ='2021 Determination Charges'!G45 -> 2.230521001 | H102: =(H91*'MDB calcs'!H118) -> 2.303338472 | I102: =(I91*'MDB calcs'!I118) -> 2.325638945 | J102: =(J91*'MDB calcs'!J118) -> 2.164576941 | K102: 2.325638945 | M102: =LOOKUP($C$23,'2021 Determination Charges'!$M$13:$O$13,'2021 Determination Charges'!$M45:$O45) -> 2.53 | N102: 2.63 | O102: 0.0395256917 | Q102: =LOOKUP($C$23,'2021 Determination Charges'!$H$13:$J$13,'2021 Determination Charges'!$H45:$J45) -> 2.230521001 | R102: 2.325638945 | S102: 0.04264382386
B103: ='2021 Determination Revenue'!B$48 -> Murrumbidgee | C103: $/ML | G103: ='2021 Determination Charges'!G46 -> 4.124045744 | H103: =(H92*'MDB calcs'!H119) -> 4.221480192 | I103: =(I92*'MDB calcs'!I119) -> 4.157620792 | J103: =(J92*'MDB calcs'!J119) -> 4.041442918 | K103: 4.157620792 | M103: =LOOKUP($C$23,'2021 Determination Charges'!$M$13:$O$13,'2021 Determination Charges'!$M46:$O46) -> 4.67 | N103: 4.71 | O103: 0.008565310493 | Q103: =LOOKUP($C$23,'2021 Determination Charges'!$H$13:$J$13,'2021 Determination Charges'!$H46:$J46) -> 4.124045744 | R103: 4.157620792 | S103: 0.008141288787
B104: ='2021 Determination Revenue'!B$49 -> Lowbidgee | C104: =$C$33 -> $/ML | G104: 0 | H104: 0 | I104: 0 | J104: 0 | K104: 0 | M104: =LOOKUP($C$23,'2021 Determination Charges'!$M$13:$O$13,'2021 Determination Charges'!$M47:$O47) -> 0 | N104: 0 | O104: na | Q104: =LOOKUP($C$23,'2021 Determination Charges'!$H$13:$J$13,'2021 Determination Charges'!$H47:$J47) -> 0 | R104: 0 | S104: na
B105: Check=0 | H105: =SUMPRODUCT(H85:H93,'MDB calcs'!H112:H120)-SUM(H96:H104) -> 0 | I105: =SUMPRODUCT(I85:I93,'MDB calcs'!I112:I120)-SUM(I96:I104) -> 0 | J105: =SUMPRODUCT(J85:J93,'MDB calcs'!J112:J120)-SUM(J96:J104) -> 0
B109: TABLE 4.3 - MDBA/BRC CHARGES
B110: ='2021 Determination Revenue'!B$20 -> Financial year | C110: ='2021 Determination Revenue'!C$36 -> Units | G110: ='2021 Determination Revenue'!G$20 -> 2021-22 | H110: ='2021 Determination Revenue'!H$20 -> 2022-23 | I110: ='2021 Determination Revenue'!I$20 -> 2023-24 | J110: ='2021 Determination Revenue'!J$20 -> 2024-25 | M110: =M$29 -> Analysis of 2023-24 Charges based on ∆ in demand and CPI (expressed in $2023-24) | Q110: =Q70 -> Analysis of 2023-24 Charges based on ∆ in demand and CPI (expressed in $2020-21)
G111: =G$30 -> As per 2021 Price Review | H111: =H$30 -> Re-calculated using updated demand | I111: =I$30 -> Re-calculated using updated demand | J111: =J$30 -> Re-calculated using updated demand | K111: =K$30 -> Prices for selected year (ie 2023-24) | M111: =M$30 -> As per 2021 Price Review | N111: =N$30 -> Re-calculated using updated demand | O111: =O$30 -> Difference | Q111: =Q$30 -> As per 2021 Price Review | R111: =R$30 -> Re-calculated using updated demand | S111: =S$30 -> Difference
G112: ='2021 Determination Revenue'!$G$37 -> $2020-21 | H112: ='2021 Determination Revenue'!$G$37 -> $2020-21 | I112: ='2021 Determination Revenue'!$G$37 -> $2020-21 | J112: ='2021 Determination Revenue'!$G$37 -> $2020-21 | K112: ='2021 Determination Revenue'!$G$37 -> $2020-21 | M112: =M$31 -> $2023-24 | N112: =N$31 -> $2023-24 | O112: =$O$31 -> % | Q112: =Q$31 -> $2020-21 | R112: =R$31 -> $2020-21 | S112: =S$31 -> %
B113: =B$32 -> Usage charges
B114: ='2021 Determination Revenue'!B$41 -> Border | C114: =$C$33 -> $/ML | G114: ='2021 Determination Charges'!G57 -> 0.8531212502 | H114: =(('MDB calcs'!H200/'MDB calcs'!H21)*1000) -> 0.8922004497 | I114: =(('MDB calcs'!I200/'MDB calcs'!I21)*1000) -> 0.9199389137 | J114: =(('MDB calcs'!J200/'MDB calcs'!J21)*1000) -> 0.9357871367 | K114: =LOOKUP($C$23,$H$70:$J$70,$H114:$J114) -> 0.9199389137 | M114: =LOOKUP($C$23,'2021 Determination Charges'!$M$13:$O$13,'2021 Determination Charges'!$M57:$O57) -> 0.96 | N114: =ROUND(ROUND(K114*$C$25,2)*$C$26,2) -> 1.04 | O114: =IF(M114=0,"na",N114/M114-1) -> 0.08333333333 | Q114: ='2021 Determination Charges'!I57 -> 0.8531212502 | R114: =K114 -> 0.9199389137 | S114: =IF(Q114=0,"na",R114/Q114-1) -> 0.07832141494
B115: ='2021 Determination Revenue'!B$42 -> Gwydir | C115: =$C$33 -> $/ML | G115: 0 | H115: =(('MDB calcs'!H201/'MDB calcs'!H22)*1000) -> 0 | I115: =(('MDB calcs'!I201/'MDB calcs'!I22)*1000) -> 0 | J115: =(('MDB calcs'!J201/'MDB calcs'!J22)*1000) -> 0 | K115: 0 | M115: 0 | N115: 0 | O115: na | Q115: =G115 -> 0 | R115: 0 | S115: na
B116: ='2021 Determination Revenue'!B$43 -> Namoi | C116: $/ML | G116: 0 | H116: =(('MDB calcs'!H202/'MDB calcs'!H23)*1000) -> 0 | I116: =(('MDB calcs'!I202/'MDB calcs'!I23)*1000) -> 0 | J116: =(('MDB calcs'!J202/'MDB calcs'!J23)*1000) -> 0 | K116: 0 | M116: 0 | N116: 0 | O116: na | Q116: =G116 -> 0 | R116: 0 | S116: na
B117: ='2021 Determination Revenue'!B$44 -> Peel | C117: $/ML | G117: 0 | H117: =(('MDB calcs'!H203/'MDB calcs'!H24)*1000) -> 0 | I117: =(('MDB calcs'!I203/'MDB calcs'!I24)*1000) -> 0 | J117: =(('MDB calcs'!J203/'MDB calcs'!J24)*1000) -> 0 | K117: 0 | M117: 0 | N117: 0 | O117: na | Q117: =G117 -> 0 | R117: 0 | S117: na
B118: ='2021 Determination Revenue'!B$45 -> Lachlan | C118: $/ML | G118: 0 | H118: =(('MDB calcs'!H204/'MDB calcs'!H25)*1000) -> 0 | I118: =(('MDB calcs'!I204/'MDB calcs'!I25)*1000) -> 0 | J118: =(('MDB calcs'!J204/'MDB calcs'!J25)*1000) -> 0 | K118: 0 | M118: 0 | N118: 0 | O118: na | Q118: =G118 -> 0 | R118: 0 | S118: na
B119: ='2021 Determination Revenue'!B$46 -> Macquarie | C119: $/ML | G119: 0 | H119: =(('MDB calcs'!H205/'MDB calcs'!H26)*1000) -> 0 | I119: =(('MDB calcs'!I205/'MDB calcs'!I26)*1000) -> 0 | J119: =(('MDB calcs'!J205/'MDB calcs'!J26)*1000) -> 0 | K119: 0 | M119: 0 | N119: 0 | O119: na | Q119: =G119 -> 0 | R119: 0 | S119: na
B120: ='2021 Determination Revenue'!B$47 -> Murray | C120: $/ML | G120: ='2021 Determination Charges'!G58 -> 1.828758239 | H120: =(('MDB calcs'!H206/'MDB calcs'!H27)*1000) -> 1.890428573 | I120: =(('MDB calcs'!I206/'MDB calcs'!I27)*1000) -> 1.931506005 | J120: =(('MDB calcs'!J206/'MDB calcs'!J27)*1000) -> 1.926788509 | K120: 1.931506005 | M120: =LOOKUP($C$23,'2021 Determination Charges'!$M$13:$O$13,'2021 Determination Charges'!$M58:$O58) -> 2.07 | N120: 2.19 | O120: 0.05797101449 | Q120: ='2021 Determination Charges'!J58 -> 1.828758239 | R120: 1.931506005 | S120: 0.05618444475
B121: ='2021 Determination Revenue'!B$48 -> Murrumbidgee | C121: $/ML | G121: ='2021 Determination Charges'!G59 -> 0.3653793286 | H121: =(('MDB calcs'!H207/'MDB calcs'!H28)*1000) -> 0.3690200695 | I121: =(('MDB calcs'!I207/'MDB calcs'!I28)*1000) -> 0.374961689 | J121: =(('MDB calcs'!J207/'MDB calcs'!J28)*1000) -> 0.3798900213 | K121: 0.374961689 | M121: =LOOKUP($C$23,'2021 Determination Charges'!$M$13:$O$13,'2021 Determination Charges'!$M59:$O59) -> 0.41 | N121: 0.43 | O121: 0.0487804878 | Q121: ='2021 Determination Charges'!J59 -> 0.3653793286 | R121: 0.374961689 | S121: 0.02622578704
B122: ='2021 Determination Revenue'!B$49 -> Lowbidgee | C122: =$C$33 -> $/ML | G122: 0 | H122: =(('MDB calcs'!H208/'MDB calcs'!H29)*1000) -> 0 | I122: =(('MDB calcs'!I208/'MDB calcs'!I29)*1000) -> 0 | J122: =(('MDB calcs'!J208/'MDB calcs'!J29)*1000) -> 0 | K122: 0 | M122: 0 | N122: 0 | O122: na | Q122: =G122 -> 0 | R122: 0 | S122: na
B123: Check=0 | H123: =SUM(H114:H121)-((SUMPRODUCT('MDB calcs'!H200:H207/'MDB calcs'!H21:H28))*1000) -> 0 | I123: =SUM(I114:I121)-((SUMPRODUCT('MDB calcs'!I200:I207/'MDB calcs'!I21:I28))*1000) -> 0 | J123: =SUM(J114:J121)-((SUMPRODUCT('MDB calcs'!J200:J207/'MDB calcs'!J21:J28))*1000) -> 0
B124: =B$43 -> General security entitlement charges
B125: ='2021 Determination Revenue'!B$41 -> Border | C125: =$C$33 -> $/ML | G125: ='2021 Determination Charges'!G62 -> 1.750815175 | H125: =IF('MDB calcs'!H129=0,0,(('MDB calcs'!H188/'MDB calcs'!H129)*1000)) -> 1.747704053 | I125: =IF('MDB calcs'!I129=0,0,(('MDB calcs'!I188/'MDB calcs'!I129)*1000)) -> 1.747960908 | J125: =IF('MDB calcs'!J129=0,0,(('MDB calcs'!J188/'MDB calcs'!J129)*1000)) -> 1.753198195 | K125: =LOOKUP($C$23,$H$70:$J$70,$H125:$J125) -> 1.747960908 | M125: =LOOKUP($C$23,'2021 Determination Charges'!$M$13:$O$13,'2021 Determination Charges'!$M62:$O62) -> 1.98 | N125: =ROUND(ROUND(K125*$C$25,2)*$C$26,2) -> 1.98 | O125: =IF(M125=0,"na",N125/M125-1) -> 0 | Q125: ='2021 Determination Charges'!J62 -> 1.750815175 | R125: =K125 -> 1.747960908 | S125: =IF(Q125=0,"na",R125/Q125-1) -> -0.00163025057
B126: ='2021 Determination Revenue'!B$42 -> Gwydir | C126: =$C$33 -> $/ML | G126: 0 | H126: =IF('MDB calcs'!H130=0,0,(('MDB calcs'!H189/'MDB calcs'!H130)*1000)) -> 0 | I126: =IF('MDB calcs'!I130=0,0,(('MDB calcs'!I189/'MDB calcs'!I130)*1000)) -> 0 | J126: =IF('MDB calcs'!J130=0,0,(('MDB calcs'!J189/'MDB calcs'!J130)*1000)) -> 0 | K126: 0 | M126: 0 | N126: 0 | O126: na | Q126: =G126 -> 0 | R126: 0 | S126: na
B127: ='2021 Determination Revenue'!B$43 -> Namoi | C127: $/ML | G127: 0 | H127: =IF('MDB calcs'!H131=0,0,(('MDB calcs'!H190/'MDB calcs'!H131)*1000)) -> 0 | I127: =IF('MDB calcs'!I131=0,0,(('MDB calcs'!I190/'MDB calcs'!I131)*1000)) -> 0 | J127: =IF('MDB calcs'!J131=0,0,(('MDB calcs'!J190/'MDB calcs'!J131)*1000)) -> 0 | K127: 0 | M127: 0 | N127: 0 | O127: na | Q127: =G127 -> 0 | R127: 0 | S127: na
B128: ='2021 Determination Revenue'!B$44 -> Peel | C128: $/ML | G128: 0 | H128: =IF('MDB calcs'!H132=0,0,(('MDB calcs'!H191/'MDB calcs'!H132)*1000)) -> 0 | I128: =IF('MDB calcs'!I132=0,0,(('MDB calcs'!I191/'MDB calcs'!I132)*1000)) -> 0 | J128: =IF('MDB calcs'!J132=0,0,(('MDB calcs'!J191/'MDB calcs'!J132)*1000)) -> 0 | K128: 0 | M128: 0 | N128: 0 | O128: na | Q128: =G128 -> 0 | R128: 0 | S128: na
B129: ='2021 Determination Revenue'!B$45 -> Lachlan | C129: $/ML | G129: 0 | H129: =IF('MDB calcs'!H133=0,0,(('MDB calcs'!H192/'MDB calcs'!H133)*1000)) -> 0 | I129: =IF('MDB calcs'!I133=0,0,(('MDB calcs'!I192/'MDB calcs'!I133)*1000)) -> 0 | J129: =IF('MDB calcs'!J133=0,0,(('MDB calcs'!J192/'MDB calcs'!J133)*1000)) -> 0 | K129: 0 | M129: 0 | N129: 0 | O129: na | Q129: =G129 -> 0 | R129: 0 | S129: na
B130: ='2021 Determination Revenue'!B$46 -> Macquarie | C130: $/ML | G130: 0 | H130: =IF('MDB calcs'!H134=0,0,(('MDB calcs'!H193/'MDB calcs'!H134)*1000)) -> 0 | I130: =IF('MDB calcs'!I134=0,0,(('MDB calcs'!I193/'MDB calcs'!I134)*1000)) -> 0 | J130: =IF('MDB calcs'!J134=0,0,(('MDB calcs'!J193/'MDB calcs'!J134)*1000)) -> 0 | K130: 0 | M130: 0 | N130: 0 | O130: na | Q130: =G130 -> 0 | R130: 0 | S130: na
B131: ='2021 Determination Revenue'!B$47 -> Murray | C131: $/ML | G131: ='2021 Determination Charges'!G63 -> 3.762410717 | H131: =IF('MDB calcs'!H135=0,0,(('MDB calcs'!H194/'MDB calcs'!H135)*1000)) -> 3.670711785 | I131: =IF('MDB calcs'!I135=0,0,(('MDB calcs'!I194/'MDB calcs'!I135)*1000)) -> 3.72426324 | J131: =IF('MDB calcs'!J135=0,0,(('MDB calcs'!J194/'MDB calcs'!J135)*1000)) -> 3.801637525 | K131: 3.72426324 | M131: =LOOKUP($C$23,'2021 Determination Charges'!$M$13:$O$13,'2021 Determination Charges'!$M63:$O63) -> 4.26 | N131: 4.23 | O131: -0.007042253521 | Q131: ='2021 Determination Charges'!J63 -> 3.762410717 | R131: 3.72426324 | S131: -0.01013910479
B132: ='2021 Determination Revenue'!B$48 -> Murrumbidgee | C132: $/ML | G132: ='2021 Determination Charges'!G64 -> 0.6327081647 | H132: =IF('MDB calcs'!H136=0,0,(('MDB calcs'!H195/'MDB calcs'!H136)*1000)) -> 0.6215807671 | I132: =IF('MDB calcs'!I136=0,0,(('MDB calcs'!I195/'MDB calcs'!I136)*1000)) -> 0.6280666423 | J132: =IF('MDB calcs'!J136=0,0,(('MDB calcs'!J195/'MDB calcs'!J136)*1000)) -> 0.6380911052 | K132: 0.6280666423 | M132: =LOOKUP($C$23,'2021 Determination Charges'!$M$13:$O$13,'2021 Determination Charges'!$M64:$O64) -> 0.72 | N132: 0.71 | O132: -0.01388888889 | Q132: ='2021 Determination Charges'!J64 -> 0.6327081647 | R132: 0.6280666423 | S132: -0.007335961038
B133: ='2021 Determination Revenue'!B$49 -> Lowbidgee | C133: =$C$33 -> $/ML | G133: 0 | H133: =IF('MDB calcs'!H137=0,0,(('MDB calcs'!H196/'MDB calcs'!H137)*1000)) -> 0 | I133: =IF('MDB calcs'!I137=0,0,(('MDB calcs'!I196/'MDB calcs'!I137)*1000)) -> 0 | J133: =IF('MDB calcs'!J137=0,0,(('MDB calcs'!J196/'MDB calcs'!J137)*1000)) -> 0 | K133: 0 | M133: 0 | N133: 0 | O133: na | Q133: =G133 -> 0 | R133: 0 | S133: na
B135: =B$54 -> High security entitlement charges
B136: ='2021 Determination Revenue'!B$41 -> Border | C136: =$C$33 -> $/ML | G136: ='2021 Determination Charges'!G67 -> 4.782665345 | H136: =(H125*'MDB calcs'!H112) -> 5.044235392 | I136: =(I125*'MDB calcs'!I112) -> 5.022710768 | J136: =(J125*'MDB calcs'!J112) -> 4.58382244 | K136: =LOOKUP($C$23,$H$70:$J$70,$H136:$J136) -> 5.022710768 | M136: =LOOKUP($C$23,'2021 Determination Charges'!$M$13:$O$13,'2021 Determination Charges'!$M67:$O67) -> 5.43 | N136: =ROUND(ROUND(K136*$C$25,2)*$C$26,2) -> 5.69 | O136: =IF(M136=0,"na",N136/M136-1) -> 0.04788213628 | Q136: ='2021 Determination Charges'!J67 -> 4.782665345 | R136: =K136 -> 5.022710768 | S136: =IF(Q136=0,"na",R136/Q136-1) -> 0.05019072127
B137: ='2021 Determination Revenue'!B$42 -> Gwydir | C137: =$C$33 -> $/ML | G137: 0 | H137: =(H126*'MDB calcs'!H113) -> 0 | I137: =(I126*'MDB calcs'!I113) -> 0 | J137: =(J126*'MDB calcs'!J113) -> 0 | K137: 0 | M137: 0 | N137: 0 | O137: na | Q137: =G137 -> 0 | R137: 0 | S137: na
B138: ='2021 Determination Revenue'!B$43 -> Namoi | C138: $/ML | G138: 0 | H138: =(H127*'MDB calcs'!H114) -> 0 | I138: =(I127*'MDB calcs'!I114) -> 0 | J138: =(J127*'MDB calcs'!J114) -> 0 | K138: 0 | M138: 0 | N138: 0 | O138: na | Q138: =G138 -> 0 | R138: 0 | S138: na
B139: ='2021 Determination Revenue'!B$44 -> Peel | C139: $/ML | G139: 0 | H139: =(H128*'MDB calcs'!H115) -> 0 | I139: =(I128*'MDB calcs'!I115) -> 0 | J139: =(J128*'MDB calcs'!J115) -> 0 | K139: 0 | M139: 0 | N139: 0 | O139: na | Q139: =G139 -> 0 | R139: 0 | S139: na
B140: ='2021 Determination Revenue'!B$45 -> Lachlan | C140: $/ML | G140: 0 | H140: =(H129*'MDB calcs'!H116) -> 0 | I140: =(I129*'MDB calcs'!I116) -> 0 | J140: =(J129*'MDB calcs'!J116) -> 0 | K140: 0 | M140: 0 | N140: 0 | O140: na | Q140: =G140 -> 0 | R140: 0 | S140: na
B141: ='2021 Determination Revenue'!B$46 -> Macquarie | C141: $/ML | G141: 0 | H141: =(H130*'MDB calcs'!H117) -> 0 | I141: =(I130*'MDB calcs'!I117) -> 0 | J141: =(J130*'MDB calcs'!J117) -> 0 | K141: 0 | M141: 0 | N141: 0 | O141: na | Q141: =G141 -> 0 | R141: 0 | S141: na
B142: ='2021 Determination Revenue'!B$47 -> Murray | C142: $/ML | G142: ='2021 Determination Charges'!G68 -> 8.543069904 | H142: =(H131*'MDB calcs'!H118) -> 8.821903972 | I142: =(I131*'MDB calcs'!I118) -> 8.907315923 | J142: =(J131*'MDB calcs'!J118) -> 8.290440222 | K142: 8.907315923 | M142: =LOOKUP($C$23,'2021 Determination Charges'!$M$13:$O$13,'2021 Determination Charges'!$M68:$O68) -> 9.69 | N142: 10.1 | O142: 0.04231166151 | Q142: ='2021 Determination Charges'!J68 -> 8.543069904 | R142: 8.907315923 | S142: 0.04263643202
B143: ='2021 Determination Revenue'!B$48 -> Murrumbidgee | C143: $/ML | G143: ='2021 Determination Charges'!G69 -> 1.841223636 | H143: =(H132*'MDB calcs'!H119) -> 1.884712627 | I143: =(I132*'MDB calcs'!I119) -> 1.856202101 | J143: =(J132*'MDB calcs'!J119) -> 1.804333587 | K143: 1.856202101 | M143: =LOOKUP($C$23,'2021 Determination Charges'!$M$13:$O$13,'2021 Determination Charges'!$M69:$O69) -> 2.09 | N143: 2.11 | O143: 0.00956937799 | Q143: ='2021 Determination Charges'!J69 -> 1.841223636 | R143: 1.856202101 | S143: 0.008135060534
B144: ='2021 Determination Revenue'!B$49 -> Lowbidgee | C144: =$C$33 -> $/ML | G144: 0 | H144: =(H133*'MDB calcs'!H120) -> 0 | I144: =(I133*'MDB calcs'!I120) -> 0 | J144: =(J133*'MDB calcs'!J120) -> 0 | K144: 0 | M144: 0 | N144: 0 | O144: na | Q144: =G144 -> 0 | R144: 0 | S144: na
B145: Check=0 | H145: =SUMPRODUCT(H125:H133,'MDB calcs'!H112:H120)-SUM(H136:H144) -> 0 | I145: =SUMPRODUCT(I125:I133,'MDB calcs'!I112:I120)-SUM(I136:I144) -> 0 | J145: =SUMPRODUCT(J125:J133,'MDB calcs'!J112:J120)-SUM(J136:J144) -> 0
B149: TABLE 4.4 - FISH RIVER WATER SUPPLY SCHEME CHARGES
B150: ='2021 Determination Revenue'!B$20 -> Financial year | C150: ='2021 Determination Revenue'!C$36 -> Units | G150: ='2021 Determination Revenue'!G$20 -> 2021-22 | H150: ='2021 Determination Revenue'!H$20 -> 2022-23 | I150: ='2021 Determination Revenue'!I$20 -> 2023-24 | J150: ='2021 Determination Revenue'!J$20 -> 2024-25 | M150: =M$29 -> Analysis of 2023-24 Charges based on ∆ in demand and CPI (expressed in $2023-24) | Q150: =Q110 -> Analysis of 2023-24 Charges based on ∆ in demand and CPI (expressed in $2020-21)
G151: =G$30 -> As per 2021 Price Review | H151: =H$30 -> Re-calculated using updated demand | I151: =I$30 -> Re-calculated using updated demand | J151: =J$30 -> Re-calculated using updated demand | K151: =K$30 -> Prices for selected year (ie 2023-24) | M151: =G151 -> As per 2021 Price Review | N151: =H151 -> Re-calculated using updated demand | O151: =$O$30 -> Difference | Q151: =Q111 -> As per 2021 Price Review | R151: =R111 -> Re-calculated using updated demand | S151: =S111 -> Difference
G152: ='2021 Determination Revenue'!$G$37 -> $2020-21 | H152: ='2021 Determination Revenue'!$G$37 -> $2020-21 | I152: ='2021 Determination Revenue'!$G$37 -> $2020-21 | J152: ='2021 Determination Revenue'!$G$37 -> $2020-21 | K152: ='2021 Determination Revenue'!$G$37 -> $2020-21 | M152: =M$31 -> $2023-24 | N152: =N$31 -> $2023-24 | O152: =$O$31 -> % | Q152: =Q$31 -> $2020-21 | R152: =R$31 -> $2020-21 | S152: =S$31 -> %
B153: MAQ
B154: ='Updated Volumes'!B$31 -> Energy Australia | C154: $/kL | G154: ='2021 Determination Charges'!G80 -> 0.4801026975 | H154: =IF('FRWS calcs'!H14=0,0,('FRWS calcs'!H43/'FRWS calcs'!H14)) -> 0.4801026975 | I154: =IF('FRWS calcs'!I14=0,0,('FRWS calcs'!I43/'FRWS calcs'!I14)) -> 0.4801026975 | J154: =IF('FRWS calcs'!J14=0,0,('FRWS calcs'!J43/'FRWS calcs'!J14)) -> 0 | K154: =LOOKUP($C$23,$H$70:$J$70,$H154:$J154) -> 0.4801026975 | M154: =LOOKUP($C$23,'2021 Determination Charges'!$M$13:$O$13,'2021 Determination Charges'!$M80:$O80) -> 0.55 | N154: =ROUND(ROUND(K154*$C$25,2)*$C$26,2) -> 0.55 | O154: =IF(M154=0,"na",N154/M154-1) -> 0 | Q154: ='2021 Determination Charges'!J80 -> 0.4801026975 | R154: =K154 -> 0.4801026975 | S154: =IF(Q154=0,"na",R154/Q154-1) -> 0
B155: ='Updated Volumes'!B$33 -> Minor customers (raw) | C155: =Outputs!$C$154 -> $/kL | G155: ='2021 Determination Charges'!G81 -> 0.4801026975 | H155: =IF('FRWS calcs'!H15=0,0,('FRWS calcs'!H44/'FRWS calcs'!H15)) -> 0.4801026975 | I155: =IF('FRWS calcs'!I15=0,0,('FRWS calcs'!I44/'FRWS calcs'!I15)) -> 0.4801026975 | J155: =IF('FRWS calcs'!J15=0,0,('FRWS calcs'!J44/'FRWS calcs'!J15)) -> 0 | K155: =LOOKUP($C$23,$H$70:$J$70,$H155:$J155) -> 0.4801026975 | M155: =LOOKUP($C$23,'2021 Determination Charges'!$M$13:$O$13,'2021 Determination Charges'!$M81:$O81) -> 0.55 | N155: =ROUND(ROUND(K155*$C$25,2)*$C$26,2) -> 0.55 | O155: =IF(M155=0,"na",N155/M155-1) -> 0 | Q155: ='2021 Determination Charges'!J81 -> 0.4801026975 | R155: 0.4801026975 | S155: 0
B156: ='Updated Volumes'!B$34 -> Minor customers (filtered) | C156: =Outputs!$C$154 -> $/kL | G156: ='2021 Determination Charges'!G82 -> 0.846921779 | H156: =IF('FRWS calcs'!H16=0,0,('FRWS calcs'!H45/'FRWS calcs'!H16)) -> 0.846921779 | I156: =IF('FRWS calcs'!I16=0,0,('FRWS calcs'!I45/'FRWS calcs'!I16)) -> 0.846921779 | J156: =IF('FRWS calcs'!J16=0,0,('FRWS calcs'!J45/'FRWS calcs'!J16)) -> 0 | K156: =LOOKUP($C$23,$H$70:$J$70,$H156:$J156) -> 0.846921779 | M156: =LOOKUP($C$23,'2021 Determination Charges'!$M$13:$O$13,'2021 Determination Charges'!$M82:$O82) -> 0.96 | N156: =ROUND(ROUND(K156*$C$25,2)*$C$26,2) -> 0.96 | O156: =IF(M156=0,"na",N156/M156-1) -> 0 | Q156: ='2021 Determination Charges'!J82 -> 0.846921779 | R156: 0.846921779 | S156: 0
B158: Usage up to MAQ
B159: ='Updated Volumes'!B$31 -> Energy Australia | C159: =Outputs!$C$154 -> $/kL | G159: ='2021 Determination Charges'!G85 -> 0.3246381535 | H159: =IF('FRWS calcs'!H14=0,0,(IF('FRWS calcs'!H20<='FRWS calcs'!H14,(('FRWS calcs'!H58-'FRWS calcs'!H43)/'FRWS calcs'!H20),((('FRWS calcs'!H58-'FRWS calcs'!H43)-(('FRWS calcs'!H20-'FRWS calcs'!H14)*H154))/'FRWS calcs'!H20)))) -> 0.337163612 | I159: =IF('FRWS calcs'!I14=0,0,(IF('FRWS calcs'!I20<='FRWS calcs'!I14,(('FRWS calcs'!I58-'FRWS calcs'!I43)/'FRWS calcs'!I20),((('FRWS calcs'!I58-'FRWS calcs'!I43)-(('FRWS calcs'!I20-'FRWS calcs'!I14)*I154))/'FRWS calcs'!I20)))) -> 0.3644543356 | J159: =IF('FRWS calcs'!J14=0,0,(IF('FRWS calcs'!J20<='FRWS calcs'!J14,(('FRWS calcs'!J58-'FRWS calcs'!J43)/'FRWS calcs'!J20),((('FRWS calcs'!J58-'FRWS calcs'!J43)-(('FRWS calcs'!J20-'FRWS calcs'!J14)*J154))/'FRWS calcs'!J20)))) -> 0 | K159: =LOOKUP($C$23,$H$70:$J$70,$H159:$J159) -> 0.3644543356 | M159: =LOOKUP($C$23,'2021 Determination Charges'!$M$13:$O$13,'2021 Determination Charges'!$M85:$O85) -> 0.37 | N159: =ROUND(ROUND(K159*$C$25,2)*$C$26,2) -> 0.41 | O159: =IF(M159=0,"na",N159/M159-1) -> 0.1081081081 | Q159: ='2021 Determination Charges'!J85 -> 0.3246381535 | R159: =K159 -> 0.3644543356 | S159: =IF(Q159=0,"na",R159/Q159-1) -> 0.1226478824
B160: ='Updated Volumes'!B$33 -> Minor customers (raw) | C160: =Outputs!$C$154 -> $/kL | G160: ='2021 Determination Charges'!G86 -> 0.3246381535 | H160: =IF('FRWS calcs'!H15=0,0,(IF('FRWS calcs'!H21<='FRWS calcs'!H15,(('FRWS calcs'!H59-'FRWS calcs'!H44)/'FRWS calcs'!H21),((('FRWS calcs'!H59-'FRWS calcs'!H44)-(('FRWS calcs'!H21-'FRWS calcs'!H15)*H155))/'FRWS calcs'!H21)))) -> 0.3224889525 | I160: =IF('FRWS calcs'!I15=0,0,(IF('FRWS calcs'!I21<='FRWS calcs'!I15,(('FRWS calcs'!I59-'FRWS calcs'!I44)/'FRWS calcs'!I21),((('FRWS calcs'!I59-'FRWS calcs'!I44)-(('FRWS calcs'!I21-'FRWS calcs'!I15)*I155))/'FRWS calcs'!I21)))) -> 0.3282096113 | J160: =IF('FRWS calcs'!J15=0,0,(IF('FRWS calcs'!J21<='FRWS calcs'!J15,(('FRWS calcs'!J59-'FRWS calcs'!J44)/'FRWS calcs'!J21),((('FRWS calcs'!J59-'FRWS calcs'!J44)-(('FRWS calcs'!J21-'FRWS calcs'!J15)*J155))/'FRWS calcs'!J21)))) -> 0 | K160: =LOOKUP($C$23,$H$70:$J$70,$H160:$J160) -> 0.3282096113 | M160: =LOOKUP($C$23,'2021 Determination Charges'!$M$13:$O$13,'2021 Determination Charges'!$M86:$O86) -> 0.37 | N160: =ROUND(ROUND(K160*$C$25,2)*$C$26,2) -> 0.37 | O160: =IF(M160=0,"na",N160/M160-1) -> 0 | Q160: ='2021 Determination Charges'!J86 -> 0.3246381535 | R160: 0.3282096113 | S160: 0.01100134966
B161: ='Updated Volumes'!B$34 -> Minor customers (filtered) | C161: =Outputs!$C$154 -> $/kL | G161: ='2021 Determination Charges'!G87 -> 0.5246381535 | H161: =IF('FRWS calcs'!H16=0,0,(IF('FRWS calcs'!H22<='FRWS calcs'!H16,(('FRWS calcs'!H60-'FRWS calcs'!H45)/'FRWS calcs'!H22),((('FRWS calcs'!H60-'FRWS calcs'!H45)-(('FRWS calcs'!H22-'FRWS calcs'!H16)*H156))/'FRWS calcs'!H22)))) -> 0.5601531414 | I161: =IF('FRWS calcs'!I16=0,0,(IF('FRWS calcs'!I22<='FRWS calcs'!I16,(('FRWS calcs'!I60-'FRWS calcs'!I45)/'FRWS calcs'!I22),((('FRWS calcs'!I60-'FRWS calcs'!I45)-(('FRWS calcs'!I22-'FRWS calcs'!I16)*I156))/'FRWS calcs'!I22)))) -> 0.6037375821 | J161: =IF('FRWS calcs'!J16=0,0,(IF('FRWS calcs'!J22<='FRWS calcs'!J16,(('FRWS calcs'!J60-'FRWS calcs'!J45)/'FRWS calcs'!J22),((('FRWS calcs'!J60-'FRWS calcs'!J45)-(('FRWS calcs'!J22-'FRWS calcs'!J16)*J156))/'FRWS calcs'!J22)))) -> 0 | K161: =LOOKUP($C$23,$H$70:$J$70,$H161:$J161) -> 0.6037375821 | M161: =LOOKUP($C$23,'2021 Determination Charges'!$M$13:$O$13,'2021 Determination Charges'!$M87:$O87) -> 0.59 | N161: =ROUND(ROUND(K161*$C$25,2)*$C$26,2) -> 0.68 | O161: =IF(M161=0,"na",N161/M161-1) -> 0.1525423729 | Q161: ='2021 Determination Charges'!J87 -> 0.5246381535 | R161: 0.6037375821 | S161: 0.1507694935
B163: Usage in excess of MAQ
B164: ='Updated Volumes'!B$31 -> Energy Australia | C164: =Outputs!$C$154 -> $/kL | G164: =(G154+G159) -> 0.804740851 | H164: =(H154+H159) -> 0.8172663095 | I164: 0.844557033 | J164: =(J154+J159) -> 0 | K164: =LOOKUP($C$23,$H$70:$J$70,$H164:$J164) -> 0.844557033 | M164: =LOOKUP($C$23,'2021 Determination Charges'!$M$13:$O$13,'2021 Determination Charges'!$M90:$O90) -> 0.92 | N164: =ROUND(ROUND(K164*$C$25,2)*$C$26,2) -> 0.95 | O164: =IF(M164=0,"na",N164/M164-1) -> 0.03260869565 | Q164: ='2021 Determination Charges'!J90 -> 0.804740851 | R164: 0.844557033 | S164: =IF(Q164=0,"na",R164/Q164-1) -> 0.04947702361
B165: ='Updated Volumes'!B$33 -> Minor customers (raw) | C165: =Outputs!$C$154 -> $/kL | G165: =(G155+G160) -> 0.804740851 | H165: 0.80259165 | I165: 0.8083123088 | J165: =(J155+J160) -> 0 | K165: =LOOKUP($C$23,$H$70:$J$70,$H165:$J165) -> 0.8083123088 | M165: =LOOKUP($C$23,'2021 Determination Charges'!$M$13:$O$13,'2021 Determination Charges'!$M91:$O91) -> 0.92 | N165: =ROUND(ROUND(K165*$C$25,2)*$C$26,2) -> 0.92 | O165: =IF(M165=0,"na",N165/M165-1) -> 0 | Q165: ='2021 Determination Charges'!J91 -> 0.804740851 | R165: 0.8083123088 | S165: 0.004438022297
B166: ='Updated Volumes'!B$34 -> Minor customers (filtered) | C166: =Outputs!$C$154 -> $/kL | G166: =(G156+G161) -> 1.371559933 | H166: 1.40707492 | I166: 1.450659361 | J166: =(J156+J161) -> 0 | K166: =LOOKUP($C$23,$H$70:$J$70,$H166:$J166) -> 1.450659361 | M166: =LOOKUP($C$23,'2021 Determination Charges'!$M$13:$O$13,'2021 Determination Charges'!$M92:$O92) -> 1.55 | N166: =ROUND(ROUND(K166*$C$25,2)*$C$26,2) -> 1.65 | O166: =IF(M166=0,"na",N166/M166-1) -> 0.06451612903 | Q166: ='2021 Determination Charges'!J92 -> 1.371559933 | R166: 1.450659361 | S166: 0.05767114276
B173: CUSTOMER BILLS
B175: TABLE 4.5 - INDICATIVE BILLS FOR HIGH SECURITY CUSTOMERS - WaterNSW CHARGES
B176: ='2021 Determination Revenue'!B$20 -> Financial year | C176: ='2021 Determination Revenue'!C$36 -> Units | D176: Volumes | I176: =C23 -> 2023-24 | J176: =I176 -> 2023-24 | K176: Bill analysis of based on ∆ in demand and CPI
D177: Entitle-ment | E177: Usage | I177: =G151 -> As per 2021 Price Review | J177: =H151 -> Re-calculated using updated demand | K177: Difference
I178: =$M$31 -> $2023-24 | J178: =I178 -> $2023-24 | K178: =$O$31 -> %
B179: ='2021 Determination Revenue'!B$126 -> Small consumption customers | C179: ="Entitlement = "&'2021 Determination Revenue'!H$126&" kL pa, Usage = "&'2021 Determination Revenue'!H$131*'2021 Determination Revenue'!H$126&" kL pa" -> Entitlement = 100 kL pa, Usage = 100 kL pa
B180: ='2021 Determination Revenue'!B$41 -> Border | C180: $ | D180: ='2021 Determination Revenue'!G$136 -> 100 | E180: =D180*'2021 Determination Revenue'!G$131 -> 100 | I180: =$E180*M74+$D180*M96 -> 1526 | J180: =$E180*N74+$D180*N96 -> 1625 | K180: =IFERROR(J180/I180-1,"na") -> 0.06487549148
B181: ='2021 Determination Revenue'!B$42 -> Gwydir | C181: =C$180 -> $ | D181: =D180 -> 100 | E181: =E180 -> 100 | I181: 3878 | J181: 3952 | K181: 0.01908200103
B182: ='2021 Determination Revenue'!B$43 -> Namoi | C182: $ | D182: =D181 -> 100 | E182: =E181 -> 100 | I182: 6705 | J182: 7152 | K182: 0.06666666667
B183: ='2021 Determination Revenue'!B$44 -> Peel | C183: $ | D183: 100 | E183: 100 | I183: 9626 | J183: 9844 | K183: 0.02264699771
B184: ='2021 Determination Revenue'!B$45 -> Lachlan | C184: $ | D184: 100 | E184: 100 | I184: 6308 | J184: 6971 | K184: 0.105104629
B185: ='2021 Determination Revenue'!B$46 -> Macquarie | C185: $ | D185: 100 | E185: 100 | I185: 4688 | J185: 5412 | K185: 0.1544368601
B186: ='2021 Determination Revenue'!B$47 -> Murray | C186: $ | D186: 100 | E186: 100 | I186: 581 | J186: 609 | K186: 0.04819277108
B187: ='2021 Determination Revenue'!B$48 -> Murrumbidgee | C187: $ | D187: 100 | E187: 100 | I187: 1024 | J187: 1043 | K187: 0.0185546875
B188: ='2021 Determination Revenue'!B$49 -> Lowbidgee | C188: $ | D188: 100 | E188: 100 | I188: 0 | J188: 0 | K188: na
B190: ='2021 Determination Revenue'!B$127 -> Medium consumption customers | C190: ="Entitlement = "&'2021 Determination Revenue'!H$127&" kL pa, Usage = "&'2021 Determination Revenue'!H$132*'2021 Determination Revenue'!H$127&" kL pa" -> Entitlement = 500 kL pa, Usage = 500 kL pa
B191: ='2021 Determination Revenue'!B$41 -> Border | C191: =C$180 -> $ | D191: ='2021 Determination Revenue'!G$137 -> 500 | E191: =D191*'2021 Determination Revenue'!G$132 -> 500 | I191: =$E191*M74+$D191*M96 -> 7630 | J191: =$E191*N74+$D191*N96 -> 8125 | K191: =IFERROR(J191/I191-1,"na") -> 0.06487549148
B192: ='2021 Determination Revenue'!B$42 -> Gwydir | C192: $ | D192: =D191 -> 500 | E192: =E191 -> 500 | I192: 19390 | J192: 19760 | K192: 0.01908200103
B193: ='2021 Determination Revenue'!B$43 -> Namoi | C193: $ | D193: =D192 -> 500 | E193: =E192 -> 500 | I193: 33525 | J193: 35760 | K193: 0.06666666667
B194: ='2021 Determination Revenue'!B$44 -> Peel | C194: $ | D194: 500 | E194: 500 | I194: 48130 | J194: 49220 | K194: 0.02264699771
B195: ='2021 Determination Revenue'!B$45 -> Lachlan | C195: $ | D195: 500 | E195: 500 | I195: 31540 | J195: 34855 | K195: 0.105104629
B196: ='2021 Determination Revenue'!B$46 -> Macquarie | C196: $ | D196: 500 | E196: 500 | I196: 23440 | J196: 27060 | K196: 0.1544368601
B197: ='2021 Determination Revenue'!B$47 -> Murray | C197: $ | D197: 500 | E197: 500 | I197: 2905 | J197: 3045 | K197: 0.04819277108
B198: ='2021 Determination Revenue'!B$48 -> Murrumbidgee | C198: $ | D198: 500 | E198: 500 | I198: 5120 | J198: 5215 | K198: 0.0185546875
B199: ='2021 Determination Revenue'!B$49 -> Lowbidgee | C199: $ | D199: 500 | E199: 500 | I199: 0 | J199: 0 | K199: na
B201: ='2021 Determination Revenue'!B$128 -> Large consumption customers | C201: ="Entitlement = "&'2021 Determination Revenue'!H$128&" kL pa, Usage = "&'2021 Determination Revenue'!H$133*'2021 Determination Revenue'!H$128&" kL pa" -> Entitlement = 1000 kL pa, Usage = 1000 kL pa
B202: ='2021 Determination Revenue'!B$41 -> Border | C202: =C$180 -> $ | D202: ='2021 Determination Revenue'!G$138 -> 1000 | E202: =D202*'2021 Determination Revenue'!G$133 -> 1000 | I202: =$E202*M74+$D202*M96 -> 15260 | J202: =$E202*N74+$D202*N96 -> 16250 | K202: =IFERROR(J202/I202-1,"na") -> 0.06487549148
B203: ='2021 Determination Revenue'!B$42 -> Gwydir | C203: $ | D203: =D202 -> 1000 | E203: =E202 -> 1000 | I203: 38780 | J203: 39520 | K203: 0.01908200103
B204: ='2021 Determination Revenue'!B$43 -> Namoi | C204: $ | D204: =D203 -> 1000 | E204: =E203 -> 1000 | I204: 67050 | J204: 71520 | K204: 0.06666666667
B205: ='2021 Determination Revenue'!B$44 -> Peel | C205: $ | D205: 1000 | E205: 1000 | I205: 96260 | J205: 98440 | K205: 0.02264699771
B206: ='2021 Determination Revenue'!B$45 -> Lachlan | C206: $ | D206: 1000 | E206: 1000 | I206: 63080 | J206: 69710 | K206: 0.105104629
B207: ='2021 Determination Revenue'!B$46 -> Macquarie | C207: $ | D207: 1000 | E207: 1000 | I207: 46880 | J207: 54120 | K207: 0.1544368601
B208: ='2021 Determination Revenue'!B$47 -> Murray | C208: $ | D208: 1000 | E208: 1000 | I208: 5810 | J208: 6090 | K208: 0.04819277108
B209: ='2021 Determination Revenue'!B$48 -> Murrumbidgee | C209: $ | D209: 1000 | E209: 1000 | I209: 10240 | J209: 10430 | K209: 0.0185546875
B210: ='2021 Determination Revenue'!B$49 -> Lowbidgee | C210: $ | D210: 1000 | E210: 1000 | I210: 0 | J210: 0 | K210: na
B214: TABLE 4.6 - INDICATIVE BILLS FOR GENERAL SECURITY CUSTOMERS - WaterNSW CHARGES
B215: ='2021 Determination Revenue'!B$20 -> Financial year | C215: ='2021 Determination Revenue'!C$36 -> Units | D215: Volumes | I215: =$I$176 -> 2023-24 | J215: 2023-24 | K215: Bill analysis of based on ∆ in demand and CPI
D216: Entitle-ment | E216: Usage | I216: =I$177 -> As per 2021 Price Review | J216: =J$177 -> Re-calculated using updated demand | K216: Difference
I217: =$M$31 -> $2023-24 | J217: =I217 -> $2023-24 | K217: =$O$31 -> %
B218: ='2021 Determination Revenue'!B$126 -> Small consumption customers | C218: ="Entitlement = "&'2021 Determination Revenue'!H$136&" kL pa, Usage = "&'2021 Determination Revenue'!H$141*'2021 Determination Revenue'!H$136&" kL pa" -> Entitlement = 100 kL pa, Usage = 60 kL pa
B219: ='2021 Determination Revenue'!B$41 -> Border | C219: =C$180 -> $ | D219: ='2021 Determination Revenue'!G136 -> 100 | E219: =D219*'2021 Determination Revenue'!G141 -> 60 | I219: =M74*$E219+M85*$D219 -> 742.8 | J219: =N74*$E219+N85*$D219 -> 780 | K219: =IFERROR(J219/I219-1,"na") -> 0.05008077544
B220: ='2021 Determination Revenue'!B$42 -> Gwydir | C220: $ | D220: =D219 -> 100 | E220: =E219 -> 60 | I220: 1609.2 | J220: 1716.4 | K220: 0.06661695252
B221: ='2021 Determination Revenue'!B$43 -> Namoi | C221: $ | D221: =D220 -> 100 | E221: =E220 -> 60 | I221: 3209.2 | J221: 3420.4 | K221: 0.06581079397
B222: ='2021 Determination Revenue'!B$44 -> Peel | C222: $ | D222: 100 | E222: 60 | I222: 2300.8 | J222: 2334.8 | K222: 0.01477746871
B223: ='2021 Determination Revenue'!B$45 -> Lachlan | C223: $ | D223: 100 | E223: 60 | I223: 2512.4 | J223: 2861.8 | K223: 0.1390702117
B224: ='2021 Determination Revenue'!B$46 -> Macquarie | C224: $ | D224: 100 | E224: 60 | I224: 1897.6 | J224: 2119.8 | K224: 0.1170952782
B225: ='2021 Determination Revenue'!B$47 -> Murray | C225: $ | D225: 100 | E225: 60 | I225: 307.8 | J225: 317.6 | K225: 0.0318388564
B226: ='2021 Determination Revenue'!B$48 -> Murrumbidgee | C226: $ | D226: 100 | E226: 60 | I226: 494.2 | J226: 502.2 | K226: 0.01618777823
B227: ='2021 Determination Revenue'!B$49 -> Lowbidgee | C227: $ | D227: 100 | E227: 60 | I227: 193 | J227: 193 | K227: 0
B229: ='2021 Determination Revenue'!B$127 -> Medium consumption customers | C229: ="Entitlement = "&'2021 Determination Revenue'!H$137&" kL pa, Usage = "&'2021 Determination Revenue'!H$142*'2021 Determination Revenue'!H$137&" kL pa" -> Entitlement = 500 kL pa, Usage = 300 kL pa
B230: ='2021 Determination Revenue'!B$41 -> Border | C230: =C$180 -> $ | D230: ='2021 Determination Revenue'!G137 -> 500 | E230: =D230*'2021 Determination Revenue'!G142 -> 300 | I230: =M74*$E230+M85*$D230 -> 3714 | J230: =N74*$E230+N85*$D230 -> 3900 | K230: =IFERROR(J230/I230-1,"na") -> 0.05008077544
B231: ='2021 Determination Revenue'!B$42 -> Gwydir | C231: $ | D231: =D230 -> 500 | E231: =E230 -> 300 | I231: 8046 | J231: 8582 | K231: 0.06661695252
B232: ='2021 Determination Revenue'!B$43 -> Namoi | C232: $ | D232: =D231 -> 500 | E232: =E231 -> 300 | I232: 16046 | J232: 17102 | K232: 0.06581079397
B233: ='2021 Determination Revenue'!B$44 -> Peel | C233: $ | D233: 500 | E233: 300 | I233: 11504 | J233: 11674 | K233: 0.01477746871
B234: ='2021 Determination Revenue'!B$45 -> Lachlan | C234: $ | D234: 500 | E234: 300 | I234: 12562 | J234: 14309 | K234: 0.1390702117
... 116 more rows

Sheet Calculations>>
D5: Page intentionally left blank

Sheet FRWS calcs
B2: 6 FISH RIVER WATER SUPPLY SCHEME (FRWS) CALCULATIONS
B3: This worksheet calculates the usage, MAQ and required revenue components needed to calculate the FRWS charges for each customer type and each water type.
B5: List of tables | F5: Row number
B6: =B10 -> TABLE 6.1 - FISH RIVER USAGE AND MAQ VALUES | F6: =ROW(B10) -> 10
B7: =B39 -> TABLE 6.2 - FISH RIVER REQUIRED REVENUE CALCULATIONS | F7: =ROW(B39) -> 39
B10: TABLE 6.1 - FISH RIVER USAGE AND MAQ VALUES
B11: ='2021 Determination Revenue'!B$19 -> Financial year ending 30 June | C11: ='2021 Determination Revenue'!C$19 -> Units | G11: ='2021 Determination Revenue'!G$20 -> 2021-22 | H11: ='2021 Determination Revenue'!H$20 -> 2022-23 | I11: ='2021 Determination Revenue'!I$20 -> 2023-24 | J11: ='2021 Determination Revenue'!J$20 -> 2024-25
B13: MAQ Level
B14: ='Updated Volumes'!B$31 -> Energy Australia | C14: ='Updated Volumes'!$C$20 -> ML | G14: ='Updated Volumes'!AA125 -> 8184 | H14: ='Updated Volumes'!AB125 -> 8184 | I14: ='Updated Volumes'!AC125 -> 8184 | J14: ='Updated Volumes'!AD125 -> 0
B15: ='Updated Volumes'!B$33 -> Minor customers (raw) | C15: ='Updated Volumes'!$C$20 -> ML | G15: ='Updated Volumes'!AA126 -> 18 | H15: ='Updated Volumes'!AB126 -> 18 | I15: ='Updated Volumes'!AC126 -> 18 | J15: ='Updated Volumes'!AD126 -> 0
B16: ='Updated Volumes'!B$34 -> Minor customers (filtered) | C16: ='Updated Volumes'!$C$20 -> ML | G16: ='Updated Volumes'!AA127 -> 47.8 | H16: ='Updated Volumes'!AB127 -> 47.8 | I16: ='Updated Volumes'!AC127 -> 47.8 | J16: ='Updated Volumes'!AD127 -> 0
B18: Total usage
B19: Note: these averages are lagged by 2 years.
B20: ='Updated Volumes'!B$31 -> Energy Australia | C20: ML | G20: =AVERAGE('Updated Volumes'!F31:Y31)/1000 -> 1849.8124 | H20: =AVERAGE('Updated Volumes'!G31:Z31)/1000 -> 1781.0928 | I20: =AVERAGE('Updated Volumes'!H31:AA31)/1000 -> 1647.7227 | J20: =AVERAGE('Updated Volumes'!I31:AB31)/1000 -> 1548.297
B21: ='Updated Volumes'!B$33 -> Minor customers (raw) | C21: ='Updated Volumes'!$C$20 -> ML | G21: =AVERAGE('Updated Volumes'!F33:Y33) -> 51.1609 | H21: =AVERAGE('Updated Volumes'!G33:Z33) -> 51.2979 | I21: =AVERAGE('Updated Volumes'!H33:AA33) -> 50.93485 | J21: =AVERAGE('Updated Volumes'!I33:AB33) -> 49.7718
B22: ='Updated Volumes'!B$34 -> Minor customers (filtered) | C22: ='Updated Volumes'!$C$20 -> ML | G22: =AVERAGE('Updated Volumes'!F34:Y34) -> 102.73255 | H22: =AVERAGE('Updated Volumes'!G34:Z34) -> 100.13955 | I22: =AVERAGE('Updated Volumes'!H34:AA34) -> 97.1309 | J22: =AVERAGE('Updated Volumes'!I34:AB34) -> 92.07225
B24: Usage up to MAQ
B25: ='Updated Volumes'!B$31 -> Energy Australia | C25: ='Updated Volumes'!$C$20 -> ML | G25: =IF(G20>G14,G14,G20) -> 1849.8124 | H25: =IF(H20>H14,H14,H20) -> 1781.0928 | I25: =IF(I20>I14,I14,I20) -> 1647.7227 | J25: 0
B26: ='Updated Volumes'!B$33 -> Minor customers (raw) | C26: ='Updated Volumes'!$C$20 -> ML | G26: 18 | H26: 18 | I26: 18 | J26: 0
B27: ='Updated Volumes'!B$34 -> Minor customers (filtered) | C27: ='Updated Volumes'!$C$20 -> ML | G27: 47.8 | H27: 47.8 | I27: 47.8 | J27: 0
B29: Usage In excess of MAQ
B30: ='Updated Volumes'!B$31 -> Energy Australia | C30: ='Updated Volumes'!$C$20 -> ML | G30: =IF(G20<G14,0,G20-G14) -> 0 | H30: 0 | I30: =IF(I20<I14,0,I20-I14) -> 0 | J30: 1548.297
B31: ='Updated Volumes'!B$33 -> Minor customers (raw) | C31: ='Updated Volumes'!$C$20 -> ML | G31: 33.1609 | H31: 33.2979 | I31: 32.93485 | J31: 49.7718
B32: ='Updated Volumes'!B$34 -> Minor customers (filtered) | C32: ='Updated Volumes'!$C$20 -> ML | G32: 54.93255 | H32: 52.33955 | I32: 49.3309 | J32: 92.07225
B33: Check=0 | G33: =G25+G30-G20 -> 0 | H33: =H25+H30-H20 -> 0 | I33: =I25+I30-I20 -> 0 | J33: =J25+J30-J20 -> 0
B34: Check=0 | G34: =G27+G32-G22 -> 0 | H34: =H27+H32-H22 -> 0 | I34: =I27+I32-I22 -> 0 | J34: =J27+J32-J22 -> 0
B35: Check=0 | G35: =G26+G31-G21 -> 0 | H35: =H26+H31-H21 -> 0 | I35: =I26+I31-I21 -> 0 | J35: =J26+J31-J21 -> 0
B39: TABLE 6.2 - FISH RIVER REQUIRED REVENUE CALCULATIONS
B40: ='2021 Determination Revenue'!B$19 -> Financial year ending 30 June | C40: ='2021 Determination Revenue'!C$19 -> Units | G40: ='2021 Determination Revenue'!G$20 -> 2021-22 | H40: ='2021 Determination Revenue'!H$20 -> 2022-23 | I40: ='2021 Determination Revenue'!I$20 -> 2023-24 | J40: ='2021 Determination Revenue'!J$20 -> 2024-25
B42: Revenue to be recovered from MAQ (fixed) charge
B43: ='Updated Volumes'!B$31 -> Energy Australia | C43: ='2021 Determination Revenue'!$C$41 -> $'000 | G43: =G14*Outputs!G154 -> 3929.160476 | H43: =G43 -> 3929.160476 | I43: 3929.160476 | J43: 3929.160476
B44: ='Updated Volumes'!B$33 -> Minor customers (raw) | C44: ='2021 Determination Revenue'!$C$41 -> $'000 | G44: =G15*Outputs!G155 -> 8.641848555 | H44: 8.641848555 | I44: 8.641848555 | J44: 8.641848555
B45: ='Updated Volumes'!B$34 -> Minor customers (filtered) | C45: ='2021 Determination Revenue'!$C$41 -> $'000 | G45: =G16*Outputs!G156 -> 40.48286104 | H45: 40.48286104 | I45: 40.48286104 | J45: 40.48286104
B47: Revenue to be recovered from Usage up to MAQ
B48: ='Updated Volumes'!B$31 -> Energy Australia | C48: ='2021 Determination Revenue'!$C$41 -> $'000 | G48: =IF(G20<G14,G20*Outputs!G159,G14*Outputs!G159) -> 600.5196818 | H48: =G48 -> 600.5196818 | I48: 600.5196818 | J48: 600.5196818
B49: ='Updated Volumes'!B$33 -> Minor customers (raw) | C49: ='2021 Determination Revenue'!$C$41 -> $'000 | G49: =IF(G21<G15,G21*Outputs!G160,G15*Outputs!G160) -> 5.843486763 | H49: 5.843486763 | I49: 5.843486763 | J49: 5.843486763
B50: ='Updated Volumes'!B$34 -> Minor customers (filtered) | C50: ='2021 Determination Revenue'!$C$41 -> $'000 | G50: =IF(G22<G16,G22*Outputs!G161,G16*Outputs!G161) -> 25.07770374 | H50: 25.07770374 | I50: 25.07770374 | J50: 25.07770374
B52: Revenue to be recovered in excess of MAQ
B53: ='Updated Volumes'!B$31 -> Energy Australia | C53: ='2021 Determination Revenue'!$C$41 -> $'000 | G53: =IF(G20<G14,0,((G20-G14)*Outputs!G164)) -> 0 | H53: =G53 -> 0 | I53: 0 | J53: 0
B54: ='Updated Volumes'!B$33 -> Minor customers (raw) | C54: ='2021 Determination Revenue'!$C$41 -> $'000 | G54: =IF(G21<G15,0,((G21-G15)*Outputs!G165)) -> 26.68593088 | H54: 26.68593088 | I54: 26.68593088 | J54: 26.68593088
B55: ='Updated Volumes'!B$34 -> Minor customers (filtered) | C55: ='2021 Determination Revenue'!$C$41 -> $'000 | G55: =IF(G22<G16,0,((G22-G16)*Outputs!G166)) -> 75.34328457 | H55: 75.34328457 | I55: 75.34328457 | J55: 75.34328457
B57: Total revenue to be recovered
B58: ='Updated Volumes'!B$31 -> Energy Australia | C58: ='2021 Determination Revenue'!$C$41 -> $'000 | G58: =G43+G48+G53 -> 4529.680158 | H58: =G58 -> 4529.680158 | I58: 4529.680158 | J58: 4529.680158
B59: ='Updated Volumes'!B$33 -> Minor customers (raw) | C59: ='2021 Determination Revenue'!$C$41 -> $'000 | G59: =G44+G49+G54 -> 41.1712662 | H59: 41.1712662 | I59: 41.1712662 | J59: 41.1712662
B60: ='Updated Volumes'!B$34 -> Minor customers (filtered) | C60: ='2021 Determination Revenue'!$C$41 -> $'000 | G60: =G45+G50+G55 -> 140.9038493 | H60: 140.9038493 | I60: 140.9038493 | J60: 140.9038493
B61: Check=0 | G61: =G43+G48+G53-G58 -> 0 | H61: =H43+H48+H53-H58 -> 0 | I61: =I43+I48+I53-I58 -> 0 | J61: =J43+J48+J53-J58 -> 0
B62: Check=0 | G62: =G45+G50+G55-G60 -> 0 | H62: =H45+H50+H55-H60 -> 0 | I62: =I45+I50+I55-I60 -> 0 | J62: =J45+J50+J55-J60 -> 0
B63: Check=0 | G63: =G44+G49+G54-G59 -> 0 | H63: =H44+H49+H54-H59 -> 0 | I63: =I44+I49+I54-I59 -> 0 | J63: =J44+J49+J54-J59 -> 0

Sheet MDB calcs
B2: 5 MDB VALLEY CALCULATIONS
B3: This worksheet calculates the usage volumes, entitlement numbers, entitlement premiums and revenue to be recovered from charges in the MDB valleys.
B5: List of tables | H5: Row number
B6: =B16 -> TABLE 5.1 - USAGE AND ENTITLEMENT VOLUMES FOR CALCULATIONS | H6: =ROW(B16) -> 16
B7: =B55 -> TABLE 5.2 - TWENTY YEAR AVERAGE ACTUAL ALLOCATIONS | H7: =ROW(B55) -> 55
B8: =B95 -> TABLE 5.3 - RELIABILITY RATIO AND HIGH SECURITY ENTITLEMENT PREMIUM | H8: =ROW(B95) -> 95
B9: =B125 -> TABLE 5.4 - TOTAL NUMBER OF 'GS ENTITLEMENT EQUIVALENTS' | H9: =ROW(B125) -> 125
B10: =B142 -> TABLE 5.5 - REVENUE TO BE RECOVERED FROM CHARGES (EXCLUDING MDBA/BRC REVENUE) | H10: =ROW(B142) -> 142
B11: =B184 -> TABLE 5.6 - REVENUE TO BE RECOVERED FROM CHARGES (ONLY MDBA/BRC REVENUE) | H11: =ROW(B184) -> 184
B16: TABLE 5.1 - USAGE AND ENTITLEMENT VOLUMES FOR CALCULATIONS
B17: ='2021 Determination Revenue'!B$20 -> Financial year | C17: ='2021 Determination Revenue'!C$36 -> Units | G17: ='2021 Determination Revenue'!G$20 -> 2021-22 | H17: ='2021 Determination Revenue'!H$20 -> 2022-23 | I17: ='2021 Determination Revenue'!I$20 -> 2023-24 | J17: ='2021 Determination Revenue'!J$20 -> 2024-25
B20: Usage Volume (20-yr average) | C20: Note: these 20-year averages are lagged by 2 years.
B21: ='2021 Determination Revenue'!B$41 -> Border | C21: ='Updated Volumes'!$C$20 -> ML | G21: =AVERAGE('Updated Volumes'!F20:Y20) -> 139453.173 | H21: =AVERAGE('Updated Volumes'!G20:Z20) -> 133341.983 | I21: =AVERAGE('Updated Volumes'!H20:AA20) -> 129321.388 | J21: =AVERAGE('Updated Volumes'!I20:AB20) -> 127131.238
B22: ='2021 Determination Revenue'!B$42 -> Gwydir | C22: ='Updated Volumes'!$C$20 -> ML | G22: =AVERAGE('Updated Volumes'!F21:Y21) -> 220489.075 | H22: =AVERAGE('Updated Volumes'!G21:Z21) -> 209344.94 | I22: =AVERAGE('Updated Volumes'!H21:AA21) -> 202456.37 | J22: =AVERAGE('Updated Volumes'!I21:AB21) -> 197507.07
B23: ='2021 Determination Revenue'!B$43 -> Namoi | C23: ='Updated Volumes'!$C$20 -> ML | G23: =AVERAGE('Updated Volumes'!F22:Y22) -> 138240.9495 | H23: =AVERAGE('Updated Volumes'!G22:Z22) -> 131738.605 | I23: =AVERAGE('Updated Volumes'!H22:AA22) -> 125302.941 | J23: =AVERAGE('Updated Volumes'!I22:AB22) -> 118560.2855
B24: ='2021 Determination Revenue'!B$44 -> Peel | C24: ='Updated Volumes'!$C$20 -> ML | G24: =AVERAGE('Updated Volumes'!F23:Y23) -> 12624.9545 | H24: =AVERAGE('Updated Volumes'!G23:Z23) -> 12429.8695 | I24: =AVERAGE('Updated Volumes'!H23:AA23) -> 12053.1195 | J24: =AVERAGE('Updated Volumes'!I23:AB23) -> 11262.8695
B25: ='2021 Determination Revenue'!B$45 -> Lachlan | C25: ='Updated Volumes'!$C$20 -> ML | G25: =AVERAGE('Updated Volumes'!F24:Y24) -> 182100.323 | H25: =AVERAGE('Updated Volumes'!G24:Z24) -> 169332.163 | I25: =AVERAGE('Updated Volumes'!H24:AA24) -> 155655.657 | J25: =AVERAGE('Updated Volumes'!I24:AB24) -> 146443.035
B26: ='2021 Determination Revenue'!B$46 -> Macquarie | C26: ='Updated Volumes'!$C$20 -> ML | G26: =AVERAGE('Updated Volumes'!F25:Y25) -> 232544.636 | H26: =AVERAGE('Updated Volumes'!G25:Z25) -> 216717.586 | I26: =AVERAGE('Updated Volumes'!H25:AA25) -> 199133.054 | J26: =AVERAGE('Updated Volumes'!I25:AB25) -> 182837.3375
B27: ='2021 Determination Revenue'!B$47 -> Murray | C27: ='Updated Volumes'!$C$20 -> ML | G27: =AVERAGE('Updated Volumes'!F26:Y26) -> 1381188.328 | H27: =AVERAGE('Updated Volumes'!G26:Z26) -> 1334490.828 | I27: =AVERAGE('Updated Volumes'!H26:AA26) -> 1306110.147 | J27: =AVERAGE('Updated Volumes'!I26:AB26) -> 1309307.991
B28: ='2021 Determination Revenue'!B$48 -> Murrumbidgee | C28: ='Updated Volumes'!$C$20 -> ML | G28: =AVERAGE('Updated Volumes'!F27:Y27) -> 1530375.539 | H28: =AVERAGE('Updated Volumes'!G27:Z27) -> 1516208.947 | I28: =AVERAGE('Updated Volumes'!H27:AA27) -> 1492183.194 | J28: =AVERAGE('Updated Volumes'!I27:AB27) -> 1472825.027
B29: ='2021 Determination Revenue'!B$49 -> Lowbidgee | C29: ='Updated Volumes'!$C$20 -> ML | G29: =AVERAGE('Updated Volumes'!F28:Y28) -> 42618.83333 | H29: =AVERAGE('Updated Volumes'!G28:Z28) -> 42618.83333 | I29: =AVERAGE('Updated Volumes'!H28:AA28) -> 42618.83333 | J29: =AVERAGE('Updated Volumes'!I28:AB28) -> 42618.83333
B31: General security and supplementary entitlements | C31: Note: these annual figures are lagged by two years.
B32: ='2021 Determination Revenue'!B$41 -> Border | C32: ='Updated Volumes'!$C$20 -> ML | G32: =ROUND(('Updated Volumes'!Y42+'Updated Volumes'!Y64),0) -> 263218 | H32: =ROUND(('Updated Volumes'!Z42+'Updated Volumes'!Z64),0) -> 263218 | I32: =ROUND(('Updated Volumes'!AA42+'Updated Volumes'!AA64),0) -> 263218 | J32: =ROUND(('Updated Volumes'!AB42+'Updated Volumes'!AB64),0) -> 263218
B33: ='2021 Determination Revenue'!B$42 -> Gwydir | C33: ='Updated Volumes'!$C$20 -> ML | G33: =ROUND(('Updated Volumes'!Y43+'Updated Volumes'!Y65),0) -> 509665 | H33: =ROUND(('Updated Volumes'!Z43+'Updated Volumes'!Z65),0) -> 509665 | I33: =ROUND(('Updated Volumes'!AA43+'Updated Volumes'!AA65),0) -> 509665 | J33: =ROUND(('Updated Volumes'!AB43+'Updated Volumes'!AB65),0) -> 509665
B34: ='2021 Determination Revenue'!B$43 -> Namoi | C34: ='Updated Volumes'!$C$20 -> ML | G34: =ROUND(('Updated Volumes'!Y44+'Updated Volumes'!Y66),0) -> 256529 | H34: =ROUND(('Updated Volumes'!Z44+'Updated Volumes'!Z66),0) -> 256691 | I34: =ROUND(('Updated Volumes'!AA44+'Updated Volumes'!AA66),0) -> 256691 | J34: =ROUND(('Updated Volumes'!AB44+'Updated Volumes'!AB66),0) -> 256754
B35: ='2021 Determination Revenue'!B$44 -> Peel | C35: ='Updated Volumes'!$C$20 -> ML | G35: =ROUND(('Updated Volumes'!Y45+'Updated Volumes'!Y67),0) -> 29635 | H35: =ROUND(('Updated Volumes'!Z45+'Updated Volumes'!Z67),0) -> 29311 | I35: =ROUND(('Updated Volumes'!AA45+'Updated Volumes'!AA67),0) -> 29311 | J35: =ROUND(('Updated Volumes'!AB45+'Updated Volumes'!AB67),0) -> 29198
B36: ='2021 Determination Revenue'!B$45 -> Lachlan | C36: ='Updated Volumes'!$C$20 -> ML | G36: =ROUND(('Updated Volumes'!Y46+'Updated Volumes'!Y68),0) -> 633166 | H36: =ROUND(('Updated Volumes'!Z46+'Updated Volumes'!Z68),0) -> 633166 | I36: =ROUND(('Updated Volumes'!AA46+'Updated Volumes'!AA68),0) -> 633166 | J36: =ROUND(('Updated Volumes'!AB46+'Updated Volumes'!AB68),0) -> 633166
B37: ='2021 Determination Revenue'!B$46 -> Macquarie | C37: ='Updated Volumes'!$C$20 -> ML | G37: =ROUND(('Updated Volumes'!Y47+'Updated Volumes'!Y69),0) -> 632466 | H37: =ROUND(('Updated Volumes'!Z47+'Updated Volumes'!Z69),0) -> 632466 | I37: =ROUND(('Updated Volumes'!AA47+'Updated Volumes'!AA69),0) -> 632466 | J37: =ROUND(('Updated Volumes'!AB47+'Updated Volumes'!AB69),0) -> 632466
B38: ='2021 Determination Revenue'!B$47 -> Murray | C38: ='Updated Volumes'!$C$20 -> ML | G38: =ROUND(('Updated Volumes'!Y48+'Updated Volumes'!Y70),0) -> 2083603 | H38: =ROUND(('Updated Volumes'!Z48+'Updated Volumes'!Z70),0) -> 2083603 | I38: =ROUND(('Updated Volumes'!AA48+'Updated Volumes'!AA70),0) -> 2083553 | J38: =ROUND(('Updated Volumes'!AB48+'Updated Volumes'!AB70),0) -> 2083617
B39: ='2021 Determination Revenue'!B$48 -> Murrumbidgee | C39: ='Updated Volumes'!$C$20 -> ML | G39: =ROUND(('Updated Volumes'!Y49+'Updated Volumes'!Y71),0) -> 2264995 | H39: =ROUND(('Updated Volumes'!Z49+'Updated Volumes'!Z71),0) -> 2264995 | I39: =ROUND(('Updated Volumes'!AA49+'Updated Volumes'!AA71),0) -> 2267963 | J39: =ROUND(('Updated Volumes'!AB49+'Updated Volumes'!AB71),0) -> 2267963
B40: ='2021 Determination Revenue'!B$49 -> Lowbidgee | C40: ='Updated Volumes'!$C$20 -> ML | G40: =ROUND(('Updated Volumes'!Y50+'Updated Volumes'!Y72),0) -> 747000 | H40: =ROUND(('Updated Volumes'!Z50+'Updated Volumes'!Z72),0) -> 747000 | I40: =ROUND(('Updated Volumes'!AA50+'Updated Volumes'!AA72),0) -> 747000 | J40: =ROUND(('Updated Volumes'!AB50+'Updated Volumes'!AB72),0) -> 747000
B42: ='Updated Volumes'!B52 -> High security entitlements | C42: Note: these annual figures are lagged by two years.
B43: ='2021 Determination Revenue'!B$41 -> Border | C43: ='Updated Volumes'!$C$20 -> ML | G43: =ROUND('Updated Volumes'!Y53,0) -> 3141 | H43: =ROUND('Updated Volumes'!Z53,0) -> 3141 | I43: =ROUND('Updated Volumes'!AA53,0) -> 3141 | J43: =ROUND('Updated Volumes'!AB53,0) -> 3141
B44: ='2021 Determination Revenue'!B$42 -> Gwydir | C44: ='Updated Volumes'!$C$20 -> ML | G44: =ROUND('Updated Volumes'!Y54,0) -> 26920 | H44: =ROUND('Updated Volumes'!Z54,0) -> 27220 | I44: =ROUND('Updated Volumes'!AA54,0) -> 27220 | J44: =ROUND('Updated Volumes'!AB54,0) -> 27220
B45: ='2021 Determination Revenue'!B$43 -> Namoi | C45: ='Updated Volumes'!$C$20 -> ML | G45: =ROUND('Updated Volumes'!Y55,0) -> 8859 | H45: =ROUND('Updated Volumes'!Z55,0) -> 8841 | I45: =ROUND('Updated Volumes'!AA55,0) -> 8841 | J45: =ROUND('Updated Volumes'!AB55,0) -> 8841
B46: ='2021 Determination Revenue'!B$44 -> Peel | C46: ='Updated Volumes'!$C$20 -> ML | G46: =ROUND('Updated Volumes'!Y56,0) -> 17367 | H46: =ROUND('Updated Volumes'!Z56,0) -> 17367 | I46: =ROUND('Updated Volumes'!AA56,0) -> 17367 | J46: =ROUND('Updated Volumes'!AB56,0) -> 17367
B47: ='2021 Determination Revenue'!B$45 -> Lachlan | C47: ='Updated Volumes'!$C$20 -> ML | G47: =ROUND('Updated Volumes'!Y57,0) -> 57269 | H47: =ROUND('Updated Volumes'!Z57,0) -> 57269 | I47: =ROUND('Updated Volumes'!AA57,0) -> 57270 | J47: =ROUND('Updated Volumes'!AB57,0) -> 57270
B48: ='2021 Determination Revenue'!B$46 -> Macquarie | C48: ='Updated Volumes'!$C$20 -> ML | G48: =ROUND('Updated Volumes'!Y58,0) -> 42672 | H48: =ROUND('Updated Volumes'!Z58,0) -> 42669 | I48: =ROUND('Updated Volumes'!AA58,0) -> 42663 | J48: =ROUND('Updated Volumes'!AB58,0) -> 42663
B49: ='2021 Determination Revenue'!B$47 -> Murray | C49: ='Updated Volumes'!$C$20 -> ML | G49: =ROUND('Updated Volumes'!Y59,0) -> 276920 | H49: =ROUND('Updated Volumes'!Z59,0) -> 276894 | I49: =ROUND('Updated Volumes'!AA59,0) -> 261733 | J49: =ROUND('Updated Volumes'!AB59,0) -> 261733
B50: ='2021 Determination Revenue'!B$48 -> Murrumbidgee | C50: ='Updated Volumes'!$C$20 -> ML | G50: =ROUND('Updated Volumes'!Y60,0) -> 440472 | H50: =ROUND('Updated Volumes'!Z60,0) -> 440475 | I50: =ROUND('Updated Volumes'!AA60,0) -> 438322 | J50: =ROUND('Updated Volumes'!AB60,0) -> 438322
B51: ='2021 Determination Revenue'!B$49 -> Lowbidgee | C51: ='Updated Volumes'!$C$20 -> ML | G51: =ROUND('Updated Volumes'!Y61,0) -> 0 | H51: =ROUND('Updated Volumes'!Z61,0) -> 0 | I51: =ROUND('Updated Volumes'!AA61,0) -> 0 | J51: =ROUND('Updated Volumes'!AB61,0) -> 0
B55: TABLE 5.2 - TWENTY YEAR AVERAGE ACTUAL ALLOCATIONS
B56: ='2021 Determination Revenue'!B$20 -> Financial year | C56: ='2021 Determination Revenue'!C$36 -> Units | G56: ='2021 Determination Revenue'!G$20 -> 2021-22 | H56: ='2021 Determination Revenue'!H$20 -> 2022-23 | I56: ='2021 Determination Revenue'!I$20 -> 2023-24 | J56: ='2021 Determination Revenue'!J$20 -> 2024-25
B58: Note: the 20-year averages in this table are lagged by 2 years.
B59: ='Updated Volumes'!B80 -> General security entitlements
B60: ='2021 Determination Revenue'!B$41 -> Border | C60: ='Updated Volumes'!$C$81 -> % | G60: =AVERAGE('Updated Volumes'!F81:Y81) -> 0.4276013315 | H60: =AVERAGE('Updated Volumes'!G81:Z81) -> 0.4331013315 | I60: =AVERAGE('Updated Volumes'!H81:AA81) -> 0.4350212942 | J60: =AVERAGE('Updated Volumes'!I81:AB81) -> 0.4781016021
B61: ='2021 Determination Revenue'!B$42 -> Gwydir | C61: ='Updated Volumes'!$C$81 -> % | G61: =AVERAGE('Updated Volumes'!F82:Y82) -> 0.3005873546 | H61: =AVERAGE('Updated Volumes'!G82:Z82) -> 0.307238335 | I61: =AVERAGE('Updated Volumes'!H82:AA82) -> 0.3444265703 | J61: =AVERAGE('Updated Volumes'!I82:AB82) -> 0.4129265703
B62: ='2021 Determination Revenue'!B$43 -> Namoi | C62: ='Updated Volumes'!$C$81 -> % | G62: =AVERAGE('Updated Volumes'!F83:Y83) -> 0.403975426 | H62: =AVERAGE('Updated Volumes'!G83:Z83) -> 0.3881393936 | I62: =AVERAGE('Updated Volumes'!H83:AA83) -> 0.4232385839 | J62: =AVERAGE('Updated Volumes'!I83:AB83) -> 0.4732385839
B63: ='2021 Determination Revenue'!B$44 -> Peel | C63: ='Updated Volumes'!$C$81 -> % | G63: =AVERAGE('Updated Volumes'!F84:Y84) -> 0.5603500657 | H63: =AVERAGE('Updated Volumes'!G84:Z84) -> 0.5528500657 | I63: =AVERAGE('Updated Volumes'!H84:AA84) -> 0.5528500657 | J63: =AVERAGE('Updated Volumes'!I84:AB84) -> 0.5728500657
B64: ='2021 Determination Revenue'!B$45 -> Lachlan | C64: ='Updated Volumes'!$C$81 -> % | G64: =AVERAGE('Updated Volumes'!F85:Y85) -> 0.2679321139 | H64: =AVERAGE('Updated Volumes'!G85:Z85) -> 0.2599321139 | I64: =AVERAGE('Updated Volumes'!H85:AA85) -> 0.2914321139 | J64: =AVERAGE('Updated Volumes'!I85:AB85) -> 0.3474321139
B65: ='2021 Determination Revenue'!B$46 -> Macquarie | C65: ='Updated Volumes'!$C$81 -> % | G65: =AVERAGE('Updated Volumes'!F86:Y86) -> 0.3185301876 | H65: =AVERAGE('Updated Volumes'!G86:Z86) -> 0.3025301876 | I65: =AVERAGE('Updated Volumes'!H86:AA86) -> 0.3075586499 | J65: =AVERAGE('Updated Volumes'!I86:AB86) -> 0.3575871123
B66: ='2021 Determination Revenue'!B$47 -> Murray | C66: ='Updated Volumes'!$C$81 -> % | G66: =AVERAGE('Updated Volumes'!F87:Y87) -> 0.534404393 | H66: =AVERAGE('Updated Volumes'!G87:Z87) -> 0.514404393 | I66: =AVERAGE('Updated Volumes'!H87:AA87) -> 0.516904393 | J66: =AVERAGE('Updated Volumes'!I87:AB87) -> 0.566904393
B67: ='2021 Determination Revenue'!B$48 -> Murrumbidgee | C67: ='Updated Volumes'!$C$81 -> % | G67: =AVERAGE('Updated Volumes'!F88:Y88) -> 0.5344630324 | H67: =AVERAGE('Updated Volumes'!G88:Z88) -> 0.5394630324 | I67: =AVERAGE('Updated Volumes'!H88:AA88) -> 0.5534663469 | J67: =AVERAGE('Updated Volumes'!I88:AB88) -> 0.5784663469
B68: ='2021 Determination Revenue'!B$49 -> Lowbidgee | C68: ='Updated Volumes'!$C$81 -> %
B70: ='Updated Volumes'!B91 -> High security entitlements
B71: ='2021 Determination Revenue'!B$41 -> Border | C71: ='Updated Volumes'!$C$81 -> % | G71: =AVERAGE('Updated Volumes'!F92:Y92) -> 1.000016021 | H71: =AVERAGE('Updated Volumes'!G92:Z92) -> 1.000016021 | I71: =AVERAGE('Updated Volumes'!H92:AA92) -> 1.000016021 | J71: =AVERAGE('Updated Volumes'!I92:AB92) -> 1.000016021
B72: ='2021 Determination Revenue'!B$42 -> Gwydir | C72: ='Updated Volumes'!$C$81 -> % | G72: =AVERAGE('Updated Volumes'!F93:Y93) -> 0.9998774141 | H72: =AVERAGE('Updated Volumes'!G93:Z93) -> 0.9998774141 | I72: =AVERAGE('Updated Volumes'!H93:AA93) -> 0.9998774141 | J72: =AVERAGE('Updated Volumes'!I93:AB93) -> 0.9998774141
B73: ='2021 Determination Revenue'!B$43 -> Namoi | C73: ='Updated Volumes'!$C$81 -> % | G73: =AVERAGE('Updated Volumes'!F94:Y94) -> 1.000090232 | H73: =AVERAGE('Updated Volumes'!G94:Z94) -> 1.000090232 | I73: =AVERAGE('Updated Volumes'!H94:AA94) -> 1.000090232 | J73: =AVERAGE('Updated Volumes'!I94:AB94) -> 1.000090232
B74: ='2021 Determination Revenue'!B$44 -> Peel | C74: ='Updated Volumes'!$C$81 -> % | G74: =AVERAGE('Updated Volumes'!F95:Y95) -> 0.969 | H74: =AVERAGE('Updated Volumes'!G95:Z95) -> 0.969 | I74: =AVERAGE('Updated Volumes'!H95:AA95) -> 0.969 | J74: =AVERAGE('Updated Volumes'!I95:AB95) -> 0.969
B75: ='2021 Determination Revenue'!B$45 -> Lachlan | C75: ='Updated Volumes'!$C$81 -> % | G75: =AVERAGE('Updated Volumes'!F96:Y96) -> 0.8221875962 | H75: =AVERAGE('Updated Volumes'!G96:Z96) -> 0.8221875962 | I75: =AVERAGE('Updated Volumes'!H96:AA96) -> 0.8221922209 | J75: =AVERAGE('Updated Volumes'!I96:AB96) -> 0.8221968456
B76: ='2021 Determination Revenue'!B$46 -> Macquarie | C76: ='Updated Volumes'!$C$81 -> % | G76: =AVERAGE('Updated Volumes'!F97:Y97) -> 0.9999946311 | H76: =AVERAGE('Updated Volumes'!G97:Z97) -> 0.9999946311 | I76: =AVERAGE('Updated Volumes'!H97:AA97) -> 1.000023093 | J76: =AVERAGE('Updated Volumes'!I97:AB97) -> 1.000051556
B77: ='2021 Determination Revenue'!B$47 -> Murray | C77: ='Updated Volumes'!$C$81 -> % | G77: =AVERAGE('Updated Volumes'!F98:Y98) -> 0.9458124119 | H77: =AVERAGE('Updated Volumes'!G98:Z98) -> 0.9448124119 | I77: =AVERAGE('Updated Volumes'!H98:AA98) -> 0.9448124119 | J77: =AVERAGE('Updated Volumes'!I98:AB98) -> 0.9448124119
B78: ='2021 Determination Revenue'!B$48 -> Murrumbidgee | C78: ='Updated Volumes'!$C$81 -> % | G78: =AVERAGE('Updated Volumes'!F99:Y99) -> 0.9661848809 | H78: =AVERAGE('Updated Volumes'!G99:Z99) -> 0.9661848809 | I78: =AVERAGE('Updated Volumes'!H99:AA99) -> 0.9661881955 | J78: =AVERAGE('Updated Volumes'!I99:AB99) -> 0.9661915101
B79: ='2021 Determination Revenue'!B$49 -> Lowbidgee | C79: ='Updated Volumes'!$C$81 -> % | G79: =AVERAGE('Updated Volumes'!F100:Y100) -> 0 | H79: =AVERAGE('Updated Volumes'!G100:Z100) -> 0 | I79: =AVERAGE('Updated Volumes'!H100:AA100) -> 0 | J79: =AVERAGE('Updated Volumes'!I100:AB100) -> 0
B81: ='Updated Volumes'!B102 -> Supplementary entitlements | C81: NOT USED
B82: ='2021 Determination Revenue'!B$41 -> Border | C82: ='Updated Volumes'!$C$81 -> % | G82: =AVERAGE('Updated Volumes'!F103:Y103) -> 0 | H82: =AVERAGE('Updated Volumes'!G103:Z103) -> 0 | I82: =AVERAGE('Updated Volumes'!H103:AA103) -> 0 | J82: =AVERAGE('Updated Volumes'!I103:AB103) -> 0
B83: ='2021 Determination Revenue'!B$42 -> Gwydir | C83: ='Updated Volumes'!$C$81 -> % | G83: =AVERAGE('Updated Volumes'!F104:Y104) -> 0 | H83: =AVERAGE('Updated Volumes'!G104:Z104) -> 0 | I83: =AVERAGE('Updated Volumes'!H104:AA104) -> 0 | J83: =AVERAGE('Updated Volumes'!I104:AB104) -> 0
B84: ='2021 Determination Revenue'!B$43 -> Namoi | C84: ='Updated Volumes'!$C$81 -> % | G84: =AVERAGE('Updated Volumes'!F105:Y105) -> 0 | H84: =AVERAGE('Updated Volumes'!G105:Z105) -> 0 | I84: =AVERAGE('Updated Volumes'!H105:AA105) -> 0 | J84: =AVERAGE('Updated Volumes'!I105:AB105) -> 0
B85: ='2021 Determination Revenue'!B$44 -> Peel | C85: ='Updated Volumes'!$C$81 -> % | G85: =AVERAGE('Updated Volumes'!F106:Y106) -> 0 | H85: =AVERAGE('Updated Volumes'!G106:Z106) -> 0 | I85: =AVERAGE('Updated Volumes'!H106:AA106) -> 0 | J85: =AVERAGE('Updated Volumes'!I106:AB106) -> 0
B86: ='2021 Determination Revenue'!B$45 -> Lachlan | C86: ='Updated Volumes'!$C$81 -> % | G86: =AVERAGE('Updated Volumes'!F107:Y107) -> 0 | H86: =AVERAGE('Updated Volumes'!G107:Z107) -> 0 | I86: =AVERAGE('Updated Volumes'!H107:AA107) -> 0 | J86: =AVERAGE('Updated Volumes'!I107:AB107) -> 0
B87: ='2021 Determination Revenue'!B$46 -> Macquarie | C87: ='Updated Volumes'!$C$81 -> % | G87: =AVERAGE('Updated Volumes'!F108:Y108) -> 0 | H87: =AVERAGE('Updated Volumes'!G108:Z108) -> 0 | I87: =AVERAGE('Updated Volumes'!H108:AA108) -> 0 | J87: =AVERAGE('Updated Volumes'!I108:AB108) -> 0
B88: ='2021 Determination Revenue'!B$47 -> Murray | C88: ='Updated Volumes'!$C$81 -> % | G88: =AVERAGE('Updated Volumes'!F109:Y109) -> 0 | H88: =AVERAGE('Updated Volumes'!G109:Z109) -> 0 | I88: =AVERAGE('Updated Volumes'!H109:AA109) -> 0 | J88: =AVERAGE('Updated Volumes'!I109:AB109) -> 0
B89: ='2021 Determination Revenue'!B$48 -> Murrumbidgee | C89: ='Updated Volumes'!$C$81 -> % | G89: =AVERAGE('Updated Volumes'!F110:Y110) -> 0 | H89: =AVERAGE('Updated Volumes'!G110:Z110) -> 0 | I89: =AVERAGE('Updated Volumes'!H110:AA110) -> 0 | J89: =AVERAGE('Updated Volumes'!I110:AB110) -> 0
B90: ='2021 Determination Revenue'!B$49 -> Lowbidgee | C90: ='Updated Volumes'!$C$81 -> % | G90: =AVERAGE('Updated Volumes'!F111:Y111) -> 1 | H90: =AVERAGE('Updated Volumes'!G111:Z111) -> 1 | I90: =AVERAGE('Updated Volumes'!H111:AA111) -> 1 | J90: =AVERAGE('Updated Volumes'!I111:AB111) -> 1
B95: TABLE 5.3 - RELIABILITY RATIO AND HIGH SECURITY ENTITLEMENT PREMIUM
B96: ='2021 Determination Revenue'!B$20 -> Financial year | C96: ='2021 Determination Revenue'!C$36 -> Units | G96: ='2021 Determination Revenue'!G$20 -> 2021-22 | H96: ='2021 Determination Revenue'!H$20 -> 2022-23 | I96: ='2021 Determination Revenue'!I$20 -> 2023-24 | J96: ='2021 Determination Revenue'!J$20 -> 2024-25
B98: Reliability Ratio
B99: Reliability Ratio = 20-year average HS allocations / 20-year average GS allocations
B100: ='2021 Determination Revenue'!B$41 -> Border | C100: # | G100: =G71/G60 -> 2.338664421 | H100: =H71/H60 -> 2.308965472 | I100: 2.298774873 | J100: =J71/J60 -> 2.091639133
B101: ='2021 Determination Revenue'!B$42 -> Gwydir | C101: =C$100 -> # | G101: 3.326412102 | H101: 3.254403179 | I101: =I72/I61 -> 2.903020557 | J101: 2.42144121
B102: ='2021 Determination Revenue'!B$43 -> Namoi | C102: # | G102: 2.475621456 | H102: 2.576626462 | I102: 2.362946741 | J102: 2.113289716
B103: ='2021 Determination Revenue'!B$44 -> Peel | C103: # | G103: 1.729276142 | H103: 1.752735615 | I103: 1.752735615 | J103: 1.691542094
B104: ='2021 Determination Revenue'!B$45 -> Lachlan | C104: # | G104: 3.068641471 | H104: 3.163085868 | I104: 2.821213524 | J104: 2.366496397
B105: ='2021 Determination Revenue'!B$46 -> Macquarie | C105: # | G105: 3.139403014 | H105: 3.305437514 | I105: 3.25148746 | J105: 2.796665544
B106: ='2021 Determination Revenue'!B$47 -> Murray | C106: # | G106: 1.769844007 | H106: 1.836711398 | I106: 1.827828172 | J106: 1.666616847
B107: ='2021 Determination Revenue'!B$48 -> Murrumbidgee | C107: # | G107: 1.807767465 | H107: 1.791012216 | I107: 1.745703602 | J107: 1.670263992
B108: ='2021 Determination Revenue'!B$49 -> Lowbidgee | C108: # | G108: 0 | H108: 0 | I108: 0 | J108: 0
B110: High Security Premium
B111: High Security Premium = Reliability Ratio * Security Factor
B112: ='2021 Determination Revenue'!B$41 -> Border | C112: =C$100 -> # | G112: =G100*'2021 Determination Revenue'!G107 -> 2.923330526 | H112: =H100*'2021 Determination Revenue'!H107 -> 2.88620684 | I112: =I100*'2021 Determination Revenue'!I107 -> 2.873468592 | J112: =J100*'2021 Determination Revenue'!J107 -> 2.614548916
B113: ='2021 Determination Revenue'!B$42 -> Gwydir | C113: # | G113: =G101*'2021 Determination Revenue'!G108 -> 4.648069435 | H113: =H101*'2021 Determination Revenue'!H108 -> 4.547449769 | I113: =I101*'2021 Determination Revenue'!I108 -> 4.056455036 | J113: =J101*'2021 Determination Revenue'!J108 -> 3.383533529
B114: ='2021 Determination Revenue'!B$43 -> Namoi | C114: # | G114: =G102*'2021 Determination Revenue'!G109 -> 3.09452682 | H114: =H102*'2021 Determination Revenue'!H109 -> 3.220783077 | I114: =I102*'2021 Determination Revenue'!I109 -> 2.953683426 | J114: =J102*'2021 Determination Revenue'!J109 -> 2.641612145
B115: ='2021 Determination Revenue'!B$44 -> Peel | C115: # | G115: =G103*'2021 Determination Revenue'!G110 -> 11.3128298 | H115: =H103*'2021 Determination Revenue'!H110 -> 11.46630038 | I115: =I103*'2021 Determination Revenue'!I110 -> 11.46630038 | J115: =J103*'2021 Determination Revenue'!J110 -> 11.06597572
B116: ='2021 Determination Revenue'!B$45 -> Lachlan | C116: # | G116: =G104*'2021 Determination Revenue'!G111 -> 7.656928701 | H116: =H104*'2021 Determination Revenue'!H111 -> 7.892588038 | I116: =I104*'2021 Determination Revenue'!I111 -> 7.039542091 | J116: =J104*'2021 Determination Revenue'!J111 -> 5.90492384
B117: ='2021 Determination Revenue'!B$46 -> Macquarie | C117: # | G117: =G105*'2021 Determination Revenue'!G112 -> 5.917255635 | H117: =H105*'2021 Determination Revenue'!H112 -> 6.230203215 | I117: =I105*'2021 Determination Revenue'!I112 -> 6.128516284 | J117: =J105*'2021 Determination Revenue'!J112 -> 5.271252169
B118: ='2021 Determination Revenue'!B$47 -> Murray | C118: # | G118: =G106*'2021 Determination Revenue'!G113 -> 2.315826975 | H118: =H106*'2021 Determination Revenue'!H113 -> 2.403322432 | I118: =I106*'2021 Determination Revenue'!I113 -> 2.3916988 | J118: =J106*'2021 Determination Revenue'!J113 -> 2.180755048
B119: ='2021 Determination Revenue'!B$48 -> Murrumbidgee | C119: # | G119: =G107*'2021 Determination Revenue'!G114 -> 3.060494405 | H119: =H107*'2021 Determination Revenue'!H114 -> 3.032128287 | I119: =I107*'2021 Determination Revenue'!I114 -> 2.955422206 | J119: =J107*'2021 Determination Revenue'!J114 -> 2.82770528
B120: ='2021 Determination Revenue'!B$49 -> Lowbidgee | C120: # | G120: 0 | H120: 0 | I120: 0 | J120: 0
B125: TABLE 5.4 - TOTAL NUMBER OF 'GS ENTITLEMENT EQUIVALENTS'
B126: ='2021 Determination Revenue'!B$20 -> Financial year | C126: ='2021 Determination Revenue'!C$36 -> Units | G126: ='2021 Determination Revenue'!G$20 -> 2021-22 | H126: ='2021 Determination Revenue'!H$20 -> 2022-23 | I126: ='2021 Determination Revenue'!I$20 -> 2023-24 | J126: ='2021 Determination Revenue'!J$20 -> 2024-25
B128: GS entitlement equivalents' are used to calculate entitlement charges. GS entitlement equivalents = GS entitlements + HS entitlements * HS entitlement premium
B129: ='2021 Determination Revenue'!B$41 -> Border | C129: =C$100 -> # | G129: =G32+(G43*G112) -> 272400.1812 | H129: =H32+(H43*H112) -> 272283.5757 | I129: =I32+(I43*I112) -> 272243.5648 | J129: 271430.2981
B130: ='2021 Determination Revenue'!B$42 -> Gwydir | C130: # | G130: 634791.0292 | H130: 633446.5827 | I130: 620081.7061 | J130: 601764.7827
B131: ='2021 Determination Revenue'!B$43 -> Namoi | C131: # | G131: 283943.4131 | H131: 285165.9432 | I131: 282804.5152 | J131: 280108.493
B132: ='2021 Determination Revenue'!B$44 -> Peel | C132: # | G132: 226104.9151 | H132: 228446.2388 | I132: 228446.2388 | J132: 221380.8004
B133: ='2021 Determination Revenue'!B$45 -> Lachlan | C133: # | G133: 1071670.65 | H133: 1085166.624 | I133: 1036320.576 | J133: 971340.9883
B134: ='2021 Determination Revenue'!B$46 -> Macquarie | C134: # | G134: 884967.1325 | H134: =H37+(H48*H117) -> 898302.541 | I134: 893926.8902 | J134: 857353.4313
B135: ='2021 Determination Revenue'!B$47 -> Murray | C135: # | G135: 2724901.806 | H135: 2749068.561 | I135: 2709539.502 | J135: 2654392.561
B136: ='2021 Determination Revenue'!B$48 -> Murrumbidgee | C136: # | G136: 3613057.092 | H136: 3600571.707 | I136: 3563389.572 | J136: 3507408.434
B137: ='2021 Determination Revenue'!B$49 -> Lowbidgee | C137: # | G137: =G40+G51 -> 747000 | H137: =H40+H51 -> 747000 | I137: =I40+I51 -> 747000 | J137: =J40+J51 -> 747000
B142: TABLE 5.5 - REVENUE TO BE RECOVERED FROM CHARGES (EXCLUDING MDBA/BRC REVENUE)
B143: ='2021 Determination Revenue'!B$20 -> Financial year | C143: ='2021 Determination Revenue'!C$36 -> Units | G143: ='2021 Determination Revenue'!G$20 -> 2021-22 | H143: ='2021 Determination Revenue'!H$20 -> 2022-23 | I143: ='2021 Determination Revenue'!I$20 -> 2023-24 | J143: ='2021 Determination Revenue'!J$20 -> 2024-25
G144: ='2021 Determination Revenue'!G$37 -> $2020-21 | H144: ='2021 Determination Revenue'!H$37 -> $2020-21 | I144: ='2021 Determination Revenue'!I$37 -> $2020-21 | J144: ='2021 Determination Revenue'!J$37 -> $2020-21
B145: Revenue to be recovered from charges (total)
B146: ='2021 Determination Revenue'!B$41 -> Border | C146: ='2021 Determination Revenue'!C$41 -> $'000 | G146: ='2021 Determination Revenue'!G41 -> 1617.101619 | H146: ='2021 Determination Revenue'!H41 -> 1617.101619 | I146: ='2021 Determination Revenue'!I41 -> 1617.101619 | J146: ='2021 Determination Revenue'!J41 -> 1617.101619
B147: ='2021 Determination Revenue'!B$42 -> Gwydir | C147: ='2021 Determination Revenue'!C$41 -> $'000 | G147: ='2021 Determination Revenue'!G42 -> 6248.131838 | H147: ='2021 Determination Revenue'!H42 -> 6248.131838 | I147: ='2021 Determination Revenue'!I42 -> 6248.131838 | J147: ='2021 Determination Revenue'!J42 -> 6248.131838
B148: ='2021 Determination Revenue'!B$43 -> Namoi | C148: ='2021 Determination Revenue'!C$41 -> $'000 | G148: ='2021 Determination Revenue'!G43 -> 7038.029797 | H148: ='2021 Determination Revenue'!H43 -> 7038.029797 | I148: ='2021 Determination Revenue'!I43 -> 7038.029797 | J148: ='2021 Determination Revenue'!J43 -> 7038.029797
B149: ='2021 Determination Revenue'!B$44 -> Peel | C149: ='2021 Determination Revenue'!C$41 -> $'000 | G149: ='2021 Determination Revenue'!G44 -> 1530.645685 | H149: ='2021 Determination Revenue'!H44 -> 1530.645685 | I149: ='2021 Determination Revenue'!I44 -> 1530.645685 | J149: ='2021 Determination Revenue'!J44 -> 1530.645685
B150: ='2021 Determination Revenue'!B$45 -> Lachlan | C150: ='2021 Determination Revenue'!C$41 -> $'000 | G150: ='2021 Determination Revenue'!G45 -> 9359.27687 | H150: ='2021 Determination Revenue'!H45 -> 9359.27687 | I150: ='2021 Determination Revenue'!I45 -> 9359.27687 | J150: ='2021 Determination Revenue'!J45 -> 9359.27687
B151: ='2021 Determination Revenue'!B$46 -> Macquarie | C151: ='2021 Determination Revenue'!C$41 -> $'000 | G151: ='2021 Determination Revenue'!G46 -> 8297.091737 | H151: ='2021 Determination Revenue'!H46 -> 8297.091737 | I151: ='2021 Determination Revenue'!I46 -> 8297.091737 | J151: ='2021 Determination Revenue'!J46 -> 8297.091737
B152: ='2021 Determination Revenue'!B$47 -> Murray | C152: ='2021 Determination Revenue'!C$41 -> $'000 | G152: ='2021 Determination Revenue'!G47 -> 6631.250988 | H152: ='2021 Determination Revenue'!H47 -> 6631.250988 | I152: ='2021 Determination Revenue'!I47 -> 6631.250988 | J152: ='2021 Determination Revenue'!J47 -> 6631.250988
B153: ='2021 Determination Revenue'!B$48 -> Murrumbidgee | C153: ='2021 Determination Revenue'!C$41 -> $'000 | G153: ='2021 Determination Revenue'!G48 -> 12538.11663 | H153: ='2021 Determination Revenue'!H48 -> 12538.11663 | I153: ='2021 Determination Revenue'!I48 -> 12538.11663 | J153: ='2021 Determination Revenue'!J48 -> 12538.11663
B154: ='2021 Determination Revenue'!B$49 -> Lowbidgee | C154: ='2021 Determination Revenue'!C$41 -> $'000 | G154: ='2021 Determination Revenue'!G49 -> 1272.981852 | H154: ='2021 Determination Revenue'!H49 -> 1272.981852 | I154: ='2021 Determination Revenue'!I49 -> 1272.981852 | J154: ='2021 Determination Revenue'!J49 -> 1272.981852
B155: Check=0 | G155: =SUM(G146:G154)-SUM('2021 Determination Revenue'!G41:G49) -> 0 | H155: =SUM(H146:H154)-SUM('2021 Determination Revenue'!H41:H49) -> 0 | I155: =SUM(I146:I154)-SUM('2021 Determination Revenue'!I41:I49) -> 0 | J155: =SUM(J146:J154)-SUM('2021 Determination Revenue'!J41:J49) -> 0
B157: Revenue to be recovered from entitlement charges
B158: ='2021 Determination Revenue'!B$41 -> Border | C158: ='2021 Determination Revenue'!C$41 -> $'000 | G158: =G146*'2021 Determination Revenue'!G53 -> 652.6722233 | H158: =H146*'2021 Determination Revenue'!H53 -> 647.6283181 | I158: =I146*'2021 Determination Revenue'!I53 -> 647.6283181 | J158: =J146*'2021 Determination Revenue'!J53 -> 647.6283181
B159: ='2021 Determination Revenue'!B$42 -> Gwydir | C159: ='2021 Determination Revenue'!C$41 -> $'000 | G159: =G147*'2021 Determination Revenue'!G54 -> 2554.675892 | H159: =H147*'2021 Determination Revenue'!H54 -> 2499.746638 | I159: =I147*'2021 Determination Revenue'!I54 -> 2499.746638 | J159: =J147*'2021 Determination Revenue'!J54 -> 2499.746638
B160: ='2021 Determination Revenue'!B$43 -> Namoi | C160: ='2021 Determination Revenue'!C$41 -> $'000 | G160: =G148*'2021 Determination Revenue'!G55 -> 2876.105654 | H160: =H148*'2021 Determination Revenue'!H55 -> 2815.993742 | I160: =I148*'2021 Determination Revenue'!I55 -> 2815.993742 | J160: =J148*'2021 Determination Revenue'!J55 -> 2815.993742
B161: ='2021 Determination Revenue'!B$44 -> Peel | C161: ='2021 Determination Revenue'!C$41 -> $'000 | G161: =G149*'2021 Determination Revenue'!G56 -> 1219.649838 | H161: =H149*'2021 Determination Revenue'!H56 -> 1224.574047 | I161: =I149*'2021 Determination Revenue'!I56 -> 1224.574047 | J161: =J149*'2021 Determination Revenue'!J56 -> 1224.574047
B162: ='2021 Determination Revenue'!B$45 -> Lachlan | C162: ='2021 Determination Revenue'!C$41 -> $'000 | G162: =G150*'2021 Determination Revenue'!G57 -> 3796.146829 | H162: =H150*'2021 Determination Revenue'!H57 -> 3744.994936 | I162: =I150*'2021 Determination Revenue'!I57 -> 3744.994936 | J162: =J150*'2021 Determination Revenue'!J57 -> 3744.994936
B163: ='2021 Determination Revenue'!B$46 -> Macquarie | C163: ='2021 Determination Revenue'!C$41 -> $'000 | G163: =G151*'2021 Determination Revenue'!G58 -> 3361.447487 | H163: =H151*'2021 Determination Revenue'!H58 -> 3319.76425 | I163: =I151*'2021 Determination Revenue'!I58 -> 3319.76425 | J163: =J151*'2021 Determination Revenue'!J58 -> 3319.76425
B164: ='2021 Determination Revenue'!B$47 -> Murray | C164: ='2021 Determination Revenue'!C$41 -> $'000 | G164: =G152*'2021 Determination Revenue'!G59 -> 2674.841697 | H164: =H152*'2021 Determination Revenue'!H59 -> 2634.700736 | I164: =I152*'2021 Determination Revenue'!I59 -> 2634.700736 | J164: =J152*'2021 Determination Revenue'!J59 -> 2634.700736
B165: ='2021 Determination Revenue'!B$48 -> Murrumbidgee | C165: ='2021 Determination Revenue'!C$41 -> $'000 | G165: =G153*'2021 Determination Revenue'!G60 -> 5083.168521 | H165: =H153*'2021 Determination Revenue'!H60 -> 5012.895465 | I165: =I153*'2021 Determination Revenue'!I60 -> 5012.895465 | J165: =J153*'2021 Determination Revenue'!J60 -> 5012.895465
B166: ='2021 Determination Revenue'!B$49 -> Lowbidgee | C166: ='2021 Determination Revenue'!C$41 -> $'000 | G166: =G154*'2021 Determination Revenue'!G61 -> 1272.981852 | H166: =H154*'2021 Determination Revenue'!H61 -> 1272.981852 | I166: =I154*'2021 Determination Revenue'!I61 -> 1272.981852 | J166: =J154*'2021 Determination Revenue'!J61 -> 1272.981852
B169: Revenue to be recovered from usage charges
B170: ='2021 Determination Revenue'!B$41 -> Border | C170: ='2021 Determination Revenue'!C$41 -> $'000 | G170: =G146*(1-'2021 Determination Revenue'!G53) -> 964.4293956 | H170: =H146*(1-'2021 Determination Revenue'!H53) -> 969.4733008 | I170: =I146*(1-'2021 Determination Revenue'!I53) -> 969.4733008 | J170: =J146*(1-'2021 Determination Revenue'!J53) -> 969.4733008
B171: ='2021 Determination Revenue'!B$42 -> Gwydir | C171: ='2021 Determination Revenue'!C$41 -> $'000 | G171: =G147*(1-'2021 Determination Revenue'!G54) -> 3693.455946 | H171: =H147*(1-'2021 Determination Revenue'!H54) -> 3748.385201 | I171: =I147*(1-'2021 Determination Revenue'!I54) -> 3748.385201 | J171: =J147*(1-'2021 Determination Revenue'!J54) -> 3748.385201
B172: ='2021 Determination Revenue'!B$43 -> Namoi | C172: ='2021 Determination Revenue'!C$41 -> $'000 | G172: =G148*(1-'2021 Determination Revenue'!G55) -> 4161.924143 | H172: =H148*(1-'2021 Determination Revenue'!H55) -> 4222.036055 | I172: =I148*(1-'2021 Determination Revenue'!I55) -> 4222.036055 | J172: =J148*(1-'2021 Determination Revenue'!J55) -> 4222.036055
B173: ='2021 Determination Revenue'!B$44 -> Peel | C173: ='2021 Determination Revenue'!C$41 -> $'000 | G173: =G149*(1-'2021 Determination Revenue'!G56) -> 310.9958476 | H173: =H149*(1-'2021 Determination Revenue'!H56) -> 306.0716384 | I173: =I149*(1-'2021 Determination Revenue'!I56) -> 306.0716384 | J173: =J149*(1-'2021 Determination Revenue'!J56) -> 306.0716384
B174: ='2021 Determination Revenue'!B$45 -> Lachlan | C174: ='2021 Determination Revenue'!C$41 -> $'000 | G174: =G150*(1-'2021 Determination Revenue'!G57) -> 5563.130041 | H174: =H150*(1-'2021 Determination Revenue'!H57) -> 5614.281935 | I174: =I150*(1-'2021 Determination Revenue'!I57) -> 5614.281935 | J174: =J150*(1-'2021 Determination Revenue'!J57) -> 5614.281935
B175: ='2021 Determination Revenue'!B$46 -> Macquarie | C175: ='2021 Determination Revenue'!C$41 -> $'000 | G175: =G151*(1-'2021 Determination Revenue'!G58) -> 4935.64425 | H175: =H151*(1-'2021 Determination Revenue'!H58) -> 4977.327487 | I175: =I151*(1-'2021 Determination Revenue'!I58) -> 4977.327487 | J175: =J151*(1-'2021 Determination Revenue'!J58) -> 4977.327487
B176: ='2021 Determination Revenue'!B$47 -> Murray | C176: ='2021 Determination Revenue'!C$41 -> $'000 | G176: =G152*(1-'2021 Determination Revenue'!G59) -> 3956.40929 | H176: =H152*(1-'2021 Determination Revenue'!H59) -> 3996.550251 | I176: =I152*(1-'2021 Determination Revenue'!I59) -> 3996.550251 | J176: =J152*(1-'2021 Determination Revenue'!J59) -> 3996.550251
B177: ='2021 Determination Revenue'!B$48 -> Murrumbidgee | C177: ='2021 Determination Revenue'!C$41 -> $'000 | G177: =G153*(1-'2021 Determination Revenue'!G60) -> 7454.948107 | H177: =H153*(1-'2021 Determination Revenue'!H60) -> 7525.221162 | I177: =I153*(1-'2021 Determination Revenue'!I60) -> 7525.221162 | J177: =J153*(1-'2021 Determination Revenue'!J60) -> 7525.221162
B178: ='2021 Determination Revenue'!B$49 -> Lowbidgee | C178: ='2021 Determination Revenue'!C$41 -> $'000 | G178: =G154*(1-'2021 Determination Revenue'!G61) -> 0 | H178: =H154*(1-'2021 Determination Revenue'!H61) -> 0 | I178: =I154*(1-'2021 Determination Revenue'!I61) -> 0 | J178: =J154*(1-'2021 Determination Revenue'!J61) -> 0
B179: Check=0 | G179: =SUM(G146:G154)-SUM(G158:G166)-SUM(G170:G178) -> 0 | H179: =SUM(H146:H154)-SUM(H158:H166)-SUM(H170:H178) -> 0 | I179: =SUM(I146:I154)-SUM(I158:I166)-SUM(I170:I178) -> 0 | J179: =SUM(J146:J154)-SUM(J158:J166)-SUM(J170:J178) -> 0
B184: TABLE 5.6 - REVENUE TO BE RECOVERED FROM CHARGES (ONLY MDBA/BRC REVENUE)
B185: ='2021 Determination Revenue'!B$20 -> Financial year | C185: ='2021 Determination Revenue'!C$36 -> Units | G185: ='2021 Determination Revenue'!G$20 -> 2021-22 | H185: ='2021 Determination Revenue'!H$20 -> 2022-23 | I185: ='2021 Determination Revenue'!I$20 -> 2023-24 | J185: ='2021 Determination Revenue'!J$20 -> 2024-25
G186: ='2021 Determination Revenue'!G$73 -> $2020-21 | H186: ='2021 Determination Revenue'!H$73 -> $2020-21 | I186: ='2021 Determination Revenue'!I$73 -> $2020-21 | J186: ='2021 Determination Revenue'!J$73 -> $2020-21
B187: Revenue to be recovered from entitlement charges (MDBA/BRC)
B188: ='2021 Determination Revenue'!B$41 -> Border | C188: ='2021 Determination Revenue'!C$41 -> $'000 | G188: ='2021 Determination Revenue'!G76*'2021 Determination Revenue'!G88 -> 475.8711088 | H188: ='2021 Determination Revenue'!H76*'2021 Determination Revenue'!H88 -> 475.8711088 | I188: ='2021 Determination Revenue'!I76*'2021 Determination Revenue'!I88 -> 475.8711088 | J188: ='2021 Determination Revenue'!J76*'2021 Determination Revenue'!J88 -> 475.8711088
B189: ='2021 Determination Revenue'!B$42 -> Gwydir | C189: ='2021 Determination Revenue'!C$41 -> $'000 | G189: ='2021 Determination Revenue'!G77*'2021 Determination Revenue'!G89 -> 0 | H189: ='2021 Determination Revenue'!H77*'2021 Determination Revenue'!H89 -> 0 | I189: ='2021 Determination Revenue'!I77*'2021 Determination Revenue'!I89 -> 0 | J189: ='2021 Determination Revenue'!J77*'2021 Determination Revenue'!J89 -> 0
B190: ='2021 Determination Revenue'!B$43 -> Namoi | C190: ='2021 Determination Revenue'!C$41 -> $'000 | G190: ='2021 Determination Revenue'!G78*'2021 Determination Revenue'!G90 -> 0 | H190: ='2021 Determination Revenue'!H78*'2021 Determination Revenue'!H90 -> 0 | I190: ='2021 Determination Revenue'!I78*'2021 Determination Revenue'!I90 -> 0 | J190: ='2021 Determination Revenue'!J78*'2021 Determination Revenue'!J90 -> 0
B191: ='2021 Determination Revenue'!B$44 -> Peel | C191: ='2021 Determination Revenue'!C$41 -> $'000 | G191: ='2021 Determination Revenue'!G79*'2021 Determination Revenue'!G91 -> 0 | H191: ='2021 Determination Revenue'!H79*'2021 Determination Revenue'!H91 -> 0 | I191: ='2021 Determination Revenue'!I79*'2021 Determination Revenue'!I91 -> 0 | J191: ='2021 Determination Revenue'!J79*'2021 Determination Revenue'!J91 -> 0
B192: ='2021 Determination Revenue'!B$45 -> Lachlan | C192: ='2021 Determination Revenue'!C$41 -> $'000 | G192: ='2021 Determination Revenue'!G80*'2021 Determination Revenue'!G92 -> 0 | H192: ='2021 Determination Revenue'!H80*'2021 Determination Revenue'!H92 -> 0 | I192: ='2021 Determination Revenue'!I80*'2021 Determination Revenue'!I92 -> 0 | J192: ='2021 Determination Revenue'!J80*'2021 Determination Revenue'!J92 -> 0
B193: ='2021 Determination Revenue'!B$46 -> Macquarie | C193: ='2021 Determination Revenue'!C$41 -> $'000 | G193: ='2021 Determination Revenue'!G81*'2021 Determination Revenue'!G93 -> 0 | H193: ='2021 Determination Revenue'!H81*'2021 Determination Revenue'!H93 -> 0 | I193: ='2021 Determination Revenue'!I81*'2021 Determination Revenue'!I93 -> 0 | J193: ='2021 Determination Revenue'!J81*'2021 Determination Revenue'!J93 -> 0
B194: ='2021 Determination Revenue'!B$47 -> Murray | C194: ='2021 Determination Revenue'!C$41 -> $'000 | G194: ='2021 Determination Revenue'!G82*'2021 Determination Revenue'!G94 -> 10091.03837 | H194: ='2021 Determination Revenue'!H82*'2021 Determination Revenue'!H94 -> 10091.03837 | I194: ='2021 Determination Revenue'!I82*'2021 Determination Revenue'!I94 -> 10091.03837 | J194: ='2021 Determination Revenue'!J82*'2021 Determination Revenue'!J94 -> 10091.03837
B195: ='2021 Determination Revenue'!B$48 -> Murrumbidgee | C195: ='2021 Determination Revenue'!C$41 -> $'000 | G195: ='2021 Determination Revenue'!G83*'2021 Determination Revenue'!G95 -> 2238.046124 | H195: ='2021 Determination Revenue'!H83*'2021 Determination Revenue'!H95 -> 2238.046124 | I195: ='2021 Determination Revenue'!I83*'2021 Determination Revenue'!I95 -> 2238.046124 | J195: ='2021 Determination Revenue'!J83*'2021 Determination Revenue'!J95 -> 2238.046124
B196: ='2021 Determination Revenue'!B$49 -> Lowbidgee | C196: ='2021 Determination Revenue'!C$41 -> $'000 | G196: ='2021 Determination Revenue'!G84*'2021 Determination Revenue'!G96 -> 0 | H196: ='2021 Determination Revenue'!H84*'2021 Determination Revenue'!H96 -> 0 | I196: ='2021 Determination Revenue'!I84*'2021 Determination Revenue'!I96 -> 0 | J196: ='2021 Determination Revenue'!J84*'2021 Determination Revenue'!J96 -> 0
B197: Check=0 | G197: =SUMPRODUCT('2021 Determination Revenue'!G76:G84,'2021 Determination Revenue'!G88:G96)-SUM(G188:G196) -> 0 | H197: =SUMPRODUCT('2021 Determination Revenue'!H76:H84,'2021 Determination Revenue'!H88:H96)-SUM(H188:H196) -> 0 | I197: =SUMPRODUCT('2021 Determination Revenue'!I76:I84,'2021 Determination Revenue'!I88:I96)-SUM(I188:I196) -> 0 | J197: =SUMPRODUCT('2021 Determination Revenue'!J76:J84,'2021 Determination Revenue'!J88:J96)-SUM(J188:J196) -> 0
B199: Revenue to be recovered from usage charges (MDBA/BRC)
B200: ='2021 Determination Revenue'!B$41 -> Border | C200: ='2021 Determination Revenue'!C$41 -> $'000 | G200: ='2021 Determination Revenue'!G76*(1-'2021 Determination Revenue'!G88) -> 118.9677772 | H200: ='2021 Determination Revenue'!H76*(1-'2021 Determination Revenue'!H88) -> 118.9677772 | I200: ='2021 Determination Revenue'!I76*(1-'2021 Determination Revenue'!I88) -> 118.9677772 | J200: ='2021 Determination Revenue'!J76*(1-'2021 Determination Revenue'!J88) -> 118.9677772
B201: ='2021 Determination Revenue'!B$42 -> Gwydir | C201: ='2021 Determination Revenue'!C$41 -> $'000 | G201: ='2021 Determination Revenue'!G77*(1-'2021 Determination Revenue'!G89) -> 0 | H201: ='2021 Determination Revenue'!H77*(1-'2021 Determination Revenue'!H89) -> 0 | I201: ='2021 Determination Revenue'!I77*(1-'2021 Determination Revenue'!I89) -> 0 | J201: ='2021 Determination Revenue'!J77*(1-'2021 Determination Revenue'!J89) -> 0
B202: ='2021 Determination Revenue'!B$43 -> Namoi | C202: ='2021 Determination Revenue'!C$41 -> $'000 | G202: ='2021 Determination Revenue'!G78*(1-'2021 Determination Revenue'!G90) -> 0 | H202: ='2021 Determination Revenue'!H78*(1-'2021 Determination Revenue'!H90) -> 0 | I202: ='2021 Determination Revenue'!I78*(1-'2021 Determination Revenue'!I90) -> 0 | J202: ='2021 Determination Revenue'!J78*(1-'2021 Determination Revenue'!J90) -> 0
B203: ='2021 Determination Revenue'!B$44 -> Peel | C203: ='2021 Determination Revenue'!C$41 -> $'000 | G203: ='2021 Determination Revenue'!G79*(1-'2021 Determination Revenue'!G91) -> 0 | H203: ='2021 Determination Revenue'!H79*(1-'2021 Determination Revenue'!H91) -> 0 | I203: ='2021 Determination Revenue'!I79*(1-'2021 Determination Revenue'!I91) -> 0 | J203: ='2021 Determination Revenue'!J79*(1-'2021 Determination Revenue'!J91) -> 0
B204: ='2021 Determination Revenue'!B$45 -> Lachlan | C204: ='2021 Determination Revenue'!C$41 -> $'000 | G204: ='2021 Determination Revenue'!G80*(1-'2021 Determination Revenue'!G92) -> 0 | H204: ='2021 Determination Revenue'!H80*(1-'2021 Determination Revenue'!H92) -> 0 | I204: ='2021 Determination Revenue'!I80*(1-'2021 Determination Revenue'!I92) -> 0 | J204: ='2021 Determination Revenue'!J80*(1-'2021 Determination Revenue'!J92) -> 0
B205: ='2021 Determination Revenue'!B$46 -> Macquarie | C205: ='2021 Determination Revenue'!C$41 -> $'000 | G205: ='2021 Determination Revenue'!G81*(1-'2021 Determination Revenue'!G93) -> 0 | H205: ='2021 Determination Revenue'!H81*(1-'2021 Determination Revenue'!H93) -> 0 | I205: ='2021 Determination Revenue'!I81*(1-'2021 Determination Revenue'!I93) -> 0 | J205: ='2021 Determination Revenue'!J81*(1-'2021 Determination Revenue'!J93) -> 0
B206: ='2021 Determination Revenue'!B$47 -> Murray | C206: ='2021 Determination Revenue'!C$41 -> $'000 | G206: ='2021 Determination Revenue'!G82*(1-'2021 Determination Revenue'!G94) -> 2522.759591 | H206: ='2021 Determination Revenue'!H82*(1-'2021 Determination Revenue'!H94) -> 2522.759591 | I206: ='2021 Determination Revenue'!I82*(1-'2021 Determination Revenue'!I94) -> 2522.759591 | J206: ='2021 Determination Revenue'!J82*(1-'2021 Determination Revenue'!J94) -> 2522.759591
B207: ='2021 Determination Revenue'!B$48 -> Murrumbidgee | C207: ='2021 Determination Revenue'!C$41 -> $'000 | G207: ='2021 Determination Revenue'!G83*(1-'2021 Determination Revenue'!G95) -> 559.5115309 | H207: ='2021 Determination Revenue'!H83*(1-'2021 Determination Revenue'!H95) -> 559.5115309 | I207: ='2021 Determination Revenue'!I83*(1-'2021 Determination Revenue'!I95) -> 559.5115309 | J207: ='2021 Determination Revenue'!J83*(1-'2021 Determination Revenue'!J95) -> 559.5115309
B208: ='2021 Determination Revenue'!B$49 -> Lowbidgee | C208: ='2021 Determination Revenue'!C$41 -> $'000 | G208: ='2021 Determination Revenue'!G84*(1-'2021 Determination Revenue'!G96) -> 0 | H208: ='2021 Determination Revenue'!H84*(1-'2021 Determination Revenue'!H96) -> 0 | I208: ='2021 Determination Revenue'!I84*(1-'2021 Determination Revenue'!I96) -> 0 | J208: ='2021 Determination Revenue'!J84*(1-'2021 Determination Revenue'!J96) -> 0
B209: Check=0 | G209: =SUMPRODUCT('2021 Determination Revenue'!G76:G84,(1-'2021 Determination Revenue'!G88:G96))-SUM(G200:G208) -> 0 | H209: =SUMPRODUCT('2021 Determination Revenue'!H76:H84,(1-'2021 Determination Revenue'!H88:H96))-SUM(H200:H208) -> 0 | I209: =SUMPRODUCT('2021 Determination Revenue'!I76:I84,(1-'2021 Determination Revenue'!I88:I96))-SUM(I200:I208) -> 0 | J209: =SUMPRODUCT('2021 Determination Revenue'!J76:J84,(1-'2021 Determination Revenue'!J88:J96))-SUM(J200:J208) -> 0

Sheet WaterNSW Sheets >> (hidden)
